Workbook

Sheet Main
B10: 2019-01-22
B12: Sheet No. | C12: Template Name | D12: Summary
B13: 1 | C13: Future Intra | D13: For Intraday trading in F&O segment
B14: 2 | C14: Cash Intra | D14: For Intraday trading in cash market segment
B15: 3 | C15: Mid-cap Intra | D15: For Intraday trading in Mid-cap stocks
B16: 4 | C16: Bulk Deals | D16: Reveals Bulk Deals carried on NSE & BSE
B17: 5 | C17: Call Tracker

Sheet Future Intra
M5: Back to Main Page
A6: FOR INTRA DAY TRADING | L6: =Main!B10 -> 2019-01-22
A9: Sr.no | B9: Sector | C9: Scrip | D9: CLOSE RATE | E9: Pivot Point | F9: Supports | I9: Resistances
B10: Sector | D10: Point | E10: Point | F10: S1 | G10: S2 | H10: S3 | I10: R1 | J10: R2 | K10: R3 | L10: HIGH | M10: LOW | N10: OI | O10: % Change in OI
A11: 1 | B11: Index | C11: BANKNIFTY | D11: 27573.00 | E11: 27565.67 | F11: 27456.38 | G11: 27339.77 | H11: 27230.48 | I11: 27682.28 | J11: 27791.57 | K11: 27908.18 | L11: 27674.95 | M11: 27449.05 | N11: 2153700 | O11: 1.49%
A12: 2 | B12: Index | C12: NIFTY | D12: 10969.70 | E12: 10958.43 | F12: 10913.42 | G12: 10857.13 | H12: 10812.12 | I12: 11014.72 | J12: 11059.73 | K12: 11116.02 | L12: 11003.45 | M12: 10902.15 | N12: 28420800 | O12: 0.86%
A13: 3 | B13: Index | C13: NIFTYIT | D13: 14944.00 | E13: 14961.00 | F13: 14833.00 | G13: 14722.00 | H13: 14594.00 | I13: 15072.00 | J13: 15200.00 | K13: 15311.00 | L13: 15089 | M13: 14850 | N13: 16550 | O13: -11.02%
A14: 4 | B14: Cement | C14: ACC | D14: 1434.75 | E14: 1441.32 | F14: 1422.63 | G14: 1410.52 | H14: 1391.83 | I14: 1453.43 | J14: 1472.12 | K14: 1484.23 | L14: 1460 | M14: 1429.2 | N14: 1648000 | O14: 5.61%
A15: 5 | B15: Others | C15: ADANIENT | D15: 146.35 | E15: 146.47 | F15: 144.48 | G15: 142.62 | H15: 140.63 | I15: 148.33 | J15: 150.32 | K15: 152.18 | L15: 148.45 | M15: 144.6 | N15: 42392000 | O15: 6.28%
A16: 6 | B16: Others | C16: ADANIPORTS | D16: 396.75 | E16: 397.60 | F16: 392.00 | G16: 387.25 | H16: 381.65 | I16: 402.35 | J16: 407.95 | K16: 412.70 | L16: 403.2 | M16: 392.85 | N16: 22652500 | O16: -0.70%
A17: 7 | B17: Power | C17: ADANIPOWER | D17: 50.80 | E17: 50.72 | F17: 49.73 | G17: 48.67 | H17: 47.68 | I17: 51.78 | J17: 52.77 | K17: 53.83 | L17: 51.7 | M17: 49.65 | N17: 155140000 | O17: 0.05%
A18: 8 | B18: Pharma | C18: AJANTPHARM | D18: 1148.05 | E18: 1148.15 | F18: 1141.10 | G18: 1134.15 | H18: 1127.10 | I18: 1155.10 | J18: 1162.15 | K18: 1169.10 | L18: 1155.2 | M18: 1141.2 | N18: 671500 | O18: -1.83%
A19: 9 | B19: Banking | C19: ALBK | D19: 42.45 | E19: 42.72 | F19: 41.63 | G19: 40.82 | H19: 39.73 | I19: 43.53 | J19: 44.62 | K19: 45.43 | L19: 43.8 | M19: 41.9 | N19: 21944000 | O19: 5.57%
A20: 10 | B20: Automobile | C20: AMARAJABAT | D20: 776.00 | E20: 778.85 | F20: 770.35 | G20: 764.70 | H20: 756.20 | I20: 784.50 | J20: 793.00 | K20: 798.65 | L20: 787.35 | M20: 773.2 | N20: 1096900 | O20: 12.33%
A21: 11 | B21: Cement | C21: AMBUJACEM | D21: 213.20 | E21: 213.35 | F21: 211.80 | G21: 210.40 | H21: 208.85 | I21: 214.75 | J21: 216.30 | K21: 217.70 | L21: 214.9 | M21: 211.95 | N21: 15585000 | O21: -0.76%
A22: 12 | B22: Others | C22: APOLLOHOSP | D22: 1328.50 | E22: 1342.85 | F22: 1306.05 | G22: 1283.60 | H22: 1246.80 | I22: 1365.30 | J22: 1402.10 | K22: 1424.55 | L22: 1379.65 | M22: 1320.4 | N22: 784500 | O22: -5.37%
A23: 13 | B23: Automobile | C23: APOLLOTYRE | D23: 217.10 | E23: 217.95 | F23: 215.45 | G23: 213.80 | H23: 211.30 | I23: 219.60 | J23: 222.10 | K23: 223.75 | L23: 220.45 | M23: 216.3 | N23: 11133000 | O23: -1.98%
A24: 14 | B24: Textile | C24: ARVIND | D24: 92.45 | E24: 92.97 | F24: 91.58 | G24: 90.72 | H24: 89.33 | I24: 93.83 | J24: 95.22 | K24: 96.08 | L24: 94.35 | M24: 92.1 | N24: 8422000 | O24: 0.69%
A25: 15 | B25: Automobile | C25: ASHOKLEY | D25: 90.90 | E25: 91.50 | F25: 90.00 | G25: 89.10 | H25: 87.60 | I25: 92.40 | J25: 93.90 | K25: 94.80 | L25: 93 | M25: 90.6 | N25: 84360000 | O25: 1.05%
A26: 16 | B26: FMCG | C26: ASIANPAINT | D26: 1426.10 | E26: 1419.55 | F26: 1409.10 | G26: 1392.10 | H26: 1381.65 | I26: 1436.55 | J26: 1447.00 | K26: 1464.00 | L26: 1430 | M26: 1402.55 | N26: 7932000 | O26: 10.82%
A27: 17 | B27: Pharma | C27: AUROPHARMA | D27: 779.35 | E27: 779.53 | F27: 771.37 | G27: 763.38 | H27: 755.22 | I27: 787.52 | J27: 795.68 | K27: 803.67 | L27: 787.7 | M27: 771.55 | N27: 18631000 | O27: -1.36%
A28: 18 | B28: Banking | C28: AXISBANK | D28: 662.55 | E28: 662.73 | F28: 658.52 | G28: 654.48 | H28: 650.27 | I28: 666.77 | J28: 670.98 | K28: 675.02 | L28: 666.95 | M28: 658.7 | N28: 33814800 | O28: 1.59%
A29: 19 | B29: Automobile | C29: BAJAJ-AUTO | D29: 2684.55 | E29: 2694.73 | F29: 2666.47 | G29: 2648.38 | H29: 2620.12 | I29: 2712.82 | J29: 2741.08 | K29: 2759.17 | L29: 2723 | M29: 2676.65 | N29: 2212750 | O29: 2.53%
A30: 20 | B30: Others | C30: BAJAJFINSV | D30: 6404.80 | E30: 6353.27 | F30: 6281.53 | G30: 6158.27 | H30: 6086.53 | I30: 6476.53 | J30: 6548.27 | K30: 6671.53 | L30: 6425 | M30: 6230 | N30: 703375 | O30: -1.35%
A31: 21 | B31: Finance | C31: BAJFINANCE | D31: 2599.50 | E31: 2583.80 | F31: 2553.10 | G31: 2506.70 | H31: 2476.00 | I31: 2630.20 | J31: 2660.90 | K31: 2707.30 | L31: 2614.5 | M31: 2537.4 | N31: 6558750 | O31: 1.84%
A32: 22 | B32: Others | C32: BALKRISIND | D32: 868.90 | E32: 869.80 | F32: 863.10 | G32: 857.30 | H32: 850.60 | I32: 875.60 | J32: 882.30 | K32: 888.10 | L32: 876.5 | M32: 864 | N32: 2881600 | O32: -0.94%
A33: 23 | B33: Banking | C33: BANKBARODA | D33: 116.60 | E33: 117.35 | F33: 115.25 | G33: 113.90 | H33: 111.80 | I33: 118.70 | J33: 120.80 | K33: 122.15 | L33: 119.45 | M33: 116 | N33: 63424000 | O33: 0.53%
A34: 24 | B34: Banking | C34: BANKINDIA | D34: 100.90 | E34: 101.95 | F34: 98.95 | G34: 97.00 | H34: 94.00 | I34: 103.90 | J34: 106.90 | K34: 108.85 | L34: 104.95 | M34: 100 | N34: 30348000 | O34: 3.33%
A35: 25 | B35: FMCG | C35: BATAINDIA | D35: 1152.00 | E35: 1153.85 | F35: 1145.70 | G35: 1139.40 | H35: 1131.25 | I35: 1160.15 | J35: 1168.30 | K35: 1174.60 | L35: 1162 | M35: 1147.55 | N35: 2593250 | O35: -1.73%
A36: 26 | B36: Capital_Goods | C36: BEL | D36: 86.60 | E36: 86.73 | F36: 85.67 | G36: 84.73 | H36: 83.67 | I36: 87.67 | J36: 88.73 | K36: 89.67 | L36: 87.8 | M36: 85.8 | N36: 36072000 | O36: -1.17%
A37: 27 | B37: Infrastructure | C37: BEML | D37: 891.50 | E37: 894.50 | F37: 885.00 | G37: 878.50 | H37: 869.00 | I37: 901.00 | J37: 910.50 | K37: 917.00 | L37: 904 | M37: 888 | N37: 1754200 | O37: 1.79%
A38: 28 | B38: Others | C38: BERGEPAINT | D38: 323.65 | E38: 325.17 | F38: 318.78 | G38: 313.92 | H38: 307.53 | I38: 330.03 | J38: 336.42 | K38: 341.28 | L38: 331.55 | M38: 320.3 | N38: 5992800 | O38: 12.52%
A39: 29 | B39: Finance | C39: BHARATFIN | D39: 953.60 | E39: 954.15 | F39: 947.00 | G39: 940.40 | H39: 933.25 | I39: 960.75 | J39: 967.90 | K39: 974.50 | L39: 961.3 | M39: 947.55 | N39: 4367500 | O39: 1.31%
A40: 30 | B40: Automobile | C40: BHARATFORG | D40: 479.00 | E40: 480.07 | F40: 474.88 | G40: 470.77 | H40: 465.58 | I40: 484.18 | J40: 489.37 | K40: 493.48 | L40: 485.25 | M40: 475.95 | N40: 14041200 | O40: -2.15%
A41: 31 | B41: Telecom | C41: BHARTIARTL | D41: 311.15 | E41: 311.27 | F41: 306.48 | G41: 301.82 | H41: 297.03 | I41: 315.93 | J41: 320.72 | K41: 325.38 | L41: 316.05 | M41: 306.6 | N41: 35402500 | O41: -4.37%
A42: 32 | B42: Capital_Goods | C42: BHEL | D42: 70.90 | E42: 71.30 | F42: 70.30 | G42: 69.70 | H42: 68.70 | I42: 71.90 | J42: 72.90 | K42: 73.50 | L42: 72.3 | M42: 70.7 | N42: 42900000 | O42: -2.99%
A43: 33 | B43: Pharma | C43: BIOCON | D43: 665.15 | E43: 665.33 | F43: 656.92 | G43: 648.68 | H43: 640.27 | I43: 673.57 | J43: 681.98 | K43: 690.22 | L43: 673.75 | M43: 657.1 | N43: 5373900 | O43: 6.64%
A44: 34 | B44: Automobile | C44: BOSCHLTD | D44: 19096.75 | E44: 19154.05 | F44: 19006.20 | G44: 18915.65 | H44: 18767.80 | I44: 19244.60 | J44: 19392.45 | K44: 19483.00 | L44: 19301.9 | M44: 19063.5 | N44: 164520 | O44: -0.56%
A45: 35 | B45: Oil_Gas | C45: BPCL | D45: 351.30 | E45: 351.85 | F45: 348.50 | G45: 345.70 | H45: 342.35 | I45: 354.65 | J45: 358.00 | K45: 360.80 | L45: 355.2 | M45: 349.05 | N45: 9615600 | O45: -0.26%
A46: 36 | B46: FMCG | C46: BRITANNIA | D46: 3158.10 | E46: 3169.35 | F46: 3135.70 | G46: 3113.30 | H46: 3079.65 | I46: 3191.75 | J46: 3225.40 | K46: 3247.80 | L46: 3203 | M46: 3146.95 | N46: 2960600 | O46: 0.23%
A47: 37 | B47: Pharma | C47: CADILAHC | D47: 344.65 | E47: 346.68 | F47: 341.57 | G47: 338.48 | H47: 333.37 | I47: 349.77 | J47: 354.88 | K47: 357.97 | L47: 351.8 | M47: 343.6 | N47: 8609600 | O47: -0.11%
A48: 38 | B48: Banking | C48: CANBK | D48: 268.30 | E48: 270.63 | F48: 263.57 | G48: 258.83 | H48: 251.77 | I48: 275.37 | J48: 282.43 | K48: 287.17 | L48: 277.7 | M48: 265.9 | N48: 13388000 | O48: -0.31%
A49: 39 | B49: Others | C49: CANFINHOME | D49: 265.25 | E49: 266.48 | F49: 261.27 | G49: 257.28 | H49: 252.07 | I49: 270.47 | J49: 275.68 | K49: 279.67 | L49: 271.7 | M49: 262.5 | N49: 4768200 | O49: 1.38%
A50: 40 | B50: Oil_Gas | C50: CASTROLIND | D50: 166.50 | E50: 166.65 | F50: 165.25 | G50: 164.00 | H50: 162.60 | I50: 167.90 | J50: 169.30 | K50: 170.55 | L50: 168.05 | M50: 165.4 | N50: 6817000 | O50: -2.72%
A51: 41 | B51: Automobile | C51: CEATLTD | D51: 1226.30 | E51: 1228.43 | F51: 1216.87 | G51: 1207.43 | H51: 1195.87 | I51: 1237.87 | J51: 1249.43 | K51: 1258.87 | L51: 1240 | M51: 1219 | N51: 1105600 | O51: 0.95%
A52: 42 | B52: Textile | C52: CENTURYTEX | D52: 888.35 | E52: 885.93 | F52: 879.42 | G52: 870.48 | H52: 863.97 | I52: 894.87 | J52: 901.38 | K52: 910.32 | L52: 892.45 | M52: 877 | N52: 4561800 | O52: 0.54%
A53: 43 | B53: Power | C53: CESC | D53: 685.50 | E53: 687.45 | F53: 681.20 | G53: 676.90 | H53: 670.65 | I53: 691.75 | J53: 698.00 | K53: 702.30 | L53: 693.7 | M53: 683.15 | N53: 1342000 | O53: -0.57%
A54: 44 | B54: Power | C54: CGPOWER | D54: 42.35 | E54: 42.65 | F54: 41.70 | G54: 41.05 | H54: 40.10 | I54: 43.30 | J54: 44.25 | K54: 44.90 | L54: 43.6 | M54: 42 | N54: 40620000 | O54: 0.71%
A55: 45 | B55: Others | C55: CHENNPETRO | D55: 264.15 | E55: 263.38 | F55: 261.27 | G55: 258.38 | H55: 256.27 | I55: 266.27 | J55: 268.38 | K55: 271.27 | L55: 265.5 | M55: 260.5 | N55: 1362600 | O55: -1.69%
A56: 46 | B56: Others | C56: CHOLAFIN | D56: 1175.75 | E56: 1178.25 | F56: 1168.70 | G56: 1161.65 | H56: 1152.10 | I56: 1185.30 | J56: 1194.85 | K56: 1201.90 | L56: 1187.8 | M56: 1171.2 | N56: 1016000 | O56: 7.97%
A57: 47 | B57: Pharma | C57: CIPLA | D57: 511.10 | E57: 512.00 | F57: 509.10 | G57: 507.10 | H57: 504.20 | I57: 514.00 | J57: 516.90 | K57: 518.90 | L57: 514.9 | M57: 510 | N57: 8388000 | O57: -0.39%
A58: 48 | B58: Others | C58: COALINDIA | D58: 229.45 | E58: 229.87 | F58: 228.53 | G58: 227.62 | H58: 226.28 | I58: 230.78 | J58: 232.12 | K58: 233.03 | L58: 231.2 | M58: 228.95 | N58: 25977600 | O58: -2.74%
A59: 49 | B59: FMCG | C59: COLPAL | D59: 1319.00 | E59: 1320.67 | F59: 1314.23 | G59: 1309.47 | H59: 1303.03 | I59: 1325.43 | J59: 1331.87 | K59: 1336.63 | L59: 1327.1 | M59: 1315.9 | N59: 1463700 | O59: 3.62%
A60: 50 | B60: Others | C60: CONCOR | D60: 668.00 | E60: 673.53 | F60: 659.07 | G60: 650.13 | H60: 635.67 | I60: 682.47 | J60: 696.93 | K60: 705.87 | L60: 688 | M60: 664.6 | N60: 2187500 | O60: 6.77%
A61: 51 | B61: Capital_Goods | C61: CUMMINSIND | D61: 840.00 | E61: 843.42 | F61: 832.13 | G61: 824.27 | H61: 812.98 | I61: 851.28 | J61: 862.57 | K61: 870.43 | L61: 854.7 | M61: 835.55 | N61: 1674400 | O61: -1.48%
A62: 52 | B62: FMCG | C62: DABUR | D62: 428.45 | E62: 429.40 | F62: 424.30 | G62: 420.15 | H62: 415.05 | I62: 433.55 | J62: 438.65 | K62: 442.80 | L62: 434.5 | M62: 425.25 | N62: 14302500 | O62: -1.38%
A63: 53 | B63: Banking | C63: DCBBANK | D63: 183.30 | E63: 182.93 | F63: 177.47 | G63: 171.63 | H63: 166.17 | I63: 188.77 | J63: 194.23 | K63: 200.07 | L63: 188.4 | M63: 177.1 | N63: 5247000 | O63: -1.19%
A64: 54 | B64: Finance | C64: DHFL | D64: 211.90 | E64: 213.37 | F64: 208.43 | G64: 204.97 | H64: 200.03 | I64: 216.83 | J64: 221.77 | K64: 225.23 | L64: 218.3 | M64: 209.9 | N64: 18558000 | O64: -0.24%
A65: 55 | B65: Media | C65: DISHTV | D65: 34.85 | E65: 34.75 | F65: 33.75 | G65: 32.65 | H65: 31.65 | I65: 35.85 | J65: 36.85 | K65: 37.95 | L65: 35.75 | M65: 33.65 | N65: 64896000 | O65: 0.45%
A66: 56 | B66: Pharma | C66: DIVISLAB | D66: 1502.75 | E66: 1508.37 | F66: 1494.38 | G66: 1486.02 | H66: 1472.03 | I66: 1516.73 | J66: 1530.72 | K66: 1539.08 | L66: 1522.35 | M66: 1500 | N66: 3320000 | O66: 0.06%
A67: 57 | B67: Realty | C67: DLF | D67: 177.55 | E67: 178.97 | F67: 175.18 | G67: 172.82 | H67: 169.03 | I67: 181.33 | J67: 185.12 | K67: 187.48 | L67: 182.75 | M67: 176.6 | N67: 24323000 | O67: 0.69%
A68: 58 | B68: Pharma | C68: DRREDDY | D68: 2605.35 | E68: 2615.00 | F68: 2582.15 | G68: 2558.95 | H68: 2526.10 | I68: 2638.20 | J68: 2671.05 | K68: 2694.25 | L68: 2647.85 | M68: 2591.8 | N68: 4204000 | O68: 1.19%
A69: 59 | B69: Automobile | C69: EICHERMOT | D69: 20073.85 | E69: 20134.57 | F69: 19940.28 | G69: 19806.72 | H69: 19612.43 | I69: 20268.13 | J69: 20462.42 | K69: 20595.98 | L69: 20328.85 | M69: 20001 | N69: 357525 | O69: -0.36%
A70: 60 | B70: Infrastructure | C70: ENGINERSIN | D70: 116.00 | E70: 116.47 | F70: 115.03 | G70: 114.07 | H70: 112.63 | I70: 117.43 | J70: 118.87 | K70: 119.83 | L70: 117.9 | M70: 115.5 | N70: 9368500 | O70: 0.93%
A71: 61 | B71: Finance | C71: EQUITAS | D71: 118.50 | E71: 119.28 | F71: 117.12 | G71: 115.73 | H71: 113.57 | I71: 120.67 | J71: 122.83 | K71: 124.22 | L71: 121.45 | M71: 117.9 | N71: 10960000 | O71: 1.11%
A72: 62 | B72: Automobile | C72: ESCORTS | D72: 734.80 | E72: 736.22 | F72: 725.43 | G72: 716.07 | H72: 705.28 | I72: 745.58 | J72: 756.37 | K72: 765.73 | L72: 747 | M72: 726.85 | N72: 3892900 | O72: -3.20%
A73: 63 | B73: Automobile | C73: EXIDEIND | D73: 244.40 | E73: 244.90 | F73: 242.80 | G73: 241.20 | H73: 239.10 | I73: 246.50 | J73: 248.60 | K73: 250.20 | L73: 247 | M73: 243.3 | N73: 5660000 | O73: 4.85%
A74: 64 | B74: Banking | C74: FEDERALBNK | D74: 88.85 | E74: 89.52 | F74: 87.93 | G74: 87.02 | H74: 85.43 | I74: 90.43 | J74: 92.02 | K74: 92.93 | L74: 91.1 | M74: 88.6 | N74: 61278000 | O74: 2.02%
A75: 65 | B75: Oil_Gas | C75: GAIL | D75: 328.25 | E75: 326.30 | F75: 323.10 | G75: 317.95 | H75: 314.75 | I75: 331.45 | J75: 334.65 | K75: 339.80 | L75: 329.5 | M75: 321.15 | N75: 13820394 | O75: -2.78%
A76: 66 | B76: Pharma | C76: GLENMARK | D76: 647.65 | E76: 647.85 | F76: 639.70 | G76: 631.75 | H76: 623.60 | I76: 655.80 | J76: 663.95 | K76: 671.90 | L76: 656 | M76: 639.9 | N76: 4050000 | O76: -2.43%
A77: 67 | B77: Infrastructure | C77: GMRINFRA | D77: 16.05 | E77: 16.10 | F77: 15.90 | G77: 15.75 | H77: 15.55 | I77: 16.25 | J77: 16.45 | K77: 16.60 | L77: 16.3 | M77: 15.95 | N77: 176625000 | O77: 1.42%
A78: 68 | B78: Others | C78: GODFRYPHLP | D78: 959.00 | E78: 957.00 | F78: 949.05 | G78: 939.10 | H78: 931.15 | I78: 966.95 | J78: 974.90 | K78: 984.85 | L78: 964.95 | M78: 947.05 | N78: 592900 | O78: -2.42%
A79: 69 | B79: FMCG | C79: GODREJCP | D79: 784.65 | E79: 790.33 | F79: 776.17 | G79: 767.68 | H79: 753.52 | I79: 798.82 | J79: 812.98 | K79: 821.47 | L79: 804.5 | M79: 781.85 | N79: 4875600 | O79: 0.91%
A80: 70 | B80: FMCG | C80: GODREJIND | D80: 525.70 | E80: 526.45 | F80: 522.50 | G80: 519.30 | H80: 515.35 | I80: 529.65 | J80: 533.60 | K80: 536.80 | L80: 530.4 | M80: 523.25 | N80: 1570500 | O80: -2.15%
A81: 71 | B81: Cement | C81: GRASIM | D81: 815.85 | E81: 819.00 | F81: 809.90 | G81: 803.95 | H81: 794.85 | I81: 824.95 | J81: 834.05 | K81: 840.00 | L81: 828.1 | M81: 813.05 | N81: 10365000 | O81: -0.17%
A82: 72 | B82: Others | C82: GSFC | D82: 108.05 | E82: 108.28 | F82: 107.22 | G82: 106.38 | H82: 105.32 | I82: 109.12 | J82: 110.18 | K82: 111.02 | L82: 109.35 | M82: 107.45 | N82: 15199800 | O82: -0.77%
A83: 73 | B83: Others | C83: HAVELLS | D83: 680.40 | E83: 676.30 | F83: 664.05 | G83: 647.70 | H83: 635.45 | I83: 692.65 | J83: 704.90 | K83: 721.25 | L83: 688.55 | M83: 659.95 | N83: 5083000 | O83: 1.99%
A84: 74 | B84: Technology | C84: HCLTECH | D84: 966.05 | E84: 970.47 | F84: 958.43 | G84: 950.82 | H84: 938.78 | I84: 978.08 | J84: 990.12 | K84: 997.73 | L84: 982.5 | M84: 962.85 | N84: 9388400 | O84: 0.24%
A85: 75 | B85: Finance | C85: HDFC | D85: 2007.30 | E85: 2005.22 | F85: 1988.38 | G85: 1969.47 | H85: 1952.63 | I85: 2024.13 | J85: 2040.97 | K85: 2059.88 | L85: 2022.05 | M85: 1986.3 | N85: 26787000 | O85: 0.64%
A86: 76 | B86: Banking | C86: HDFCBANK | D86: 2149.30 | E86: 2149.80 | F86: 2128.70 | G86: 2108.10 | H86: 2087.00 | I86: 2170.40 | J86: 2191.50 | K86: 2212.10 | L86: 2170.9 | M86: 2129.2 | N86: 14123500 | O86: 4.37%
A87: 77 | B87: Automobile | C87: HEROMOTOCO | D87: 2804.70 | E87: 2840.77 | F87: 2755.53 | G87: 2706.37 | H87: 2621.13 | I87: 2889.93 | J87: 2975.17 | K87: 3024.33 | L87: 2926 | M87: 2791.6 | N87: 1818400 | O87: 3.90%
A88: 78 | B88: Technology | C88: HEXAWARE | D88: 327.25 | E88: 329.10 | F88: 322.80 | G88: 318.35 | H88: 312.05 | I88: 333.55 | J88: 339.85 | K88: 344.30 | L88: 335.4 | M88: 324.65 | N88: 3081000 | O88: -0.68%
A89: 79 | B89: Metals | C89: HINDALCO | D89: 207.80 | E89: 207.77 | F89: 205.53 | G89: 203.27 | H89: 201.03 | I89: 210.03 | J89: 212.27 | K89: 214.53 | L89: 210 | M89: 205.5 | N89: 39781000 | O89: 0.00%
A90: 80 | B90: Oil_Gas | C90: HINDPETRO | D90: 239.25 | E90: 239.87 | F90: 237.33 | G90: 235.42 | H90: 232.88 | I90: 241.78 | J90: 244.32 | K90: 246.23 | L90: 242.4 | M90: 237.95 | N90: 15277500 | O90: -2.39%
A91: 81 | B91: FMCG | C91: HINDUNILVR | D91: 1752.45 | E91: 1752.18 | F91: 1741.37 | G91: 1730.28 | H91: 1719.47 | I91: 1763.27 | J91: 1774.08 | K91: 1785.17 | L91: 1763 | M91: 1741.1 | N91: 11769000 | O91: -0.91%
A92: 82 | B92: Metals | C92: HINDZINC | D92: 268.10 | E92: 269.38 | F92: 263.97 | G92: 259.83 | H92: 254.42 | I92: 273.52 | J92: 278.93 | K92: 283.07 | L92: 274.8 | M92: 265.25 | N92: 6230400 | O92: 7.27%
A93: 83 | B93: Finance | C93: IBULHSGFIN | D93: 804.50 | E93: 809.10 | F93: 797.80 | G93: 791.10 | H93: 779.80 | I93: 815.80 | J93: 827.10 | K93: 833.80 | L93: 820.4 | M93: 802.4 | N93: 12575000 | O93: 0.79%
A94: 84 | B94: Banking | C94: ICICIBANK | D94: 372.30 | E94: 373.50 | F94: 370.10 | G94: 367.90 | H94: 364.50 | I94: 375.70 | J94: 379.10 | K94: 381.30 | L94: 376.9 | M94: 371.3 | N94: 98513250 | O94: 0.30%
A95: 85 | B95: Others | C95: ICICIPRULI | D95: 351.65 | E95: 351.67 | F95: 347.98 | G95: 344.32 | H95: 340.63 | I95: 355.33 | J95: 359.02 | K95: 362.68 | L95: 355.35 | M95: 348 | N95: 3876000 | O95: 1.02%
A96: 86 | B96: Banking | C96: IDBI | D96: 56.55 | E96: 57.15 | F96: 55.55 | G96: 54.55 | H96: 52.95 | I96: 58.15 | J96: 59.75 | K96: 60.75 | L96: 58.75 | M96: 56.15 | N96: 35670000 | O96: 2.32%
A97: 87 | B97: Telecom | C97: IDEA | D97: 32.70 | E97: 33.50 | F97: 31.65 | G97: 30.60 | H97: 28.75 | I97: 34.55 | J97: 36.40 | K97: 37.45 | L97: 35.35 | M97: 32.45 | N97: 162084000 | O97: 9.49%
A98: 88 | B98: Finance | C98: IDFC | D98: 42.20 | E98: 42.48 | F98: 41.72 | G98: 41.23 | H98: 40.47 | I98: 42.97 | J98: 43.73 | K98: 44.22 | L98: 43.25 | M98: 42 | N98: 101534400 | O98: 1.28%
A99: 89 | B99: Banking | C99: IDFCFIRSTB | D99: 46.40 | E99: 46.68 | F99: 45.87 | G99: 45.33 | H99: 44.52 | I99: 47.22 | J99: 48.03 | K99: 48.57 | L99: 47.5 | M99: 46.15 | N99: 174372000 | O99: -0.03%
A100: 90 | B100: Finance | C100: IFCI | D100: 14.40 | E100: 14.52 | F100: 14.23 | G100: 14.07 | H100: 13.78 | I100: 14.68 | J100: 14.97 | K100: 15.13 | L100: 14.8 | M100: 14.35 | N100: 55160000 | O100: 1.68%
A101: 91 | B101: Oil_Gas | C101: IGL | D101: 286.95 | E101: 284.70 | F101: 280.70 | G101: 274.45 | H101: 270.45 | I101: 290.95 | J101: 294.95 | K101: 301.20 | L101: 288.7 | M101: 278.45 | N101: 3421000 | O101: -0.64%
A102: 92 | B102: Cement | C102: INDIACEM | D102: 84.25 | E102: 84.73 | F102: 83.37 | G102: 82.48 | H102: 81.12 | I102: 85.62 | J102: 86.98 | K102: 87.87 | L102: 86.1 | M102: 83.85 | N102: 24052500 | O102: 2.02%
A103: 93 | B103: Banking | C103: INDIANB | D103: 244.55 | E103: 246.47 | F103: 240.58 | G103: 236.62 | H103: 230.73 | I103: 250.43 | J103: 256.32 | K103: 260.28 | L103: 252.35 | M103: 242.5 | N103: 4360000 | O103: -2.50%
A104: 94 | B104: Others | C104: INDIGO | D104: 1064.35 | E104: 1062.68 | F104: 1042.37 | G104: 1020.38 | H104: 1000.07 | I104: 1084.67 | J104: 1104.98 | K104: 1126.97 | L104: 1083 | M104: 1040.7 | N104: 3316800 | O104: 3.37%
A105: 95 | B105: Banking | C105: INDUSINDBK | D105: 1508.65 | E105: 1510.07 | F105: 1498.58 | G105: 1488.52 | H105: 1477.03 | I105: 1520.13 | J105: 1531.62 | K105: 1541.68 | L105: 1521.55 | M105: 1500 | N105: 8353500 | O105: -0.28%
A106: 96 | B106: Technology | C106: INFIBEAM | D106: 44.05 | E106: 44.17 | F106: 43.28 | G106: 42.52 | H106: 41.63 | I106: 44.93 | J106: 45.82 | K106: 46.58 | L106: 45.05 | M106: 43.4 | N106: 14208000 | O106: 8.56%
A107: 97 | B107: Telecom | C107: INFRATEL | D107: 278.90 | E107: 276.95 | F107: 274.00 | G107: 269.10 | H107: 266.15 | I107: 281.85 | J107: 284.80 | K107: 289.70 | L107: 279.9 | M107: 272.05 | N107: 8400000 | O107: 0.84%
A108: 98 | B108: Technology | C108: INFY | D108: 740.85 | E108: 740.53 | F108: 732.82 | G108: 724.78 | H108: 717.07 | I108: 748.57 | J108: 756.28 | K108: 764.32 | L108: 748.25 | M108: 732.5 | N108: 40741200 | O108: -0.57%
A109: 99 | B109: Oil_Gas | C109: IOC | D109: 135.60 | E109: 136.32 | F109: 134.63 | G109: 133.67 | H109: 131.98 | I109: 137.28 | J109: 138.97 | K109: 139.93 | L109: 138 | M109: 135.35 | N109: 45405500 | O109: -0.46%
A110: 100 | B110: Infrastructure | C110: IRB | D110: 148.80 | E110: 149.28 | F110: 147.52 | G110: 146.23 | H110: 144.47 | I110: 150.57 | J110: 152.33 | K110: 153.62 | L110: 151.05 | M110: 148 | N110: 7168000 | O110: -1.15%
A111: 101 | B111: FMCG | C111: ITC | D111: 290.45 | E111: 291.15 | F111: 288.80 | G111: 287.15 | H111: 284.80 | I111: 292.80 | J111: 295.15 | K111: 296.80 | L111: 293.5 | M111: 289.5 | N111: 76864800 | O111: -1.36%
A112: 102 | B112: Others | C112: JETAIRWAYS | D112: 239.25 | E112: 242.98 | F112: 228.27 | G112: 217.28 | H112: 202.57 | I112: 253.97 | J112: 268.68 | K112: 279.67 | L112: 257.7 | M112: 232 | N112: 6298600 | O112: 1.52%
A113: 103 | B113: Metals | C113: JINDALSTEL | D113: 144.95 | E113: 146.30 | F113: 142.95 | G113: 140.95 | H113: 137.60 | I113: 148.30 | J113: 151.65 | K113: 153.65 | L113: 149.65 | M113: 144.3 | N113: 26178750 | O113: -0.61%
A114: 104 | B114: Others | C114: JISLJALEQS | D114: 61.95 | E114: 62.13 | F114: 59.37 | G114: 56.78 | H114: 54.02 | I114: 64.72 | J114: 67.48 | K114: 70.07 | L114: 64.9 | M114: 59.55 | N114: 41976000 | O114: 10.68%
A115: 105 | B115: Realty | C115: JPASSOCIAT | D115: 7.20 | E115: 7.18 | F115: 7.12 | G115: 7.03 | H115: 6.97 | I115: 7.27 | J115: 7.33 | K115: 7.42 | L115: 7.25 | M115: 7.1 | N115: 120945000 | O115: 1.06%
A116: 106 | B116: Metals | C116: JSWSTEEL | D116: 285.55 | E116: 286.73 | F116: 283.57 | G116: 281.58 | H116: 278.42 | I116: 288.72 | J116: 291.88 | K116: 293.87 | L116: 289.9 | M116: 284.75 | N116: 52462500 | O116: -0.11%
A117: 107 | B117: Others | C117: JUBLFOOD | D117: 1184.50 | E117: 1195.85 | F117: 1164.65 | G117: 1144.80 | H117: 1113.60 | I117: 1215.70 | J117: 1246.90 | K117: 1266.75 | L117: 1227.05 | M117: 1176 | N117: 3806000 | O117: 8.36%
A118: 108 | B118: Others | C118: JUSTDIAL | D118: 475.50 | E118: 477.18 | F118: 470.37 | G118: 465.23 | H118: 458.42 | I118: 482.32 | J118: 489.13 | K118: 494.27 | L118: 484 | M118: 472.05 | N118: 3116400 | O118: 7.90%
A119: 109 | B119: Others | C119: KAJARIACER | D119: 538.55 | E119: 536.55 | F119: 533.10 | G119: 527.65 | H119: 524.20 | I119: 542.00 | J119: 545.45 | K119: 550.90 | L119: 540 | M119: 531.1 | N119: 2932800 | O119: -7.01%
A120: 110 | B120: Banking | C120: KOTAKBANK | D120: 1270.45 | E120: 1258.63 | F120: 1237.82 | G120: 1205.18 | H120: 1184.37 | I120: 1291.27 | J120: 1312.08 | K120: 1344.72 | L120: 1279.45 | M120: 1226 | N120: 12977600 | O120: -0.56%
A121: 111 | B121: Technology | C121: KPIT | D121: 217.95 | E121: 217.78 | F121: 214.57 | G121: 211.18 | H121: 207.97 | I121: 221.17 | J121: 224.38 | K121: 227.77 | L121: 221 | M121: 214.4 | N121: 3955500 | O121: -11.79%
A122: 112 | B122: Others | C122: KSCL | D122: 568.60 | E122: 564.77 | F122: 554.73 | G122: 540.87 | H122: 530.83 | I122: 578.63 | J122: 588.67 | K122: 602.53 | L122: 574.8 | M122: 550.9 | N122: 1275000 | O122: -2.30%
A123: 113 | B123: Banking | C123: KTKBANK | D123: 120.75 | E123: 121.27 | F123: 119.63 | G123: 118.52 | H123: 116.88 | I123: 122.38 | J123: 124.02 | K123: 125.13 | L123: 122.9 | M123: 120.15 | N123: 14499500 | O123: -0.55%
A124: 114 | B124: Finance | C124: L&TFH | D124: 140.45 | E124: 140.20 | F124: 138.20 | G124: 135.95 | H124: 133.95 | I124: 142.45 | J124: 144.45 | K124: 146.70 | L124: 142.2 | M124: 137.95 | N124: 29263500 | O124: -2.85%
A125: 115 | B125: Finance | C125: LICHSGFIN | D125: 473.95 | E125: 475.08 | F125: 470.92 | G125: 467.88 | H125: 463.72 | I125: 478.12 | J125: 482.28 | K125: 485.32 | L125: 479.25 | M125: 472.05 | N125: 9267500 | O125: 0.12%
A126: 116 | B126: Capital_Goods | C126: LT | D126: 1314.90 | E126: 1307.72 | F126: 1278.33 | G126: 1241.77 | H126: 1212.38 | I126: 1344.28 | J126: 1373.67 | K126: 1410.23 | L126: 1337.1 | M126: 1271.15 | N126: 11902500 | O126: -0.02%
A127: 117 | B127: Pharma | C127: LUPIN | D127: 867.85 | E127: 870.57 | F127: 858.33 | G127: 848.82 | H127: 836.58 | I127: 880.08 | J127: 892.32 | K127: 901.83 | L127: 882.8 | M127: 861.05 | N127: 8867600 | O127: 4.50%
A128: 118 | B128: Automobile | C128: M&M | D128: 730.90 | E128: 732.92 | F128: 726.83 | G128: 722.77 | H128: 716.68 | I128: 736.98 | J128: 743.07 | K128: 747.13 | L128: 739 | M128: 728.85 | N128: 17066000 | O128: 1.68%
A129: 119 | B129: Finance | C129: M&MFIN | D129: 444.30 | E129: 443.35 | F129: 438.70 | G129: 433.10 | H129: 428.45 | I129: 448.95 | J129: 453.60 | K129: 459.20 | L129: 448 | M129: 437.75 | N129: 11592500 | O129: 0.22%
A130: 120 | B130: Others | C130: MANAPPURAM | D130: 99.10 | E130: 98.45 | F130: 97.15 | G130: 95.20 | H130: 93.90 | I130: 100.40 | J130: 101.70 | K130: 103.65 | L130: 99.75 | M130: 96.5 | N130: 11346000 | O130: 0.53%
A131: 121 | B131: FMCG | C131: MARICO | D131: 380.65 | E131: 380.63 | F131: 377.42 | G131: 374.18 | H131: 370.97 | I131: 383.87 | J131: 387.08 | K131: 390.32 | L131: 383.85 | M131: 377.4 | N131: 7433400 | O131: -0.38%
A132: 122 | B132: Automobile | C132: MARUTI | D132: 7209.20 | E132: 7254.08 | F132: 7117.17 | G132: 7025.13 | H132: 6888.22 | I132: 7346.12 | J132: 7483.03 | K132: 7575.07 | L132: 7391 | M132: 7162.05 | N132: 2559225 | O132: 5.63%
A133: 123 | B133: FMCG | C133: MCDOWELL-N | D133: 589.35 | E133: 590.25 | F133: 584.40 | G133: 579.45 | H133: 573.60 | I133: 595.20 | J133: 601.05 | K133: 606.00 | L133: 596.1 | M133: 585.3 | N133: 11705000 | O133: 0.10%
A134: 124 | B134: Others | C134: MCX | D134: 738.50 | E134: 738.88 | F134: 732.57 | G134: 726.63 | H134: 720.32 | I134: 744.82 | J134: 751.13 | K134: 757.07 | L134: 745.2 | M134: 732.95 | N134: 2655800 | O134: 2.43%
A135: 125 | B135: Finance | C135: MFSL | D135: 440.15 | E135: 444.72 | F135: 433.43 | G135: 426.72 | H135: 415.43 | I135: 451.43 | J135: 462.72 | K135: 469.43 | L135: 456 | M135: 438 | N135: 2248800 | O135: -0.43%
A136: 126 | B136: Others | C136: MGL | D136: 909.20 | E136: 910.60 | F136: 900.15 | G136: 891.10 | H136: 880.65 | I136: 919.65 | J136: 930.10 | K136: 939.15 | L136: 921.05 | M136: 901.55 | N136: 714600 | O136: -2.70%
A137: 127 | B137: Technology | C137: MINDTREE | D137: 882.05 | E137: 890.03 | F137: 867.37 | G137: 852.68 | H137: 830.02 | I137: 904.72 | J137: 927.38 | K137: 942.07 | L137: 912.7 | M137: 875.35 | N137: 4096200 | O137: 1.05%
A138: 128 | B138: Automobile | C138: MOTHERSUMI | D138: 163.10 | E138: 162.38 | F138: 158.77 | G138: 154.43 | H138: 150.82 | I138: 166.72 | J138: 170.33 | K138: 174.67 | L138: 166 | M138: 158.05 | N138: 24458700 | O138: -4.97%
A139: 129 | B139: Automobile | C139: MRF | D139: 66118.40 | E139: 65954.58 | F139: 65663.82 | G139: 65209.23 | H139: 64918.47 | I139: 66409.17 | J139: 66699.93 | K139: 67154.52 | L139: 66245.35 | M139: 65500 | N139: 24520 | O139: -0.61%
A140: 130 | B140: Others | C140: MRPL | D140: 69.20 | E140: 69.18 | F140: 68.62 | G140: 68.03 | H140: 67.47 | I140: 69.77 | J140: 70.33 | K140: 70.92 | L140: 69.75 | M140: 68.6 | N140: 5929000 | O140: -0.70%
A141: 131 | B141: Finance | C141: MUTHOOTFIN | D141: 545.10 | E141: 539.80 | F141: 530.85 | G141: 516.60 | H141: 507.65 | I141: 554.05 | J141: 563.00 | K141: 577.25 | L141: 548.75 | M141: 525.55 | N141: 2644500 | O141: 4.20%
A142: 132 | B142: Others | C142: NATIONALUM | D142: 61.05 | E142: 61.08 | F142: 60.42 | G142: 59.78 | H142: 59.12 | I142: 61.72 | J142: 62.38 | K142: 63.02 | L142: 61.75 | M142: 60.45 | N142: 26664000 | O142: 0.27%
A143: 133 | B143: Others | C143: NBCC | D143: 57.00 | E143: 57.53 | F143: 56.32 | G143: 55.63 | H143: 54.42 | I143: 58.22 | J143: 59.43 | K143: 60.12 | L143: 58.75 | M143: 56.85 | N143: 39560000 | O143: 1.02%
A144: 134 | B144: Infrastructure | C144: NCC | D144: 86.25 | E144: 86.88 | F144: 85.07 | G144: 83.88 | H144: 82.07 | I144: 88.07 | J144: 89.88 | K144: 91.07 | L144: 88.7 | M144: 85.7 | N144: 49592000 | O144: 0.78%
A145: 135 | B145: Others | C145: NESTLEIND | D145: 11282.55 | E145: 11276.50 | F145: 11203.05 | G145: 11123.55 | H145: 11050.10 | I145: 11356.00 | J145: 11429.45 | K145: 11508.95 | L145: 11349.95 | M145: 11197 | N145: 310900 | O145: -0.83%
A146: 136 | B146: Power | C146: NHPC | D146: 25.40 | E146: 25.32 | F146: 25.18 | G146: 24.97 | H146: 24.83 | I146: 25.53 | J146: 25.67 | K146: 25.88 | L146: 25.45 | M146: 25.1 | N146: 18576000 | O146: -2.41%
A147: 137 | B147: Technology | C147: NIITTECH | D147: 1273.25 | E147: 1264.70 | F147: 1227.40 | G147: 1181.55 | H147: 1144.25 | I147: 1310.55 | J147: 1347.85 | K147: 1393.70 | L147: 1302 | M147: 1218.85 | N147: 1965750 | O147: 5.81%
A148: 138 | B148: Metals | C148: NMDC | D148: 90.70 | E148: 90.90 | F148: 89.80 | G148: 88.90 | H148: 87.80 | I148: 91.80 | J148: 92.90 | K148: 93.80 | L148: 92 | M148: 90 | N148: 21726000 | O148: 3.07%
A149: 139 | B149: Power | C149: NTPC | D149: 143.85 | E149: 144.50 | F149: 142.50 | G149: 141.15 | H149: 139.15 | I149: 145.85 | J149: 147.85 | K149: 149.20 | L149: 146.5 | M149: 143.15 | N149: 35720000 | O149: 0.71%
A150: 140 | B150: Technology | C150: OFSS | D150: 3693.45 | E150: 3689.78 | F150: 3654.57 | G150: 3615.68 | H150: 3580.47 | I150: 3728.67 | J150: 3763.88 | K150: 3802.77 | L150: 3725 | M150: 3650.9 | N150: 119250 | O150: -4.68%
A151: 141 | B151: Oil_Gas | C151: OIL | D151: 171.70 | E151: 172.33 | F151: 170.67 | G151: 169.63 | H151: 167.97 | I151: 173.37 | J151: 175.03 | K151: 176.07 | L151: 174 | M151: 171.3 | N151: 7576371 | O151: -2.19%
A152: 142 | B152: Oil_Gas | C152: ONGC | D152: 145.05 | E152: 145.60 | F152: 143.80 | G152: 142.55 | H152: 140.75 | I152: 146.85 | J152: 148.65 | K152: 149.90 | L152: 147.4 | M152: 144.35 | N152: 42356250 | O152: -1.03%
A153: 143 | B153: Banking | C153: ORIENTBANK | D153: 93.90 | E153: 94.67 | F153: 92.03 | G153: 90.17 | H153: 87.53 | I153: 96.53 | J153: 99.17 | K153: 101.03 | L153: 97.3 | M153: 92.8 | N153: 13300000 | O153: -0.94%
A154: 144 | B154: Textile | C154: PAGEIND | D154: 23016.50 | E154: 23097.20 | F154: 22774.40 | G154: 22532.30 | H154: 22209.50 | I154: 23339.30 | J154: 23662.10 | K154: 23904.20 | L154: 23420 | M154: 22855.1 | N154: 184175 | O154: 3.43%
A155: 145 | B155: Others | C155: PCJEWELLER | D155: 77.25 | E155: 77.75 | F155: 76.00 | G155: 74.75 | H155: 73.00 | I155: 79.00 | J155: 80.75 | K155: 82.00 | L155: 79.5 | M155: 76.5 | N155: 10757500 | O155: -0.30%
A156: 146 | B156: Pharma | C156: PEL | D156: 2288.60 | E156: 2297.42 | F156: 2265.93 | G156: 2243.27 | H156: 2211.78 | I156: 2320.08 | J156: 2351.57 | K156: 2374.23 | L156: 2328.9 | M156: 2274.75 | N156: 2642802 | O156: -0.64%
A157: 147 | B157: Oil_Gas | C157: PETRONET | D157: 219.00 | E157: 218.92 | F157: 217.13 | G157: 215.27 | H157: 213.48 | I157: 220.78 | J157: 222.57 | K157: 224.43 | L157: 220.7 | M157: 217.05 | N157: 12108000 | O157: -0.25%
A158: 148 | B158: Finance | C158: PFC | D158: 105.20 | E158: 105.72 | F158: 104.13 | G158: 103.07 | H158: 101.48 | I158: 106.78 | J158: 108.37 | K158: 109.43 | L158: 107.3 | M158: 104.65 | N158: 34255000 | O158: 0.66%
A159: 149 | B159: FMCG | C159: PIDILITIND | D159: 1160.05 | E159: 1159.58 | F159: 1149.02 | G159: 1137.98 | H159: 1127.42 | I159: 1170.62 | J159: 1181.18 | K159: 1192.22 | L159: 1170.15 | M159: 1148.55 | N159: 2377500 | O159: 1.28%
A160: 150 | B160: Banking | C160: PNB | D160: 80.35 | E160: 81.28 | F160: 78.87 | G160: 77.38 | H160: 74.97 | I160: 82.77 | J160: 85.18 | K160: 86.67 | L160: 83.7 | M160: 79.8 | N160: 119742000 | O160: 1.25%
A161: 151 | B161: Power | C161: POWERGRID | D161: 191.25 | E161: 192.03 | F161: 189.97 | G161: 188.68 | H161: 186.62 | I161: 193.32 | J161: 195.38 | K161: 196.67 | L161: 194.1 | M161: 190.75 | N161: 21880000 | O161: -1.49%
A162: 152 | B162: Power | C162: PTC | D162: 87.00 | E162: 87.05 | F162: 86.10 | G162: 85.20 | H162: 84.25 | I162: 87.95 | J162: 88.90 | K162: 89.80 | L162: 88 | M162: 86.15 | N162: 6528000 | O162: 0.00%
A163: 153 | B163: Others | C163: PVR | D163: 1619.35 | E163: 1622.83 | F163: 1609.67 | G163: 1599.98 | H163: 1586.82 | I163: 1632.52 | J163: 1645.68 | K163: 1655.37 | L163: 1636 | M163: 1613.15 | N163: 1624400 | O163: 2.89%
A164: 154 | B164: Cement | C164: RAMCOCEM | D164: 612.55 | E164: 615.22 | F164: 605.68 | G164: 598.82 | H164: 589.28 | I164: 622.08 | J164: 631.62 | K164: 638.48 | L164: 624.75 | M164: 608.35 | N164: 646400 | O164: 3.59%
A165: 155 | B165: Others | C165: RAYMOND | D165: 810.90 | E165: 807.40 | F165: 798.80 | G165: 786.70 | H165: 778.10 | I165: 819.50 | J165: 828.10 | K165: 840.20 | L165: 816 | M165: 795.3 | N165: 4133600 | O165: 0.16%
A166: 156 | B166: Banking | C166: RBLBANK | D166: 581.20 | E166: 578.30 | F166: 573.90 | G166: 566.60 | H166: 562.20 | I166: 585.60 | J166: 590.00 | K166: 597.30 | L166: 582.7 | M166: 571 | N166: 5982000 | O166: 5.21%
A167: 157 | B167: Telecom | C167: RCOM | D167: 12.90 | E167: 13.07 | F167: 12.68 | G167: 12.47 | H167: 12.08 | I167: 13.28 | J167: 13.67 | K167: 13.88 | L167: 13.45 | M167: 12.85 | N167: 109004000 | O167: 9.16%
A168: 158 | B168: Power | C168: RECLTD | D168: 123.15 | E168: 124.35 | F168: 121.70 | G168: 120.25 | H168: 117.60 | I168: 125.80 | J168: 128.45 | K168: 129.90 | L168: 127 | M168: 122.9 | N168: 40374000 | O168: 0.58%
A169: 159 | B169: Finance | C169: RELCAPITAL | D169: 208.70 | E169: 209.45 | F169: 206.40 | G169: 204.10 | H169: 201.05 | I169: 211.75 | J169: 214.80 | K169: 217.10 | L169: 212.5 | M169: 207.15 | N169: 14916000 | O169: 0.71%
A170: 160 | B170: Oil_Gas | C170: RELIANCE | D170: 1237.90 | E170: 1223.18 | F170: 1204.72 | G170: 1171.53 | H170: 1153.07 | I170: 1256.37 | J170: 1274.83 | K170: 1308.02 | L170: 1241.65 | M170: 1190 | N170: 49638000 | O170: 0.10%
A171: 161 | B171: Power | C171: RELINFRA | D171: 290.35 | E171: 292.52 | F171: 286.68 | G171: 283.02 | H171: 277.18 | I171: 296.18 | J171: 302.02 | K171: 305.68 | L171: 298.35 | M171: 288.85 | N171: 10640500 | O171: 1.78%
A172: 162 | B172: Others | C172: REPCOHOME | D172: 427.85 | E172: 428.98 | F172: 422.72 | G172: 417.58 | H172: 411.32 | I172: 434.12 | J172: 440.38 | K172: 445.52 | L172: 435.25 | M172: 423.85 | N172: 922900 | O172: -1.18%
A173: 163 | B173: Power | C173: RPOWER | D173: 28.10 | E173: 28.30 | F173: 27.75 | G173: 27.40 | H173: 26.85 | I173: 28.65 | J173: 29.20 | K173: 29.55 | L173: 28.85 | M173: 27.95 | N173: 53584000 | O173: 1.24%
A174: 164 | B174: Metals | C174: SAIL | D174: 49.35 | E174: 49.63 | F174: 48.87 | G174: 48.38 | H174: 47.62 | I174: 50.12 | J174: 50.88 | K174: 51.37 | L174: 50.4 | M174: 49.15 | N174: 98616000 | O174: 2.25%
A175: 165 | B175: Banking | C175: SBIN | D175: 293.05 | E175: 294.27 | F175: 290.88 | G175: 288.72 | H175: 285.33 | I175: 296.43 | J175: 299.82 | K175: 301.98 | L175: 297.65 | M175: 292.1 | N175: 83121000 | O175: 1.72%
A176: 166 | B176: Cement | C176: SHREECEM | D176: 15731.20 | E176: 15657.07 | F176: 15524.13 | G176: 15317.07 | H176: 15184.13 | I176: 15864.13 | J176: 15997.07 | K176: 16204.13 | L176: 15790 | M176: 15450 | N176: 92950 | O176: 2.20%
A177: 167 | B177: Capital_Goods | C177: SIEMENS | D177: 1039.85 | E177: 1043.17 | F177: 1032.33 | G177: 1024.82 | H177: 1013.98 | I177: 1050.68 | J177: 1061.52 | K177: 1069.03 | L177: 1054 | M177: 1035.65 | N177: 1889800 | O177: -0.66%
A178: 168 | B178: Banking | C178: SOUTHBANK | D178: 14.25 | E178: 14.40 | F178: 14.00 | G178: 13.75 | H178: 13.35 | I178: 14.65 | J178: 15.05 | K178: 15.30 | L178: 14.8 | M178: 14.15 | N178: 179856207 | O178: 3.37%
A179: 169 | B179: Others | C179: SREINFRA | D179: 34.85 | E179: 34.77 | F179: 33.48 | G179: 32.12 | H179: 30.83 | I179: 36.13 | J179: 37.42 | K179: 38.78 | L179: 36.05 | M179: 33.4 | N179: 18336000 | O179: 13.44%
A180: 170 | B180: Textile | C180: SRF | D180: 2038.15 | E180: 2050.72 | F180: 2013.43 | G180: 1988.72 | H180: 1951.43 | I180: 2075.43 | J180: 2112.72 | K180: 2137.43 | L180: 2088 | M180: 2026 | N180: 817500 | O180: -3.48%
A181: 171 | B181: Finance | C181: SRTRANSFIN | D181: 1116.85 | E181: 1121.45 | F181: 1105.80 | G181: 1094.75 | H181: 1079.10 | I181: 1132.50 | J181: 1148.15 | K181: 1159.20 | L181: 1137.1 | M181: 1110.4 | N181: 4432200 | O181: 3.66%
A182: 172 | B182: Pharma | C182: STAR | D182: 515.90 | E182: 519.17 | F182: 510.33 | G182: 504.77 | H182: 495.93 | I182: 524.73 | J182: 533.57 | K182: 539.13 | L182: 528 | M182: 513.6 | N182: 4591400 | O182: -1.02%
A183: 173 | B183: Pharma | C183: SUNPHARMA | D183: 399.85 | E183: 399.65 | F183: 391.35 | G183: 382.85 | H183: 374.55 | I183: 408.15 | J183: 416.45 | K183: 424.95 | L183: 407.95 | M183: 391.15 | N183: 68918300 | O183: 9.67%
A184: 174 | B184: Media | C184: SUNTV | D184: 513.95 | E184: 520.85 | F184: 504.40 | G184: 494.85 | H184: 478.40 | I184: 530.40 | J184: 546.85 | K184: 556.40 | L184: 537.3 | M184: 511.3 | N184: 8593000 | O184: -0.27%
A185: 175 | B185: Power | C185: SUZLON | D185: 5.30 | E185: 5.28 | F185: 5.27 | G185: 5.23 | H185: 5.22 | I185: 5.32 | J185: 5.33 | K185: 5.37 | L185: 5.3 | M185: 5.25 | N185: 337896000 | O185: 1.62%
A186: 176 | B186: Banking | C186: SYNDIBANK | D186: 37.25 | E186: 37.45 | F186: 36.75 | G186: 36.25 | H186: 35.55 | I186: 37.95 | J186: 38.65 | K186: 39.15 | L186: 38.15 | M186: 36.95 | N186: 25050000 | O186: -2.22%
A187: 177 | B187: Fertilisers | C187: TATACHEM | D187: 689.20 | E187: 691.27 | F187: 684.33 | G187: 679.47 | H187: 672.53 | I187: 696.13 | J187: 703.07 | K187: 707.93 | L187: 698.2 | M187: 686.4 | N187: 2583000 | O187: -0.95%
A188: 178 | B188: Telecom | C188: TATACOMM | D188: 514.05 | E188: 516.63 | F188: 509.12 | G188: 504.18 | H188: 496.67 | I188: 521.57 | J188: 529.08 | K188: 534.02 | L188: 524.15 | M188: 511.7 | N188: 2617000 | O188: 0.81%
A189: 179 | B189: Technology | C189: TATAELXSI | D189: 965.60 | E189: 970.50 | F189: 956.10 | G189: 946.60 | H189: 932.20 | I189: 980.00 | J189: 994.40 | K189: 1003.90 | L189: 984.9 | M189: 961 | N189: 1608000 | O189: -1.59%
A190: 180 | B190: FMCG | C190: TATAGLOBAL | D190: 210.75 | E190: 212.60 | F190: 208.15 | G190: 205.55 | H190: 201.10 | I190: 215.20 | J190: 219.65 | K190: 222.25 | L190: 217.05 | M190: 210 | N190: 9897750 | O190: 4.09%
A191: 181 | B191: Automobile | C191: TATAMOTORS | D191: 182.10 | E191: 182.83 | F191: 180.12 | G191: 178.13 | H191: 175.42 | I191: 184.82 | J191: 187.53 | K191: 189.52 | L191: 185.55 | M191: 180.85 | N191: 63956000 | O191: -0.38%
A192: 182 | B192: Automobile | C192: TATAMTRDVR | D192: 96.20 | E192: 96.63 | F192: 95.22 | G192: 94.23 | H192: 92.82 | I192: 97.62 | J192: 99.03 | K192: 100.02 | L192: 98.05 | M192: 95.65 | N192: 31144800 | O192: -0.39%
A193: 183 | B193: Power | C193: TATAPOWER | D193: 75.95 | E193: 76.28 | F193: 75.27 | G193: 74.58 | H193: 73.57 | I193: 76.97 | J193: 77.98 | K193: 78.67 | L193: 77.3 | M193: 75.6 | N193: 43965000 | O193: -2.77%
A194: 184 | B194: Metals | C194: TATASTEEL | D194: 472.90 | E194: 474.58 | F194: 469.67 | G194: 466.43 | H194: 461.52 | I194: 477.82 | J194: 482.73 | K194: 485.97 | L194: 479.5 | M194: 471.35 | N194: 42091992 | O194: -0.25%
A195: 185 | B195: Technology | C195: TCS | D195: 1909.00 | E195: 1913.42 | F195: 1892.88 | G195: 1876.77 | H195: 1856.23 | I195: 1929.53 | J195: 1950.07 | K195: 1966.18 | L195: 1933.95 | M195: 1897.3 | N195: 14649750 | O195: -0.76%
A196: 186 | B196: Technology | C196: TECHM | D196: 713.95 | E196: 715.42 | F196: 708.53 | G196: 703.12 | H196: 696.23 | I196: 720.83 | J196: 727.72 | K196: 733.13 | L196: 722.3 | M196: 710 | N196: 11803200 | O196: -2.03%
A197: 187 | B197: FMCG | C197: TITAN | D197: 964.55 | E197: 963.32 | F197: 959.63 | G197: 954.72 | H197: 951.03 | I197: 968.23 | J197: 971.92 | K197: 976.83 | L197: 967 | M197: 958.4 | N197: 14101500 | O197: -0.50%
A198: 188 | B198: Pharma | C198: TORNTPHARM | D198: 1882.95 | E198: 1891.10 | F198: 1865.85 | G198: 1848.75 | H198: 1823.50 | I198: 1908.20 | J198: 1933.45 | K198: 1950.55 | L198: 1916.35 | M198: 1874 | N198: 589500 | O198: -7.75%
A199: 189 | B199: Power | C199: TORNTPOWER | D199: 259.15 | E199: 260.75 | F199: 256.75 | G199: 254.35 | H199: 250.35 | I199: 263.15 | J199: 267.15 | K199: 269.55 | L199: 264.75 | M199: 258.35 | N199: 2544000 | O199: 3.41%
A200: 190 | B200: Media | C200: TV18BRDCST | D200: 34.20 | E200: 34.25 | F200: 33.80 | G200: 33.40 | H200: 32.95 | I200: 34.65 | J200: 35.10 | K200: 35.50 | L200: 34.7 | M200: 33.85 | N200: 62738000 | O200: -0.43%
A201: 191 | B201: Automobile | C201: TVSMOTOR | D201: 538.20 | E201: 536.33 | F201: 532.72 | G201: 527.23 | H201: 523.62 | I201: 541.82 | J201: 545.43 | K201: 550.92 | L201: 539.95 | M201: 530.85 | N201: 4601000 | O201: -0.63%
A202: 192 | B202: FMCG | C202: UBL | D202: 1483.15 | E202: 1462.98 | F202: 1438.02 | G202: 1392.88 | H202: 1367.92 | I202: 1508.12 | J202: 1533.08 | K202: 1578.22 | L202: 1487.95 | M202: 1417.85 | N202: 2597700 | O202: 1.95%
A203: 193 | B203: Finance | C203: UJJIVAN | D203: 286.15 | E203: 287.25 | F203: 282.90 | G203: 279.65 | H203: 275.30 | I203: 290.50 | J203: 294.85 | K203: 298.10 | L203: 291.6 | M203: 284 | N203: 4252800 | O203: -0.82%
A204: 194 | B204: Cement | C204: ULTRACEMCO | D204: 3849.95 | E204: 3835.67 | F204: 3804.33 | G204: 3758.72 | H204: 3727.38 | I204: 3881.28 | J204: 3912.62 | K204: 3958.23 | L204: 3867 | M204: 3790.05 | N204: 2070800 | O204: 1.89%
A205: 195 | B205: Banking | C205: UNIONBANK | D205: 86.15 | E205: 88.32 | F205: 82.88 | G205: 79.62 | H205: 74.18 | I205: 91.58 | J205: 97.02 | K205: 100.28 | L205: 93.75 | M205: 85.05 | N205: 41895000 | O205: 10.32%
A206: 196 | B206: Fertilisers | C206: UPL | D206: 769.00 | E206: 767.17 | F206: 759.93 | G206: 750.87 | H206: 743.63 | I206: 776.23 | J206: 783.47 | K206: 792.53 | L206: 774.4 | M206: 758.1 | N206: 17040000 | O206: 1.47%
... 22 more rows

Sheet Cash Intra
M5: Back to Main Page
A6: FOR INTRA DAY TRADING | K6: =Main!B10 -> 2019-01-22
A8: Sr.no | B8: Scrip | C8: CLOSE RATE | D8: Pivot Point | E8: Supports | H8: Resistances
C9: Point | E9: S1 | F9: S2 | G9: S3 | H9: R1 | I9: R2 | J9: R3 | K9: HIGH | L9: LOW | M9: Total Trade Quanity in Lakhs
A10: 1 | B10: Nifty 50 | C10: 10961.85 | D10: 10945.02 | E10: 10902.58 | F10: 10843.32 | G10: 10800.88 | H10: 11004.28 | I10: 11046.72 | J10: 11105.98 | K10: 10987.45 | L10: 10885.75
A11: 2 | B11: Nifty Bank | C11: 27533.6 | D11: 27514.77 | E11: 27407.33 | F11: 27281.07 | G11: 27173.63 | H11: 27641.03 | I11: 27748.47 | J11: 27874.73 | K11: 27622.2 | L11: 27388.5
A12: 3 | B12: Nifty CPSE | C12: 2006 | D12: 2014.25 | E12: 1992.70 | F12: 1979.40 | G12: 1957.85 | H12: 2027.55 | I12: 2049.10 | J12: 2062.40 | K12: 2035.8 | L12: 2000.95
A13: 4 | B13: Nifty Infra | C13: 3035.15 | D13: 3041.12 | E13: 3016.48 | F13: 2997.82 | G13: 2973.18 | H13: 3059.78 | I13: 3084.42 | J13: 3103.08 | K13: 3065.75 | L13: 3022.45
A14: 5 | B14: Nifty IT | C14: 14966.4 | D14: 14972.20 | E14: 14844.20 | F14: 14722.00 | G14: 14594.00 | H14: 15094.40 | I14: 15222.40 | J14: 15344.60 | K14: 15100.2 | L14: 14850
A15: 6 | B15: Nifty PSE | C15: 3254.7 | D15: 3263.70 | E15: 3239.50 | F15: 3224.30 | G15: 3200.10 | H15: 3278.90 | I15: 3303.10 | J15: 3318.30 | K15: 3287.9 | L15: 3248.5
A16: 7 | B16: Nifty Midcap 50 | C16: 4828.3 | D16: 4841.53 | E16: 4804.57 | F16: 4780.83 | G16: 4743.87 | H16: 4865.27 | I16: 4902.23 | J16: 4925.97 | K16: 4878.5 | L16: 4817.8
A17: 8 | B17: ABB | C17: 1281.1 | D17: 1286.37 | E17: 1269.73 | F17: 1258.37 | G17: 1241.73 | H17: 1297.73 | I17: 1314.37 | J17: 1325.73 | K17: 1303 | L17: 1275 | M17: 2.22935
A18: 9 | B18: ACC | C18: 1429.3 | D18: 1434.23 | E18: 1418.92 | F18: 1408.53 | G18: 1393.22 | H18: 1444.62 | I18: 1459.93 | J18: 1470.32 | K18: 1449.55 | L18: 1423.85 | M18: 3.49933
A19: 10 | B19: AIAENG | C19: 1661.85 | D19: 1678.95 | E19: 1632.90 | F19: 1603.95 | G19: 1557.90 | H19: 1707.90 | I19: 1753.95 | J19: 1782.90 | K19: 1725 | L19: 1650 | M19: 0.35425
A20: 11 | B20: AUBANK | C20: 608.7 | D20: 612.53 | E20: 603.17 | F20: 597.63 | G20: 588.27 | H20: 618.07 | I20: 627.43 | J20: 632.97 | K20: 621.9 | L20: 607 | M20: 3.59668
A21: 12 | B21: ADANIENT | C21: 145.95 | D21: 146.07 | E21: 144.13 | F21: 142.32 | G21: 140.38 | H21: 147.88 | I21: 149.82 | J21: 151.63 | K21: 148 | L21: 144.25 | M21: 17.63205
A22: 13 | B22: ADANIPORTS | C22: 396.2 | D22: 397.00 | E22: 391.30 | F22: 386.40 | G22: 380.70 | H22: 401.90 | I22: 407.60 | J22: 412.50 | K22: 402.7 | L22: 392.1 | M22: 25.63705
A23: 14 | B23: ADANIPOWER | C23: 49.8 | D23: 50.15 | E23: 48.90 | F23: 48.00 | G23: 46.75 | H23: 51.05 | I23: 52.30 | J23: 53.20 | K23: 51.4 | L23: 49.25 | M23: 131.43168
A24: 15 | B24: ABFRL | C24: 201.75 | D24: 202.62 | E24: 200.23 | F24: 198.72 | G24: 196.33 | H24: 204.13 | I24: 206.52 | J24: 208.03 | K24: 205 | L24: 201.1 | M24: 4.70057
A25: 16 | B25: AJANTPHARM | C25: 1145.3 | D25: 1145.50 | E25: 1138.50 | F25: 1131.70 | G25: 1124.70 | H25: 1152.30 | I25: 1159.30 | J25: 1166.10 | K25: 1152.5 | L25: 1138.7 | M25: 1.56511
A26: 17 | B26: ALKEM | C26: 1902.25 | D26: 1901.88 | E26: 1889.87 | F26: 1877.48 | G26: 1865.47 | H26: 1914.27 | I26: 1926.28 | J26: 1938.67 | K26: 1913.9 | L26: 1889.5 | M26: 0.11228
A27: 18 | B27: AMARAJABAT | C27: 776.7 | D27: 780.03 | E27: 768.57 | F27: 760.43 | G27: 748.97 | H27: 788.17 | I27: 799.63 | J27: 807.77 | K27: 791.5 | L27: 771.9 | M27: 5.22569
A28: 19 | B28: AMBUJACEM | C28: 212.3 | D28: 212.77 | E28: 210.73 | F28: 209.17 | G28: 207.13 | H28: 214.33 | I28: 216.37 | J28: 217.93 | K28: 214.8 | L28: 211.2 | M28: 10.28461
A29: 20 | B29: APOLLOHOSP | C29: 1326.05 | D29: 1342.95 | E29: 1298.65 | F29: 1271.25 | G29: 1226.95 | H29: 1370.35 | I29: 1414.65 | J29: 1442.05 | K29: 1387.25 | L29: 1315.55 | M29: 12.93001
A30: 21 | B30: APOLLOTYRE | C30: 216.6 | D30: 217.23 | E30: 214.87 | F30: 213.13 | G30: 210.77 | H30: 218.97 | I30: 221.33 | J30: 223.07 | K30: 219.6 | L30: 215.5 | M30: 9.1569
A31: 22 | B31: ARVIND | C31: 92.35 | D31: 92.72 | E31: 91.43 | F31: 90.52 | G31: 89.23 | H31: 93.63 | I31: 94.92 | J31: 95.83 | K31: 94 | L31: 91.8 | M31: 8.68693
A32: 23 | B32: ASHOKLEY | C32: 90.6 | D32: 91.18 | E32: 89.77 | F32: 88.93 | G32: 87.52 | H32: 92.02 | I32: 93.43 | J32: 94.27 | K32: 92.6 | L32: 90.35 | M32: 113.61469
A33: 24 | B33: ASIANPAINT | C33: 1422.1 | D33: 1414.03 | E33: 1403.27 | F33: 1384.43 | G33: 1373.67 | H33: 1432.87 | I33: 1443.63 | J33: 1462.47 | K33: 1424.8 | L33: 1395.2 | M33: 25.13582
A34: 25 | B34: AUROPHARMA | C34: 776.2 | D34: 776.07 | E34: 767.33 | F34: 758.47 | G34: 749.73 | H34: 784.93 | I34: 793.67 | J34: 802.53 | K34: 784.8 | L34: 767.2 | M34: 16.40124
A35: 26 | B35: DMART | C35: 1351.3 | D35: 1361.10 | E35: 1333.20 | F35: 1315.10 | G35: 1287.20 | H35: 1379.20 | I35: 1407.10 | J35: 1425.20 | K35: 1389 | L35: 1343 | M35: 4.34508
A36: 27 | B36: AXISBANK | C36: 660.3 | D36: 660.43 | E36: 656.37 | F36: 652.43 | G36: 648.37 | H36: 664.37 | I36: 668.43 | J36: 672.37 | K36: 664.5 | L36: 656.5 | M36: 61.57956
A37: 28 | B37: BAJAJ-AUTO | C37: 2684.6 | D37: 2693.12 | E37: 2661.48 | F37: 2638.37 | G37: 2606.73 | H37: 2716.23 | I37: 2747.87 | J37: 2770.98 | K37: 2724.75 | L37: 2670 | M37: 3.03893
A38: 29 | B38: BAJFINANCE | C38: 2594.2 | D38: 2575.60 | E38: 2545.20 | F38: 2496.20 | G38: 2465.80 | H38: 2624.60 | I38: 2655.00 | J38: 2704.00 | K38: 2606 | L38: 2526.6 | M38: 13.32159
A39: 30 | B39: BAJAJFINSV | C39: 6384.55 | D39: 6331.88 | E39: 6263.77 | F39: 6142.98 | G39: 6074.87 | H39: 6452.67 | I39: 6520.78 | J39: 6641.57 | K39: 6400 | L39: 6211.1 | M39: 1.77176
A40: 31 | B40: BALKRISIND | C40: 868.4 | D40: 868.82 | E40: 862.13 | F40: 855.87 | G40: 849.18 | H40: 875.08 | I40: 881.77 | J40: 888.03 | K40: 875.5 | L40: 862.55 | M40: 2.019
A41: 32 | B41: BANKBARODA | C41: 116.45 | D41: 117.12 | E41: 115.13 | F41: 113.82 | G41: 111.83 | H41: 118.43 | I41: 120.42 | J41: 121.73 | K41: 119.1 | L41: 115.8 | M41: 84.81086
A42: 33 | B42: BANKINDIA | C42: 100.65 | D42: 101.63 | E42: 98.67 | F42: 96.68 | G42: 93.72 | H42: 103.62 | I42: 106.58 | J42: 108.57 | K42: 104.6 | L42: 99.65 | M42: 81.68459
A43: 34 | B43: BATAINDIA | C43: 1147.55 | D43: 1150.22 | E43: 1140.53 | F43: 1133.52 | G43: 1123.83 | H43: 1157.23 | I43: 1166.92 | J43: 1173.93 | K43: 1159.9 | L43: 1143.2 | M43: 3.11638
A44: 35 | B44: BERGEPAINT | C44: 322.1 | D44: 323.88 | E44: 317.17 | F44: 312.23 | G44: 305.52 | H44: 328.82 | I44: 335.53 | J44: 340.47 | K44: 330.6 | L44: 318.95 | M44: 20.238
A45: 36 | B45: BEL | C45: 86.5 | D45: 86.60 | E45: 85.60 | F45: 84.70 | G45: 83.70 | H45: 87.50 | I45: 88.50 | J45: 89.40 | K45: 87.6 | L45: 85.7 | M45: 30.5058
A46: 37 | B46: BHARATFIN | C46: 951.1 | D46: 952.10 | E46: 944.20 | F46: 937.30 | G46: 929.40 | H46: 959.00 | I46: 966.90 | J46: 973.80 | K46: 960 | L46: 945.2 | M46: 1.75173
A47: 38 | B47: BHARATFORG | C47: 478.65 | D47: 479.10 | E47: 474.25 | F47: 469.85 | G47: 465.00 | H47: 483.50 | I47: 488.35 | J47: 492.75 | K47: 483.95 | L47: 474.7 | M47: 11.40253
A48: 39 | B48: BHEL | C48: 70.95 | D48: 71.30 | E48: 70.35 | F48: 69.75 | G48: 68.80 | H48: 71.90 | I48: 72.85 | J48: 73.45 | K48: 72.25 | L48: 70.7 | M48: 103.4103
A49: 40 | B49: BPCL | C49: 351.55 | D49: 351.85 | E49: 348.00 | F49: 344.45 | G49: 340.60 | H49: 355.40 | I49: 359.25 | J49: 362.80 | K49: 355.7 | L49: 348.3 | M49: 19.42818
A50: 41 | B50: BHARTIARTL | C50: 311.35 | D50: 310.95 | E50: 306.40 | F50: 301.45 | G50: 296.90 | H50: 315.90 | I50: 320.45 | J50: 325.40 | K50: 315.5 | L50: 306 | M50: 77.69963
A51: 42 | B51: INFRATEL | C51: 277.8 | D51: 276.10 | E51: 272.35 | F51: 266.90 | G51: 263.15 | H51: 281.55 | I51: 285.30 | J51: 290.75 | K51: 279.85 | L51: 270.65 | M51: 24.21296
A52: 43 | B52: BIOCON | C52: 663 | D52: 662.87 | E52: 654.43 | F52: 645.87 | G52: 637.43 | H52: 671.43 | I52: 679.87 | J52: 688.43 | K52: 671.3 | L52: 654.3 | M52: 18.26408
A53: 44 | B53: BOSCHLTD | C53: 19046 | D53: 19111.65 | E53: 18948.85 | F53: 18851.70 | G53: 18688.90 | H53: 19208.80 | I53: 19371.60 | J53: 19468.75 | K53: 19274.45 | L53: 19014.5 | M53: 0.05432
A54: 45 | B54: BRITANNIA | C54: 3148.4 | D54: 3161.15 | E54: 3123.75 | F54: 3099.10 | G54: 3061.70 | H54: 3185.80 | I54: 3223.20 | J54: 3247.85 | K54: 3198.55 | L54: 3136.5 | M54: 1.7471
A55: 46 | B55: CRISIL | C55: 1633.6 | D55: 1643.62 | E55: 1619.98 | F55: 1606.37 | G55: 1582.73 | H55: 1657.23 | I55: 1680.87 | J55: 1694.48 | K55: 1667.25 | L55: 1630 | M55: 0.01487
A56: 47 | B56: CADILAHC | C56: 344.6 | D56: 346.62 | E56: 341.53 | F56: 338.47 | G56: 333.38 | H56: 349.68 | I56: 354.77 | J56: 357.83 | K56: 351.7 | L56: 343.55 | M56: 7.86496
A57: 48 | B57: CANBK | C57: 268 | D57: 269.97 | E57: 263.43 | F57: 258.87 | G57: 252.33 | H57: 274.53 | I57: 281.07 | J57: 285.63 | K57: 276.5 | L57: 265.4 | M57: 33.86812
A58: 49 | B58: CASTROLIND | C58: 166.05 | D58: 166.22 | E58: 164.53 | F58: 163.02 | G58: 161.33 | H58: 167.73 | I58: 169.42 | J58: 170.93 | K58: 167.9 | L58: 164.7 | M58: 10.51563
A59: 50 | B59: CENTRALBK | C59: 31.95 | D59: 32.80 | E59: 30.65 | F59: 29.35 | G59: 27.20 | H59: 34.10 | I59: 36.25 | J59: 37.55 | K59: 34.95 | L59: 31.5 | M59: 8.79783
A60: 51 | B60: CENTURYTEX | C60: 885.6 | D60: 884.05 | E60: 877.15 | F60: 868.70 | G60: 861.80 | H60: 892.50 | I60: 899.40 | J60: 907.85 | K60: 890.95 | L60: 875.6 | M60: 2.31324
A61: 52 | B61: CHOLAFIN | C61: 1170.5 | D61: 1173.60 | E61: 1162.90 | F61: 1155.30 | G61: 1144.60 | H61: 1181.20 | I61: 1191.90 | J61: 1199.50 | K61: 1184.3 | L61: 1166 | M61: 1.45084
A62: 53 | B62: CIPLA | C62: 509.25 | D62: 510.55 | E62: 506.90 | F62: 504.55 | G62: 500.90 | H62: 512.90 | I62: 516.55 | J62: 518.90 | K62: 514.2 | L62: 508.2 | M62: 11.5038
A63: 54 | B63: COALINDIA | C63: 229 | D63: 229.47 | E63: 227.68 | F63: 226.37 | G63: 224.58 | H63: 230.78 | I63: 232.57 | J63: 233.88 | K63: 231.25 | L63: 228.15 | M63: 19.04575
A64: 55 | B64: COLPAL | C64: 1313.25 | D64: 1316.03 | E64: 1308.52 | F64: 1303.78 | G64: 1296.27 | H64: 1320.77 | I64: 1328.28 | J64: 1333.02 | K64: 1323.55 | L64: 1311.3 | M64: 2.60338
A65: 56 | B65: CONCOR | C65: 665 | D65: 671.45 | E65: 655.20 | F65: 645.40 | G65: 629.15 | H65: 681.25 | I65: 697.50 | J65: 707.30 | K65: 687.7 | L65: 661.65 | M65: 10.60758
A66: 57 | B66: COROMANDEL | C66: 440.15 | D66: 441.38 | E66: 428.77 | F66: 417.38 | G66: 404.77 | H66: 452.77 | I66: 465.38 | J66: 476.77 | K66: 454 | L66: 430 | M66: 1.11613
A67: 58 | B67: CROMPTON | C67: 222.6 | D67: 224.35 | E67: 218.40 | F67: 214.20 | G67: 208.25 | H67: 228.55 | I67: 234.50 | J67: 238.70 | K67: 230.3 | L67: 220.15 | M67: 2.46597
A68: 59 | B68: CUMMINSIND | C68: 838.8 | D68: 841.25 | E68: 830.00 | F68: 821.20 | G68: 809.95 | H68: 850.05 | I68: 861.30 | J68: 870.10 | K68: 852.5 | L68: 832.45 | M68: 2.75328
A69: 60 | B69: DLF | C69: 177.25 | D69: 178.52 | E69: 174.93 | F69: 172.62 | G69: 169.03 | H69: 180.83 | I69: 184.42 | J69: 186.73 | K69: 182.1 | L69: 176.2 | M69: 33.61204
A70: 61 | B70: DABUR | C70: 428.15 | D70: 428.68 | E70: 423.62 | F70: 419.08 | G70: 414.02 | H70: 433.22 | I70: 438.28 | J70: 442.82 | K70: 433.75 | L70: 424.15 | M70: 22.35926
A71: 62 | B71: DHFL | C71: 211.8 | D71: 213.35 | E71: 208.75 | F71: 205.70 | G71: 201.10 | H71: 216.40 | I71: 221.00 | J71: 224.05 | K71: 217.95 | L71: 210.3 | M71: 36.64959
A72: 63 | B72: DISHTV | C72: 34.75 | D72: 34.68 | E72: 33.62 | F72: 32.48 | G72: 31.42 | H72: 35.82 | I72: 36.88 | J72: 38.02 | K72: 35.75 | L72: 33.55 | M72: 115.46832
A73: 64 | B73: DIVISLAB | C73: 1497.2 | D73: 1503.00 | E73: 1487.85 | F73: 1478.50 | G73: 1463.35 | H73: 1512.35 | I73: 1527.50 | J73: 1536.85 | K73: 1518.15 | L73: 1493.65 | M73: 3.51617
A74: 65 | B74: LALPATHLAB | C74: 1018.8 | D74: 1027.43 | E74: 1000.27 | F74: 981.73 | G74: 954.57 | H74: 1045.97 | I74: 1073.13 | J74: 1091.67 | K74: 1054.6 | L74: 1008.9 | M74: 0.68932
A75: 66 | B75: DRREDDY | C75: 2599.8 | D75: 2607.87 | E75: 2573.73 | F75: 2547.67 | G75: 2513.53 | H75: 2633.93 | I75: 2668.07 | J75: 2694.13 | K75: 2642 | L75: 2581.8 | M75: 5.95064
A76: 67 | B76: EDELWEISS | C76: 164.85 | D76: 165.83 | E76: 163.27 | F76: 161.68 | G76: 159.12 | H76: 167.42 | I76: 169.98 | J76: 171.57 | K76: 168.4 | L76: 164.25 | M76: 5.39286
A77: 68 | B77: EICHERMOT | C77: 20028 | D77: 20091.90 | E77: 19885.85 | F77: 19743.70 | G77: 19537.65 | H77: 20234.05 | I77: 20440.10 | J77: 20582.25 | K77: 20297.95 | L77: 19949.75 | M77: 0.95038
A78: 69 | B78: EMAMILTD | C78: 427.55 | D78: 430.22 | E78: 420.13 | F78: 412.72 | G78: 402.63 | H78: 437.63 | I78: 447.72 | J78: 455.13 | K78: 440.3 | L78: 422.8 | M78: 0.54465
A79: 70 | B79: ENDURANCE | C79: 1157 | D79: 1159.57 | E79: 1145.13 | F79: 1133.27 | G79: 1118.83 | H79: 1171.43 | I79: 1185.87 | J79: 1197.73 | K79: 1174 | L79: 1147.7 | M79: 0.18548
A80: 71 | B80: ENGINERSIN | C80: 115.7 | D80: 116.13 | E80: 114.67 | F80: 113.63 | G80: 112.17 | H80: 117.17 | I80: 118.63 | J80: 119.67 | K80: 117.6 | L80: 115.1 | M80: 9.35417
A81: 72 | B81: EXIDEIND | C81: 244.05 | D81: 244.65 | E81: 242.30 | F81: 240.55 | G81: 238.20 | H81: 246.40 | I81: 248.75 | J81: 250.50 | K81: 247 | L81: 242.9 | M81: 11.30005
A82: 73 | B82: FEDERALBNK | C82: 88.7 | D82: 89.30 | E82: 87.80 | F82: 86.90 | G82: 85.40 | H82: 90.20 | I82: 91.70 | J82: 92.60 | K82: 90.8 | L82: 88.4 | M82: 84.80926
A83: 74 | B83: GAIL | C83: 327.8 | D83: 325.72 | E83: 322.53 | F83: 317.27 | G83: 314.08 | H83: 330.98 | I83: 334.17 | J83: 339.43 | K83: 328.9 | L83: 320.45 | M83: 33.04639
A84: 75 | B84: GMRINFRA | C84: 16.05 | D84: 16.13 | E84: 15.92 | F84: 15.78 | G84: 15.57 | H84: 16.27 | I84: 16.48 | J84: 16.62 | K84: 16.35 | L84: 16 | M84: 56.51419
A85: 76 | B85: GSKCONS | C85: 7213 | D85: 7237.68 | E85: 7175.32 | F85: 7137.63 | G85: 7075.27 | H85: 7275.37 | I85: 7337.73 | J85: 7375.42 | K85: 7300.05 | L85: 7200 | M85: 0.16908
A86: 77 | B86: GLAXO | C86: 1404.8 | D86: 1409.30 | E86: 1393.50 | F86: 1382.20 | G86: 1366.40 | H86: 1420.60 | I86: 1436.40 | J86: 1447.70 | K86: 1425.1 | L86: 1398 | M86: 0.11513
A87: 78 | B87: GLENMARK | C87: 646.1 | D87: 645.98 | E87: 637.22 | F87: 628.33 | G87: 619.57 | H87: 654.87 | I87: 663.63 | J87: 672.52 | K87: 654.75 | L87: 637.1 | M87: 7.96703
A88: 79 | B88: GODREJCP | C88: 784.35 | D88: 790.05 | E88: 775.65 | F88: 766.95 | G88: 752.55 | H88: 798.75 | I88: 813.15 | J88: 821.85 | K88: 804.45 | L88: 781.35 | M88: 7.89707
A89: 80 | B89: GODREJIND | C89: 524.65 | D89: 525.58 | E89: 521.47 | F89: 518.28 | G89: 514.17 | H89: 528.77 | I89: 532.88 | J89: 536.07 | K89: 529.7 | L89: 522.4 | M89: 1.12415
A90: 81 | B90: GRUH | C90: 226.8 | D90: 228.75 | E90: 224.05 | F90: 221.30 | G90: 216.60 | H90: 231.50 | I90: 236.20 | J90: 238.95 | K90: 233.45 | L90: 226 | M90: 33.99516
A91: 82 | B91: GPPL | C91: 89.85 | D91: 90.82 | E91: 88.23 | F91: 86.62 | G91: 84.03 | H91: 92.43 | I91: 95.02 | J91: 96.63 | K91: 93.4 | L91: 89.2 | M91: 14.09383
A92: 83 | B92: GSPL | C92: 177.65 | D92: 178.52 | E92: 173.33 | F92: 169.02 | G92: 163.83 | H92: 182.83 | I92: 188.02 | J92: 192.33 | K92: 183.7 | L92: 174.2 | M92: 6.76877
A93: 84 | B93: HCLTECH | C93: 965.75 | D93: 969.77 | E93: 958.03 | F93: 950.32 | G93: 938.58 | H93: 977.48 | I93: 989.22 | J93: 996.93 | K93: 981.5 | L93: 962.05 | M93: 16.32709
A94: 85 | B94: HDFCBANK | C94: 2148.15 | D94: 2147.05 | E94: 2127.60 | F94: 2107.05 | G94: 2087.60 | H94: 2167.60 | I94: 2187.05 | J94: 2207.60 | K94: 2166.5 | L94: 2126.5 | M94: 43.90378
A95: 86 | B95: HAVELLS | C95: 677.7 | D95: 678.75 | E95: 671.95 | F95: 666.20 | G95: 659.40 | H95: 684.50 | I95: 691.30 | J95: 697.05 | K95: 685.55 | L95: 673 | M95: 8.13364
A96: 87 | B96: HEROMOTOCO | C96: 2794.25 | D96: 2828.03 | E96: 2746.22 | F96: 2698.18 | G96: 2616.37 | H96: 2876.07 | I96: 2957.88 | J96: 3005.92 | K96: 2909.85 | L96: 2780 | M96: 6.28463
A97: 88 | B97: HEXAWARE | C97: 325.85 | D97: 328.08 | E97: 321.67 | F97: 317.48 | G97: 311.07 | H97: 332.27 | I97: 338.68 | J97: 342.87 | K97: 334.5 | L97: 323.9 | M97: 14.23898
A98: 89 | B98: HINDALCO | C98: 207.65 | D98: 207.55 | E98: 205.20 | F98: 202.75 | G98: 200.40 | H98: 210.00 | I98: 212.35 | J98: 214.80 | K98: 209.9 | L98: 205.1 | M98: 48.83723
A99: 90 | B99: HINDPETRO | C99: 238.65 | D99: 239.08 | E99: 236.27 | F99: 233.88 | G99: 231.07 | H99: 241.47 | I99: 244.28 | J99: 246.67 | K99: 241.9 | L99: 236.7 | M99: 21.84129
A100: 91 | B100: HINDUNILVR | C100: 1746.9 | D100: 1746.98 | E100: 1735.97 | F100: 1725.03 | G100: 1714.02 | H100: 1757.92 | I100: 1768.93 | J100: 1779.87 | K100: 1758 | L100: 1736.05 | M100: 16.28067
A101: 92 | B101: HINDZINC | C101: 267.55 | D101: 268.97 | E101: 263.03 | F101: 258.52 | G101: 252.58 | H101: 273.48 | I101: 279.42 | J101: 283.93 | K101: 274.9 | L101: 264.45 | M101: 20.89372
A102: 93 | B102: HUDCO | C102: 45.15 | D102: 45.22 | E102: 42.93 | F102: 40.72 | G102: 38.43 | H102: 47.43 | I102: 49.72 | J102: 51.93 | K102: 47.5 | L102: 43 | M102: 84.28241
A103: 94 | B103: HDFC | C103: 2004.45 | D103: 2001.22 | E103: 1986.43 | F103: 1968.42 | G103: 1953.63 | H103: 2019.23 | I103: 2034.02 | J103: 2052.03 | K103: 2016 | L103: 1983.2 | M103: 21.46668
A104: 95 | B104: ITC | C104: 289.9 | D104: 290.60 | E104: 288.00 | F104: 286.10 | G104: 283.50 | H104: 292.50 | I104: 295.10 | J104: 297.00 | K104: 293.2 | L104: 288.7 | M104: 82.03333
A105: 96 | B105: ICICIBANK | C105: 371.7 | D105: 372.82 | E105: 369.48 | F105: 367.27 | G105: 363.93 | H105: 375.03 | I105: 378.37 | J105: 380.58 | K105: 376.15 | L105: 370.6 | M105: 89.08581
A106: 97 | B106: ICICIPRULI | C106: 351.65 | D106: 351.90 | E106: 348.30 | F106: 344.95 | G106: 341.35 | H106: 355.25 | I106: 358.85 | J106: 362.20 | K106: 355.5 | L106: 348.55 | M106: 7.82817
A107: 98 | B107: IDBI | C107: 56.35 | D107: 56.98 | E107: 55.42 | F107: 54.48 | G107: 52.92 | H107: 57.92 | I107: 59.48 | J107: 60.42 | K107: 58.55 | L107: 56.05 | M107: 52.99443
A108: 99 | B108: IDFCFIRSTB | C108: 46.4 | D108: 46.68 | E108: 45.82 | F108: 45.23 | G108: 44.37 | H108: 47.27 | I108: 48.13 | J108: 48.72 | K108: 47.55 | L108: 46.1 | M108: 127.56283
A109: 100 | B109: IDFC | C109: 42.05 | D109: 42.52 | E109: 41.38 | F109: 40.72 | G109: 39.58 | H109: 43.18 | I109: 44.32 | J109: 44.98 | K109: 43.65 | L109: 41.85 | M109: 24.12081
A110: 101 | B110: IRB | C110: 148.45 | D110: 148.78 | E110: 146.87 | F110: 145.28 | G110: 143.37 | H110: 150.37 | I110: 152.28 | J110: 153.87 | K110: 150.7 | L110: 147.2 | M110: 7.49225
A111: 102 | B111: IDEA | C111: 32.85 | D111: 33.57 | E111: 31.68 | F111: 30.52 | G111: 28.63 | H111: 34.73 | I111: 36.62 | J111: 37.78 | K111: 35.45 | L111: 32.4 | M111: 396.2937
A112: 103 | B112: IBULHSGFIN | C112: 804.8 | D112: 808.93 | E112: 796.87 | F112: 788.93 | G112: 776.87 | H112: 816.87 | I112: 828.93 | J112: 836.87 | K112: 821 | L112: 801 | M112: 20.052
A113: 104 | B113: INDIANB | C113: 243.6 | D113: 245.15 | E113: 240.30 | F113: 237.00 | G113: 232.15 | H113: 248.45 | I113: 253.30 | J113: 256.60 | K113: 250 | L113: 241.85 | M113: 15.32754
A114: 105 | B114: INDHOTEL | C114: 136.9 | D114: 136.87 | E114: 136.18 | F114: 135.47 | G114: 134.78 | H114: 137.58 | I114: 138.27 | J114: 138.98 | K114: 137.55 | L114: 136.15 | M114: 11.02881
A115: 106 | B115: IOC | C115: 135.65 | D115: 136.30 | E115: 134.80 | F115: 133.95 | G115: 132.45 | H115: 137.15 | I115: 138.65 | J115: 139.50 | K115: 137.8 | L115: 135.45 | M115: 51.91531
A116: 107 | B116: IGL | C116: 287.05 | D116: 285.25 | E116: 281.80 | F116: 276.55 | G116: 273.10 | H116: 290.50 | I116: 293.95 | J116: 299.20 | K116: 288.7 | L116: 280 | M116: 24.64315
A117: 108 | B117: INDUSINDBK | C117: 1507.6 | D117: 1507.50 | E117: 1497.10 | F117: 1486.60 | G117: 1476.20 | H117: 1518.00 | I117: 1528.40 | J117: 1538.90 | K117: 1517.9 | L117: 1497 | M117: 16.06142
A118: 109 | B118: NAUKRI | C118: 1544.7 | D118: 1560.57 | E118: 1491.13 | F118: 1437.57 | G118: 1368.13 | H118: 1614.13 | I118: 1683.57 | J118: 1737.13 | K118: 1630 | L118: 1507 | M118: 2.23229
A119: 110 | B119: INFY | C119: 745 | D119: 743.33 | E119: 735.67 | F119: 726.33 | G119: 718.67 | H119: 752.67 | I119: 760.33 | J119: 769.67 | K119: 751 | L119: 734 | M119: 81.29422
A120: 111 | B120: INDIGO | C120: 1062.95 | D120: 1065.90 | E120: 1052.40 | F120: 1041.85 | G120: 1028.35 | H120: 1076.45 | I120: 1089.95 | J120: 1100.50 | K120: 1079.4 | L120: 1055.35 | M120: 6.26146
A121: 112 | B121: IPCALAB | C121: 779.75 | D121: 778.58 | E121: 772.17 | F121: 764.58 | G121: 758.17 | H121: 786.17 | I121: 792.58 | J121: 800.17 | K121: 785 | L121: 771 | M121: 0.45881
A122: 113 | B122: JSWENERGY | C122: 67.95 | D122: 67.93 | E122: 67.42 | F122: 66.88 | G122: 66.37 | H122: 68.47 | I122: 68.98 | J122: 69.52 | K122: 68.45 | L122: 67.4 | M122: 2.61903
A123: 114 | B123: JSWSTEEL | C123: 284.6 | D123: 285.83 | E123: 282.72 | F123: 280.83 | G123: 277.72 | H123: 287.72 | I123: 290.83 | J123: 292.72 | K123: 288.95 | L123: 283.95 | M123: 28.54706
A124: 115 | B124: JINDALSTEL | C124: 144.3 | D124: 145.58 | E124: 142.07 | F124: 139.83 | G124: 136.32 | H124: 147.82 | I124: 151.33 | J124: 153.57 | K124: 149.1 | L124: 143.35 | M124: 78.96039
A125: 116 | B125: JUBLFOOD | C125: 1180.6 | D125: 1191.53 | E125: 1161.07 | F125: 1141.53 | G125: 1111.07 | H125: 1211.07 | I125: 1241.53 | J125: 1261.07 | K125: 1222 | L125: 1172 | M125: 19.50472
A126: 117 | B126: JUBILANT | C126: 704.1 | D126: 706.53 | E126: 699.57 | F126: 695.03 | G126: 688.07 | H126: 711.07 | I126: 718.03 | J126: 722.57 | K126: 713.5 | L126: 702 | M126: 0.93341
A127: 118 | B127: KARURVYSYA | C127: 92.05 | D127: 92.12 | E127: 91.28 | F127: 90.52 | G127: 89.68 | H127: 92.88 | I127: 93.72 | J127: 94.48 | K127: 92.95 | L127: 91.35 | M127: 5.86167
A128: 119 | B128: KOTAKBANK | C128: 1267.6 | D128: 1255.25 | E128: 1235.00 | F128: 1202.40 | G128: 1182.15 | H128: 1287.85 | I128: 1308.10 | J128: 1340.70 | K128: 1275.5 | L128: 1222.65 | M128: 97.85366
A129: 120 | B129: L&TFH | C129: 140.15 | D129: 139.95 | E129: 138.00 | F129: 135.85 | G129: 133.90 | H129: 142.10 | I129: 144.05 | J129: 146.20 | K129: 141.9 | L129: 137.8 | M129: 90.29314
A130: 121 | B130: LICHSGFIN | C130: 473.1 | D130: 474.35 | E130: 469.75 | F130: 466.40 | G130: 461.80 | H130: 477.70 | I130: 482.30 | J130: 485.65 | K130: 478.95 | L130: 471 | M130: 7.21691
A131: 122 | B131: LT | C131: 1314.55 | D131: 1308.42 | E131: 1279.58 | F131: 1244.62 | G131: 1215.78 | H131: 1343.38 | I131: 1372.22 | J131: 1407.18 | K131: 1337.25 | L131: 1273.45 | M131: 88.13681
A132: 123 | B132: LUPIN | C132: 866.65 | D132: 867.78 | E132: 855.87 | F132: 845.08 | G132: 833.17 | H132: 878.57 | I132: 890.48 | J132: 901.27 | K132: 879.7 | L132: 857 | M132: 17.1224
A133: 124 | B133: MRF | C133: 66126.1 | D133: 65975.35 | E133: 65651.75 | F133: 65177.40 | G133: 64853.80 | H133: 66449.70 | I133: 66773.30 | J133: 67247.65 | K133: 66298.95 | L133: 65501 | M133: 0.08009
A134: 125 | B134: MGL | C134: 906.6 | D134: 908.92 | E134: 898.93 | F134: 891.27 | G134: 881.28 | H134: 916.58 | I134: 926.57 | J134: 934.23 | K134: 918.9 | L134: 901.25 | M134: 2.14296
A135: 126 | B135: M&MFIN | C135: 443.5 | D135: 442.27 | E135: 438.03 | F135: 432.57 | G135: 428.33 | H135: 447.73 | I135: 451.97 | J135: 457.43 | K135: 446.5 | L135: 436.8 | M135: 6.01964
A136: 127 | B136: M&M | C136: 730.3 | D136: 731.88 | E136: 725.77 | F136: 721.23 | G136: 715.12 | H136: 736.42 | I136: 742.53 | J136: 747.07 | K136: 738 | L136: 727.35 | M136: 13.41152
A137: 128 | B137: MANAPPURAM | C137: 99.05 | D137: 98.52 | E137: 97.38 | F137: 95.72 | G137: 94.58 | H137: 100.18 | I137: 101.32 | J137: 102.98 | K137: 99.65 | L137: 96.85 | M137: 21.66831
A138: 129 | B138: MRPL | C138: 69.05 | D138: 69.10 | E138: 68.35 | F138: 67.65 | G138: 66.90 | H138: 69.80 | I138: 70.55 | J138: 71.25 | K138: 69.85 | L138: 68.4 | M138: 5.79455
A139: 130 | B139: MARICO | C139: 379 | D139: 379.73 | E139: 376.07 | F139: 373.13 | G139: 369.47 | H139: 382.67 | I139: 386.33 | J139: 389.27 | K139: 383.4 | L139: 376.8 | M139: 5.08883
A140: 131 | B140: MARUTI | C140: 7208.4 | D140: 7249.80 | E140: 7119.60 | F140: 7030.80 | G140: 6900.60 | H140: 7338.60 | I140: 7468.80 | J140: 7557.60 | K140: 7380 | L140: 7161 | M140: 6.54537
A141: 132 | B141: MFSL | C141: 438.95 | D141: 444.27 | E141: 430.93 | F141: 422.92 | G141: 409.58 | H141: 452.28 | I141: 465.62 | J141: 473.63 | K141: 457.6 | L141: 436.25 | M141: 4.20224
A142: 133 | B142: MINDTREE | C142: 881.75 | D142: 889.27 | E142: 866.83 | F142: 851.92 | G142: 829.48 | H142: 904.18 | I142: 926.62 | J142: 941.53 | K142: 911.7 | L142: 874.35 | M142: 46.42387
A143: 134 | B143: MOTHERSUMI | C143: 162.9 | D143: 162.15 | E143: 158.50 | F143: 154.10 | G143: 150.45 | H143: 166.55 | I143: 170.20 | J143: 174.60 | K143: 165.8 | L143: 157.75 | M143: 70.80988
A144: 135 | B144: MPHASIS | C144: 877.05 | D144: 872.77 | E144: 865.63 | F144: 854.22 | G144: 847.08 | H144: 884.18 | I144: 891.32 | J144: 902.73 | K144: 879.9 | L144: 861.35 | M144: 2.13991
A145: 136 | B145: MUTHOOTFIN | C145: 544.95 | D145: 539.12 | E145: 529.33 | F145: 513.72 | G145: 503.93 | H145: 554.73 | I145: 564.52 | J145: 580.13 | K145: 548.9 | L145: 523.5 | M145: 8.13797
A146: 137 | B146: NATCOPHARM | C146: 676.5 | D146: 679.63 | E146: 670.27 | F146: 664.03 | G146: 654.67 | H146: 685.87 | I146: 695.23 | J146: 701.47 | K146: 689 | L146: 673.4 | M146: 0.83491
A147: 138 | B147: NBCC | C147: 56.85 | D147: 57.37 | E147: 56.18 | F147: 55.52 | G147: 54.33 | H147: 58.03 | I147: 59.22 | J147: 59.88 | K147: 58.55 | L147: 56.7 | M147: 42.45245
A148: 139 | B148: NHPC | C148: 25.25 | D148: 25.25 | E148: 25.10 | F148: 24.95 | G148: 24.80 | H148: 25.40 | I148: 25.55 | J148: 25.70 | K148: 25.4 | L148: 25.1 | M148: 38.03578
A149: 140 | B149: NMDC | C149: 90.25 | D149: 90.38 | E149: 89.47 | F149: 88.68 | G149: 87.77 | H149: 91.17 | I149: 92.08 | J149: 92.87 | K149: 91.3 | L149: 89.6 | M149: 23.29954
A150: 141 | B150: NTPC | C150: 143.4 | D150: 144.27 | E150: 141.78 | F150: 140.17 | G150: 137.68 | H150: 145.88 | I150: 148.37 | J150: 149.98 | K150: 146.75 | L150: 142.65 | M150: 109.89731
A151: 142 | B151: NATIONALUM | C151: 61.05 | D151: 61.12 | E151: 60.48 | F151: 59.92 | G151: 59.28 | H151: 61.68 | I151: 62.32 | J151: 62.88 | K151: 61.75 | L151: 60.55 | M151: 21.55168
A152: 143 | B152: OBEROIRLTY | C152: 445.1 | D152: 445.05 | E152: 440.10 | F152: 435.10 | G152: 430.15 | H152: 450.05 | I152: 455.00 | J152: 460.00 | K152: 450 | L152: 440.05 | M152: 2.21923
A153: 144 | B153: ONGC | C153: 144.7 | D153: 145.33 | E153: 143.47 | F153: 142.23 | G153: 140.37 | H153: 146.57 | I153: 148.43 | J153: 149.67 | K153: 147.2 | L153: 144.1 | M153: 40.87312
A154: 145 | B154: OIL | C154: 171.95 | D154: 172.42 | E154: 171.03 | F154: 170.12 | G154: 168.73 | H154: 173.33 | I154: 174.72 | J154: 175.63 | K154: 173.8 | L154: 171.5 | M154: 7.25021
A155: 146 | B155: OFSS | C155: 3683.7 | D155: 3665.98 | E155: 3621.97 | F155: 3560.23 | G155: 3516.22 | H155: 3727.72 | I155: 3771.73 | J155: 3833.47 | K155: 3710 | L155: 3604.25 | M155: 0.17942
A156: 147 | B156: PCJEWELLER | C156: 77.3 | D156: 77.85 | E156: 76.25 | F156: 75.20 | G156: 73.60 | H156: 78.90 | I156: 80.50 | J156: 81.55 | K156: 79.45 | L156: 76.8 | M156: 60.47585
A157: 148 | B157: PIIND | C157: 851 | D157: 852.30 | E157: 844.70 | F157: 838.40 | G157: 830.80 | H157: 858.60 | I157: 866.20 | J157: 872.50 | K157: 859.9 | L157: 846 | M157: 0.23745
A158: 149 | B158: PNBHOUSING | C158: 879.05 | D158: 880.68 | E158: 868.37 | F158: 857.68 | G158: 845.37 | H158: 891.37 | I158: 903.68 | J158: 914.37 | K158: 893 | L158: 870 | M158: 1.69894
A159: 150 | B159: PAGEIND | C159: 22954.2 | D159: 23024.95 | E159: 22709.85 | F159: 22465.50 | G159: 22150.40 | H159: 23269.30 | I159: 23584.40 | J159: 23828.75 | K159: 23340.05 | L159: 22780.6 | M159: 0.28852
A160: 151 | B160: PETRONET | C160: 218 | D160: 218.33 | E160: 215.92 | F160: 213.83 | G160: 211.42 | H160: 220.42 | I160: 222.83 | J160: 224.92 | K160: 220.75 | L160: 216.25 | M160: 13.59916
A161: 152 | B161: PIDILITIND | C161: 1155.15 | D161: 1155.72 | E161: 1143.43 | F161: 1131.72 | G161: 1119.43 | H161: 1167.43 | I161: 1179.72 | J161: 1191.43 | K161: 1168 | L161: 1144 | M161: 3.29568
A162: 153 | B162: PEL | C162: 2281.7 | D162: 2290.92 | E162: 2253.43 | F162: 2225.17 | G162: 2187.68 | H162: 2319.18 | I162: 2356.67 | J162: 2384.93 | K162: 2328.4 | L162: 2262.65 | M162: 4.01128
A163: 154 | B163: PFC | C163: 105.1 | D163: 105.50 | E163: 103.70 | F163: 102.30 | G163: 100.50 | H163: 106.90 | I163: 108.70 | J163: 110.10 | K163: 107.3 | L163: 104.1 | M163: 30.45458
A164: 155 | B164: POWERGRID | C164: 191.25 | D164: 192.20 | E164: 189.70 | F164: 188.15 | G164: 185.65 | H164: 193.75 | I164: 196.25 | J164: 197.80 | K164: 194.7 | L164: 190.65 | M164: 22.87769
A165: 156 | B165: PRESTIGE | C165: 207.4 | D165: 208.47 | E165: 204.93 | F165: 202.47 | G165: 198.93 | H165: 210.93 | I165: 214.47 | J165: 216.93 | K165: 212 | L165: 206 | M165: 0.65409
A166: 157 | B166: PGHH | C166: 10003.15 | D166: 10004.78 | E166: 9949.57 | F166: 9895.98 | G166: 9840.77 | H166: 10058.37 | I166: 10113.58 | J166: 10167.17 | K166: 10060 | L166: 9951.2 | M166: 0.01291
A167: 158 | B167: PNB | C167: 80.25 | D167: 81.15 | E167: 78.75 | F167: 77.25 | G167: 74.85 | H167: 82.65 | I167: 85.05 | J167: 86.55 | K167: 83.55 | L167: 79.65 | M167: 200.63465
A168: 159 | B168: RBLBANK | C168: 579.9 | D168: 576.68 | E168: 572.37 | F168: 564.83 | G168: 560.52 | H168: 584.22 | I168: 588.53 | J168: 596.07 | K168: 581 | L168: 569.15 | M168: 7.57942
A169: 160 | B169: RAJESHEXPO | C169: 580.15 | D169: 583.85 | E169: 572.65 | F169: 565.15 | G169: 553.95 | H169: 591.35 | I169: 602.55 | J169: 610.05 | K169: 595.05 | L169: 576.35 | M169: 2.0904
A170: 161 | B170: RELCAPITAL | C170: 208.65 | D170: 209.25 | E170: 206.50 | F170: 204.35 | G170: 201.60 | H170: 211.40 | I170: 214.15 | J170: 216.30 | K170: 212 | L170: 207.1 | M170: 41.60464
A171: 162 | B171: RCOM | C171: 13.1 | D171: 13.22 | E171: 12.93 | F171: 12.77 | G171: 12.48 | H171: 13.38 | I171: 13.67 | J171: 13.83 | K171: 13.5 | L171: 13.05 | M171: 461.24415
A172: 163 | B172: RELIANCE | C172: 1237.7 | D172: 1222.10 | E172: 1204.25 | F172: 1170.80 | G172: 1152.95 | H172: 1255.55 | I172: 1273.40 | J172: 1306.85 | K172: 1239.95 | L172: 1188.65 | M172: 220.38534
A173: 164 | B173: RELINFRA | C173: 289.65 | D173: 292.18 | E173: 285.47 | F173: 281.28 | G173: 274.57 | H173: 296.37 | I173: 303.08 | J173: 307.27 | K173: 298.9 | L173: 288 | M173: 31.11125
A174: 165 | B174: RPOWER | C174: 28 | D174: 28.20 | E174: 27.65 | F174: 27.30 | G174: 26.75 | H174: 28.55 | I174: 29.10 | J174: 29.45 | K174: 28.75 | L174: 27.85 | M174: 48.82892
A175: 166 | B175: RECLTD | C175: 122.75 | D175: 124.15 | E175: 120.90 | F175: 119.05 | G175: 115.80 | H175: 126.00 | I175: 129.25 | J175: 131.10 | K175: 127.4 | L175: 122.3 | M175: 50.24748
A176: 167 | B176: SRF | C176: 2035.85 | D176: 2047.02 | E176: 2010.03 | F176: 1984.22 | G176: 1947.23 | H176: 2072.83 | I176: 2109.82 | J176: 2135.63 | K176: 2084 | L176: 2021.2 | M176: 1.51431
A177: 168 | B177: SHREECEM | C177: 15678.7 | D177: 15612.57 | E177: 15476.13 | F177: 15273.57 | G177: 15137.13 | H177: 15815.13 | I177: 15951.57 | J177: 16154.13 | K177: 15749 | L177: 15410 | M177: 0.0688
A178: 169 | B178: SRTRANSFIN | C178: 1114.7 | D178: 1120.78 | E178: 1100.82 | F178: 1086.93 | G178: 1066.97 | H178: 1134.67 | I178: 1154.63 | J178: 1168.52 | K178: 1140.75 | L178: 1106.9 | M178: 10.88957
A179: 170 | B179: SIEMENS | C179: 1044.8 | D179: 1047.83 | E179: 1036.97 | F179: 1029.13 | G179: 1018.27 | H179: 1055.67 | I179: 1066.53 | J179: 1074.37 | K179: 1058.7 | L179: 1040 | M179: 1.72091
A180: 171 | B180: SBIN | C180: 292.45 | D180: 293.55 | E180: 290.35 | F180: 288.25 | G180: 285.05 | H180: 295.65 | I180: 298.85 | J180: 300.95 | K180: 296.75 | L180: 291.45 | M180: 101.88647
A181: 172 | B181: SAIL | C181: 49.35 | D181: 49.60 | E181: 48.95 | F181: 48.55 | G181: 47.90 | H181: 50.00 | I181: 50.65 | J181: 51.05 | K181: 50.25 | L181: 49.2 | M181: 77.37176
A182: 173 | B182: SPARC | C182: 174.45 | D182: 166.42 | E182: 154.93 | F182: 135.42 | G182: 123.93 | H182: 185.93 | I182: 197.42 | J182: 216.93 | K182: 177.9 | L182: 146.9 | M182: 127.52965
A183: 174 | B183: SUNPHARMA | C183: 398.3 | D183: 398.30 | E183: 390.05 | F183: 381.80 | G183: 373.55 | H183: 406.55 | I183: 414.80 | J183: 423.05 | K183: 406.55 | L183: 390.05 | M183: 489.36782
A184: 175 | B184: SUNTV | C184: 512.1 | D184: 518.95 | E184: 502.15 | F184: 492.20 | G184: 475.40 | H184: 528.90 | I184: 545.70 | J184: 555.65 | K184: 535.75 | L184: 509 | M184: 40.03904
A185: 176 | B185: SUZLON | C185: 5.25 | D185: 5.25 | E185: 5.20 | F185: 5.15 | G185: 5.10 | H185: 5.30 | I185: 5.35 | J185: 5.40 | K185: 5.3 | L185: 5.2 | M185: 130.15541
A186: 177 | B186: SYNDIBANK | C186: 37.15 | D186: 37.37 | E186: 36.68 | F186: 36.22 | G186: 35.53 | H186: 37.83 | I186: 38.52 | J186: 38.98 | K186: 38.05 | L186: 36.9 | M186: 36.12665
A187: 178 | B187: SYNGENE | C187: 572.15 | D187: 567.87 | E187: 560.78 | F187: 549.42 | G187: 542.33 | H187: 579.23 | I187: 586.32 | J187: 597.68 | K187: 574.95 | L187: 556.5 | M187: 3.14052
A188: 179 | B188: TV18BRDCST | C188: 34.2 | D188: 34.25 | E188: 33.85 | F188: 33.50 | G188: 33.10 | H188: 34.60 | I188: 35.00 | J188: 35.35 | K188: 34.65 | L188: 33.9 | M188: 50.60976
A189: 180 | B189: TVSMOTOR | C189: 538.25 | D189: 537.13 | E189: 533.72 | F189: 529.18 | G189: 525.77 | H189: 541.67 | I189: 545.08 | J189: 549.62 | K189: 540.55 | L189: 532.6 | M189: 3.20401
A190: 181 | B190: TATACHEM | C190: 688.05 | D190: 690.42 | E190: 683.13 | F190: 678.22 | G190: 670.93 | H190: 695.33 | I190: 702.62 | J190: 707.53 | K190: 697.7 | L190: 685.5 | M190: 2.36414
A191: 182 | B191: TATACOMM | C191: 513.05 | D191: 515.42 | E191: 507.68 | F191: 502.32 | G191: 494.58 | H191: 520.78 | I191: 528.52 | J191: 533.88 | K191: 523.15 | L191: 510.05 | M191: 2.93451
A192: 183 | B192: TCS | C192: 1908.7 | D192: 1912.05 | E192: 1892.10 | F192: 1875.50 | G192: 1855.55 | H192: 1928.65 | I192: 1948.60 | J192: 1965.20 | K192: 1932 | L192: 1895.45 | M192: 24.09803
A193: 184 | B193: TATAGLOBAL | C193: 210.5 | D193: 212.48 | E193: 208.02 | F193: 205.53 | G193: 201.07 | H193: 214.97 | I193: 219.43 | J193: 221.92 | K193: 216.95 | L193: 210 | M193: 10.05521
A194: 185 | B194: TATAMTRDVR | C194: 96.2 | D194: 96.47 | E194: 95.23 | F194: 94.27 | G194: 93.03 | H194: 97.43 | I194: 98.67 | J194: 99.63 | K194: 97.7 | L194: 95.5 | M194: 13.76118
A195: 186 | B195: TATAMOTORS | C195: 181.5 | D195: 182.37 | E195: 179.78 | F195: 178.07 | G195: 175.48 | H195: 184.08 | I195: 186.67 | J195: 188.38 | K195: 184.95 | L195: 180.65 | M195: 69.18258
A196: 187 | B196: TATAPOWER | C196: 75.95 | D196: 76.20 | E196: 75.20 | F196: 74.45 | G196: 73.45 | H196: 76.95 | I196: 77.95 | J196: 78.70 | K196: 77.2 | L196: 75.45 | M196: 51.88679
A197: 188 | B197: TATASTEEL | C197: 471.7 | D197: 473.10 | E197: 468.70 | F197: 465.70 | G197: 461.30 | H197: 476.10 | I197: 480.50 | J197: 483.50 | K197: 477.5 | L197: 470.1 | M197: 46.1369
A198: 189 | B198: TECHM | C198: 713.9 | D198: 714.77 | E198: 708.13 | F198: 702.37 | G198: 695.73 | H198: 720.53 | I198: 727.17 | J198: 732.93 | K198: 721.4 | L198: 709 | M198: 25.86962
A199: 190 | B199: RAMCOCEM | C199: 609.75 | D199: 612.98 | E199: 601.97 | F199: 594.18 | G199: 583.17 | H199: 620.77 | I199: 631.78 | J199: 639.57 | K199: 624 | L199: 605.2 | M199: 3.34427
A200: 191 | B200: TITAN | C200: 962.75 | D200: 961.85 | E200: 957.90 | F200: 953.05 | G200: 949.10 | H200: 966.70 | I200: 970.65 | J200: 975.50 | K200: 965.8 | L200: 957 | M200: 10.3536
A201: 192 | B201: TORNTPHARM | C201: 1874.3 | D201: 1885.73 | E201: 1854.47 | F201: 1834.63 | G201: 1803.37 | H201: 1905.57 | I201: 1936.83 | J201: 1956.67 | K201: 1917 | L201: 1865.9 | M201: 2.36667
A202: 193 | B202: TORNTPOWER | C202: 258.55 | D202: 260.48 | E202: 255.97 | F202: 253.38 | G202: 248.87 | H202: 263.07 | I202: 267.58 | J202: 270.17 | K202: 265 | L202: 257.9 | M202: 8.43557
A203: 194 | B203: UPL | C203: 769.15 | D203: 766.07 | E203: 759.28 | F203: 749.42 | G203: 742.63 | H203: 775.93 | I203: 782.72 | J203: 792.58 | K203: 772.85 | L203: 756.2 | M203: 11.27435
A204: 195 | B204: ULTRACEMCO | C204: 3849.55 | D204: 3835.68 | E204: 3803.87 | F204: 3758.18 | G204: 3726.37 | H204: 3881.37 | I204: 3913.18 | J204: 3958.87 | K204: 3867.5 | L204: 3790 | M204: 2.79969
A205: 196 | B205: UNIONBANK | C205: 86.3 | D205: 88.30 | E205: 83.10 | F205: 79.90 | G205: 74.70 | H205: 91.50 | I205: 96.70 | J205: 99.90 | K205: 93.5 | L205: 85.1 | M205: 225.90728
... 29 more rows

Sheet MidCap Intra
L5: Back To Main Page
A6: FOR INTRA DAY TRADING | K6: =Main!B10 -> 2019-01-22
A9: Sr.no | B9: Scrip | C9: CLOSE RATE | D9: Pivot Point | E9: Supports | H9: Resistances
C10: Point | E10: S1 | F10: S2 | G10: S3 | H10: R1 | I10: R2 | J10: R3 | K10: HIGH | L10: LOW | M10: Total Trade Quanity in Lakhs
A11: 1 | B11: 3MINDIA | C11: 20895.9 | D11: 20975.62 | E11: 20775.23 | F11: 20654.57 | G11: 20454.18 | H11: 21096.28 | I11: 21296.67 | J11: 21417.33 | K11: 21176 | L11: 20854.95 | M11: 0.00524
A12: 2 | B12: 8KMILES | C12: 144.85 | D12: 148.63 | E12: 140.52 | F12: 136.18 | G12: 128.07 | H12: 152.97 | I12: 161.08 | J12: 165.42 | K12: 156.75 | L12: 144.3 | M12: 4.34163
A13: 3 | B13: AARTIIND | C13: 1570.05 | D13: 1564.98 | E13: 1558.07 | F13: 1546.08 | G13: 1539.17 | H13: 1576.97 | I13: 1583.88 | J13: 1595.87 | K13: 1571.9 | L13: 1553 | M13: 0.38673
A14: 4 | B14: ABAN | C14: 73.15 | D14: 73.00 | E14: 72.50 | F14: 71.85 | G14: 71.35 | H14: 73.65 | I14: 74.15 | J14: 74.80 | K14: 73.5 | L14: 72.35 | M14: 2.33102
A15: 5 | B15: ABB | C15: 1281.1 | D15: 1286.37 | E15: 1269.73 | F15: 1258.37 | G15: 1241.73 | H15: 1297.73 | I15: 1314.37 | J15: 1325.73 | K15: 1303 | L15: 1275 | M15: 2.22935
A16: 6 | B16: ABCAPITAL | C16: 92.6 | D16: 92.93 | E16: 91.97 | F16: 91.33 | G16: 90.37 | H16: 93.57 | I16: 94.53 | J16: 95.17 | K16: 93.9 | L16: 92.3 | M16: 9.79392
A17: 7 | B17: ABFRL | C17: 201.75 | D17: 202.62 | E17: 200.23 | F17: 198.72 | G17: 196.33 | H17: 204.13 | I17: 206.52 | J17: 208.03 | K17: 205 | L17: 201.1 | M17: 4.70057
A18: 8 | B18: ACC | C18: 1429.3 | D18: 1434.23 | E18: 1418.92 | F18: 1408.53 | G18: 1393.22 | H18: 1444.62 | I18: 1459.93 | J18: 1470.32 | K18: 1449.55 | L18: 1423.85 | M18: 3.49933
A19: 9 | B19: ADANIPORTS | C19: 396.2 | D19: 397.00 | E19: 391.30 | F19: 386.40 | G19: 380.70 | H19: 401.90 | I19: 407.60 | J19: 412.50 | K19: 402.7 | L19: 392.1 | M19: 25.63705
A20: 10 | B20: ADANIPOWER | C20: 49.8 | D20: 50.15 | E20: 48.90 | F20: 48.00 | G20: 46.75 | H20: 51.05 | I20: 52.30 | J20: 53.20 | K20: 51.4 | L20: 49.25 | M20: 131.43168
A21: 11 | B21: ADANITRANS | C21: 217.2 | D21: 218.42 | E21: 214.38 | F21: 211.57 | G21: 207.53 | H21: 221.23 | I21: 225.27 | J21: 228.08 | K21: 222.45 | L21: 215.6 | M21: 1.09305
A22: 12 | B22: ADVENZYMES | C22: 167.65 | D22: 168.80 | E22: 165.90 | F22: 164.15 | G22: 161.25 | H22: 170.55 | I22: 173.45 | J22: 175.20 | K22: 171.7 | L22: 167.05 | M22: 0.27501
A23: 13 | B23: AEGISCHEM | C23: 200.4 | D23: 198.53 | E23: 195.07 | F23: 189.73 | G23: 186.27 | H23: 203.87 | I23: 207.33 | J23: 212.67 | K23: 202 | L23: 193.2 | M23: 0.99483
A24: 14 | B24: AIAENG | C24: 1661.85 | D24: 1678.95 | E24: 1632.90 | F24: 1603.95 | G24: 1557.90 | H24: 1707.90 | I24: 1753.95 | J24: 1782.90 | K24: 1725 | L24: 1650 | M24: 0.35425
A25: 15 | B25: AJANTPHARM | C25: 1145.3 | D25: 1145.50 | E25: 1138.50 | F25: 1131.70 | G25: 1124.70 | H25: 1152.30 | I25: 1159.30 | J25: 1166.10 | K25: 1152.5 | L25: 1138.7 | M25: 1.56511
A26: 16 | B26: AKZOINDIA | C26: 1731.35 | D26: 1733.62 | E26: 1722.73 | F26: 1714.12 | G26: 1703.23 | H26: 1742.23 | I26: 1753.12 | J26: 1761.73 | K26: 1744.5 | L26: 1725 | M26: 0.04358
A27: 17 | B27: ALBK | C27: 42.65 | D27: 42.87 | E27: 41.88 | F27: 41.12 | G27: 40.13 | H27: 43.63 | I27: 44.62 | J27: 45.38 | K27: 43.85 | L27: 42.1 | M27: 27.77961
A28: 18 | B28: ALKEM | C28: 1902.25 | D28: 1901.88 | E28: 1889.87 | F28: 1877.48 | G28: 1865.47 | H28: 1914.27 | I28: 1926.28 | J28: 1938.67 | K28: 1913.9 | L28: 1889.5 | M28: 0.11228
A29: 19 | B29: ALLCARGO | C29: 110.95 | D29: 110.57 | E29: 109.58 | F29: 108.22 | G29: 107.23 | H29: 111.93 | I29: 112.92 | J29: 114.28 | K29: 111.55 | L29: 109.2 | M29: 1.10435
A30: 20 | B30: AMARAJABAT | C30: 776.7 | D30: 780.03 | E30: 768.57 | F30: 760.43 | G30: 748.97 | H30: 788.17 | I30: 799.63 | J30: 807.77 | K30: 791.5 | L30: 771.9 | M30: 5.22569
A31: 21 | B31: AMBUJACEM | C31: 212.3 | D31: 212.77 | E31: 210.73 | F31: 209.17 | G31: 207.13 | H31: 214.33 | I31: 216.37 | J31: 217.93 | K31: 214.8 | L31: 211.2 | M31: 10.28461
A32: 22 | B32: ANDHRABANK | C32: 28.05 | D32: 28.22 | E32: 27.63 | F32: 27.22 | G32: 26.63 | H32: 28.63 | I32: 29.22 | J32: 29.63 | K32: 28.8 | L32: 27.8 | M32: 4.61326
A33: 23 | B33: APLAPOLLO | C33: 1145.95 | D33: 1160.50 | E33: 1125.95 | F33: 1105.95 | G33: 1071.40 | H33: 1180.50 | I33: 1215.05 | J33: 1235.05 | K33: 1195.05 | L33: 1140.5 | M33: 0.07485
A34: 24 | B34: APLLTD | C34: 590.65 | D34: 590.85 | E34: 582.20 | F34: 573.75 | G34: 565.10 | H34: 599.30 | I34: 607.95 | J34: 616.40 | K34: 599.5 | L34: 582.4 | M34: 0.2688
A35: 25 | B35: APOLLOHOSP | C35: 1326.05 | D35: 1342.95 | E35: 1298.65 | F35: 1271.25 | G35: 1226.95 | H35: 1370.35 | I35: 1414.65 | J35: 1442.05 | K35: 1387.25 | L35: 1315.55 | M35: 12.93001
A36: 26 | B36: APOLLOTYRE | C36: 216.6 | D36: 217.23 | E36: 214.87 | F36: 213.13 | G36: 210.77 | H36: 218.97 | I36: 221.33 | J36: 223.07 | K36: 219.6 | L36: 215.5 | M36: 9.1569
A37: 27 | B37: ARVIND | C37: 92.35 | D37: 92.72 | E37: 91.43 | F37: 90.52 | G37: 89.23 | H37: 93.63 | I37: 94.92 | J37: 95.83 | K37: 94 | L37: 91.8 | M37: 8.68693
A38: 28 | B38: ASAHIINDIA | C38: 255 | D38: 256.67 | E38: 253.33 | F38: 251.67 | G38: 248.33 | H38: 258.33 | I38: 261.67 | J38: 263.33 | K38: 260 | L38: 255 | M38: 0.07069
A39: 29 | B39: ASHOKA | C39: 130.25 | D39: 131.12 | E39: 128.23 | F39: 126.22 | G39: 123.33 | H39: 133.13 | I39: 136.02 | J39: 138.03 | K39: 134 | L39: 129.1 | M39: 0.96221
A40: 30 | B40: ASHOKLEY | C40: 90.6 | D40: 91.18 | E40: 89.77 | F40: 88.93 | G40: 87.52 | H40: 92.02 | I40: 93.43 | J40: 94.27 | K40: 92.6 | L40: 90.35 | M40: 113.61469
A41: 31 | B41: ASIANPAINT | C41: 1422.1 | D41: 1414.03 | E41: 1403.27 | F41: 1384.43 | G41: 1373.67 | H41: 1432.87 | I41: 1443.63 | J41: 1462.47 | K41: 1424.8 | L41: 1395.2 | M41: 25.13582
A42: 32 | B42: ASTRAL | C42: 1079.8 | D42: 1088.97 | E42: 1064.83 | F42: 1049.87 | G42: 1025.73 | H42: 1103.93 | I42: 1128.07 | J42: 1143.03 | K42: 1113.1 | L42: 1074 | M42: 0.11662
A43: 33 | B43: ATUL | C43: 3566.45 | D43: 3587.75 | E43: 3526.70 | F43: 3486.95 | G43: 3425.90 | H43: 3627.50 | I43: 3688.55 | J43: 3728.30 | K43: 3648.8 | L43: 3548 | M43: 0.15937
A44: 34 | B44: AUBANK | C44: 608.7 | D44: 612.53 | E44: 603.17 | F44: 597.63 | G44: 588.27 | H44: 618.07 | I44: 627.43 | J44: 632.97 | K44: 621.9 | L44: 607 | M44: 3.59668
A45: 35 | B45: AUROPHARMA | C45: 776.2 | D45: 776.07 | E45: 767.33 | F45: 758.47 | G45: 749.73 | H45: 784.93 | I45: 793.67 | J45: 802.53 | K45: 784.8 | L45: 767.2 | M45: 16.40124
A46: 36 | B46: AVANTIFEED | C46: 366.75 | D46: 368.70 | E46: 361.75 | F46: 356.75 | G46: 349.80 | H46: 373.70 | I46: 380.65 | J46: 385.65 | K46: 375.65 | L46: 363.7 | M46: 0.86155
A47: 37 | B47: AXISBANK | C47: 660.3 | D47: 660.43 | E47: 656.37 | F47: 652.43 | G47: 648.37 | H47: 664.37 | I47: 668.43 | J47: 672.37 | K47: 664.5 | L47: 656.5 | M47: 61.57956
A48: 38 | B48: BAJAJ-AUTO | C48: 2684.6 | D48: 2693.12 | E48: 2661.48 | F48: 2638.37 | G48: 2606.73 | H48: 2716.23 | I48: 2747.87 | J48: 2770.98 | K48: 2724.75 | L48: 2670 | M48: 3.03893
A49: 39 | B49: BAJAJCON | C49: 356.65 | D49: 361.32 | E49: 350.33 | F49: 344.02 | G49: 333.03 | H49: 367.63 | I49: 378.62 | J49: 384.93 | K49: 372.3 | L49: 355 | M49: 1.05309
A50: 40 | B50: BAJAJELEC | C50: 470.45 | D50: 471.82 | E50: 464.73 | F50: 459.02 | G50: 451.93 | H50: 477.53 | I50: 484.62 | J50: 490.33 | K50: 478.9 | L50: 466.1 | M50: 0.95619
A51: 41 | B51: BAJAJFINSV | C51: 6384.55 | D51: 6331.88 | E51: 6263.77 | F51: 6142.98 | G51: 6074.87 | H51: 6452.67 | I51: 6520.78 | J51: 6641.57 | K51: 6400 | L51: 6211.1 | M51: 1.77176
A52: 42 | B52: BAJAJHIND | C52: 8.95 | D52: 8.95 | E52: 8.80 | F52: 8.65 | G52: 8.50 | H52: 9.10 | I52: 9.25 | J52: 9.40 | K52: 9.1 | L52: 8.8 | M52: 13.37331
A53: 43 | B53: BAJAJHLDNG | C53: 2961.4 | D53: 2970.75 | E53: 2941.65 | F53: 2921.90 | G53: 2892.80 | H53: 2990.50 | I53: 3019.60 | J53: 3039.35 | K53: 2999.85 | L53: 2951 | M53: 0.11792
A54: 44 | B54: BAJFINANCE | C54: 2594.2 | D54: 2575.60 | E54: 2545.20 | F54: 2496.20 | G54: 2465.80 | H54: 2624.60 | I54: 2655.00 | J54: 2704.00 | K54: 2606 | L54: 2526.6 | M54: 13.32159
A55: 45 | B55: BALKRISIND | C55: 868.4 | D55: 868.82 | E55: 862.13 | F55: 855.87 | G55: 849.18 | H55: 875.08 | I55: 881.77 | J55: 888.03 | K55: 875.5 | L55: 862.55 | M55: 2.019
A56: 46 | B56: BALLARPUR | C56: 4.4 | D56: 4.47 | E56: 4.33 | F56: 4.27 | G56: 4.13 | H56: 4.53 | I56: 4.67 | J56: 4.73 | K56: 4.6 | L56: 4.4 | M56: 5.50673
A57: 47 | B57: BALMLAWRIE | C57: 191.5 | D57: 193.45 | E57: 189.05 | F57: 186.60 | G57: 182.20 | H57: 195.90 | I57: 200.30 | J57: 202.75 | K57: 197.85 | L57: 191 | M57: 0.3455
A58: 48 | B58: BALRAMCHIN | C58: 108.15 | D58: 108.85 | E58: 106.50 | F58: 104.85 | G58: 102.50 | H58: 110.50 | I58: 112.85 | J58: 114.50 | K58: 111.2 | L58: 107.2 | M58: 15.67331
A59: 49 | B59: BANKBARODA | C59: 116.45 | D59: 117.12 | E59: 115.13 | F59: 113.82 | G59: 111.83 | H59: 118.43 | I59: 120.42 | J59: 121.73 | K59: 119.1 | L59: 115.8 | M59: 84.81086
A60: 50 | B60: BANKINDIA | C60: 100.65 | D60: 101.63 | E60: 98.67 | F60: 96.68 | G60: 93.72 | H60: 103.62 | I60: 106.58 | J60: 108.57 | K60: 104.6 | L60: 99.65 | M60: 81.68459
A61: 51 | B61: BASF | C61: 1506.95 | D61: 1515.65 | E61: 1492.30 | F61: 1477.65 | G61: 1454.30 | H61: 1530.30 | I61: 1553.65 | J61: 1568.30 | K61: 1539 | L61: 1501 | M61: 0.04625
A62: 52 | B62: BATAINDIA | C62: 1147.55 | D62: 1150.22 | E62: 1140.53 | F62: 1133.52 | G62: 1123.83 | H62: 1157.23 | I62: 1166.92 | J62: 1173.93 | K62: 1159.9 | L62: 1143.2 | M62: 3.11638
A63: 53 | B63: BBTC | C63: 1228.05 | D63: 1239.35 | E63: 1213.70 | F63: 1199.35 | G63: 1173.70 | H63: 1253.70 | I63: 1279.35 | J63: 1293.70 | K63: 1265 | L63: 1225 | M63: 0.74821
A64: 54 | B64: BEL | C64: 86.5 | D64: 86.60 | E64: 85.60 | F64: 84.70 | G64: 83.70 | H64: 87.50 | I64: 88.50 | J64: 89.40 | K64: 87.6 | L64: 85.7 | M64: 30.5058
A65: 55 | B65: BEML | C65: 889.15 | D65: 891.88 | E65: 882.77 | F65: 876.38 | G65: 867.27 | H65: 898.27 | I65: 907.38 | J65: 913.77 | K65: 901 | L65: 885.5 | M65: 10.9573
A66: 56 | B66: BERGEPAINT | C66: 322.1 | D66: 323.88 | E66: 317.17 | F66: 312.23 | G66: 305.52 | H66: 328.82 | I66: 335.53 | J66: 340.47 | K66: 330.6 | L66: 318.95 | M66: 20.238
A67: 57 | B67: BFUTILITIE | C67: 206.05 | D67: 208.37 | E67: 202.78 | F67: 199.52 | G67: 193.93 | H67: 211.63 | I67: 217.22 | J67: 220.48 | K67: 213.95 | L67: 205.1 | M67: 4.20047
A68: 58 | B68: BGRENERGY | C68: 57.4 | D68: 57.83 | E68: 56.57 | F68: 55.73 | G68: 54.47 | H68: 58.67 | I68: 59.93 | J68: 60.77 | K68: 59.1 | L68: 57 | M68: 0.50259
A69: 59 | B69: BHARATFIN | C69: 951.1 | D69: 952.10 | E69: 944.20 | F69: 937.30 | G69: 929.40 | H69: 959.00 | I69: 966.90 | J69: 973.80 | K69: 960 | L69: 945.2 | M69: 1.75173
A70: 60 | B70: BHARATFORG | C70: 478.65 | D70: 479.10 | E70: 474.25 | F70: 469.85 | G70: 465.00 | H70: 483.50 | I70: 488.35 | J70: 492.75 | K70: 483.95 | L70: 474.7 | M70: 11.40253
A71: 61 | B71: BHARTIARTL | C71: 311.35 | D71: 310.95 | E71: 306.40 | F71: 301.45 | G71: 296.90 | H71: 315.90 | I71: 320.45 | J71: 325.40 | K71: 315.5 | L71: 306 | M71: 77.69963
A72: 62 | B72: BHEL | C72: 70.95 | D72: 71.30 | E72: 70.35 | F72: 69.75 | G72: 68.80 | H72: 71.90 | I72: 72.85 | J72: 73.45 | K72: 72.25 | L72: 70.7 | M72: 103.4103
A73: 63 | B73: BIOCON | C73: 663 | D73: 662.87 | E73: 654.43 | F73: 645.87 | G73: 637.43 | H73: 671.43 | I73: 679.87 | J73: 688.43 | K73: 671.3 | L73: 654.3 | M73: 18.26408
A74: 64 | B74: BIRLACORPN | C74: 549.8 | D74: 552.45 | E74: 545.30 | F74: 540.80 | G74: 533.65 | H74: 556.95 | I74: 564.10 | J74: 568.60 | K74: 559.6 | L74: 547.95 | M74: 0.14874
A75: 65 | B75: BLISSGVS | C75: 161.9 | D75: 164.60 | E75: 157.45 | F75: 153.00 | G75: 145.85 | H75: 169.05 | I75: 176.20 | J75: 180.65 | K75: 171.75 | L75: 160.15 | M75: 15.17873
A76: 66 | B76: BLUEDART | C76: 3246.9 | D76: 3282.30 | E76: 3204.60 | F76: 3162.30 | G76: 3084.60 | H76: 3324.60 | I76: 3402.30 | J76: 3444.60 | K76: 3360 | L76: 3240 | M76: 0.01056
A77: 67 | B77: BLUESTARCO | C77: 614.8 | D77: 612.10 | E77: 604.20 | F77: 593.60 | G77: 585.70 | H77: 622.70 | I77: 630.60 | J77: 641.20 | K77: 620 | L77: 601.5 | M77: 1.56455
A78: 68 | B78: BOMDYEING | C78: 120.35 | D78: 121.52 | E78: 118.53 | F78: 116.72 | G78: 113.73 | H78: 123.33 | I78: 126.32 | J78: 128.13 | K78: 124.5 | L78: 119.7 | M78: 5.46106
A79: 69 | B79: BOSCHLTD | C79: 19046 | D79: 19111.65 | E79: 18948.85 | F79: 18851.70 | G79: 18688.90 | H79: 19208.80 | I79: 19371.60 | J79: 19468.75 | K79: 19274.45 | L79: 19014.5 | M79: 0.05432
A80: 70 | B80: BPCL | C80: 351.55 | D80: 351.85 | E80: 348.00 | F80: 344.45 | G80: 340.60 | H80: 355.40 | I80: 359.25 | J80: 362.80 | K80: 355.7 | L80: 348.3 | M80: 19.42818
A81: 71 | B81: BRFL | C81: 9 | D81: 8.97 | E81: 8.88 | F81: 8.77 | G81: 8.68 | H81: 9.08 | I81: 9.17 | J81: 9.28 | K81: 9.05 | L81: 8.85 | M81: 0.51242
A82: 72 | B82: BRIGADE | C82: 206.9 | D82: 208.58 | E82: 202.12 | F82: 197.33 | G82: 190.87 | H82: 213.37 | I82: 219.83 | J82: 224.62 | K82: 215.05 | L82: 203.8 | M82: 1.2165
A83: 73 | B83: BRITANNIA | C83: 3148.4 | D83: 3161.15 | E83: 3123.75 | F83: 3099.10 | G83: 3061.70 | H83: 3185.80 | I83: 3223.20 | J83: 3247.85 | K83: 3198.55 | L83: 3136.5 | M83: 1.7471
A84: 74 | B84: BSE | C84: 591.7 | D84: 593.35 | E84: 589.75 | F84: 587.80 | G84: 584.20 | H84: 595.30 | I84: 598.90 | J84: 600.85 | K84: 596.95 | L84: 591.4 | M84: 0.47587
A85: 75 | B85: CADILAHC | C85: 344.6 | D85: 346.62 | E85: 341.53 | F85: 338.47 | G85: 333.38 | H85: 349.68 | I85: 354.77 | J85: 357.83 | K85: 351.7 | L85: 343.55 | M85: 7.86496
A86: 77 | B86: CANBK | C86: 268 | D86: 269.97 | E86: 263.43 | F86: 258.87 | G86: 252.33 | H86: 274.53 | I86: 281.07 | J86: 285.63 | K86: 276.5 | L86: 265.4 | M86: 33.86812
A87: 78 | B87: CANFINHOME | C87: 264.25 | D87: 265.73 | E87: 260.52 | F87: 256.78 | G87: 251.57 | H87: 269.47 | I87: 274.68 | J87: 278.42 | K87: 270.95 | L87: 262 | M87: 7.4546
A88: 79 | B88: CAPLIPOINT | C88: 389 | D88: 393.67 | E88: 383.33 | F88: 377.67 | G88: 367.33 | H88: 399.33 | I88: 409.67 | J88: 415.33 | K88: 404 | L88: 388 | M88: 0.24014
A89: 80 | B89: CARBORUNIV | C89: 360.85 | D89: 361.20 | E89: 353.90 | F89: 346.95 | G89: 339.65 | H89: 368.15 | I89: 375.45 | J89: 382.40 | K89: 368.5 | L89: 354.25 | M89: 1.51811
A90: 81 | B90: CARERATING | C90: 1002.65 | D90: 1007.25 | E90: 990.50 | F90: 978.35 | G90: 961.60 | H90: 1019.40 | I90: 1036.15 | J90: 1048.30 | K90: 1024 | L90: 995.1 | M90: 0.84824
A91: 82 | B91: CASTROLIND | C91: 166.05 | D91: 166.22 | E91: 164.53 | F91: 163.02 | G91: 161.33 | H91: 167.73 | I91: 169.42 | J91: 170.93 | K91: 167.9 | L91: 164.7 | M91: 10.51563
A92: 83 | B92: CCL | C92: 274.05 | D92: 273.23 | E92: 269.82 | F92: 265.58 | G92: 262.17 | H92: 277.47 | I92: 280.88 | J92: 285.12 | K92: 276.65 | L92: 269 | M92: 0.43095
A93: 84 | B93: CDSL | C93: 231.4 | D93: 231.78 | E93: 229.67 | F93: 227.93 | G93: 225.82 | H93: 233.52 | I93: 235.63 | J93: 237.37 | K93: 233.9 | L93: 230.05 | M93: 1.3681
A94: 85 | B94: CEATLTD | C94: 1226.3 | D94: 1228.50 | E94: 1219.50 | F94: 1212.70 | G94: 1203.70 | H94: 1235.30 | I94: 1244.30 | J94: 1251.10 | K94: 1237.5 | L94: 1221.7 | M94: 2.16822
A95: 86 | B95: CENTRALBK | C95: 31.95 | D95: 32.80 | E95: 30.65 | F95: 29.35 | G95: 27.20 | H95: 34.10 | I95: 36.25 | J95: 37.55 | K95: 34.95 | L95: 31.5 | M95: 8.79783
A96: 87 | B96: CENTURYPLY | C96: 173.65 | D96: 175.38 | E96: 170.87 | F96: 168.08 | G96: 163.57 | H96: 178.17 | I96: 182.68 | J96: 185.47 | K96: 179.9 | L96: 172.6 | M96: 0.73251
A97: 88 | B97: CENTURYTEX | C97: 885.6 | D97: 884.05 | E97: 877.15 | F97: 868.70 | G97: 861.80 | H97: 892.50 | I97: 899.40 | J97: 907.85 | K97: 890.95 | L97: 875.6 | M97: 2.31324
A98: 89 | B98: CERA | C98: 2677.15 | D98: 2672.83 | E98: 2649.67 | F98: 2622.18 | G98: 2599.02 | H98: 2700.32 | I98: 2723.48 | J98: 2750.97 | K98: 2696 | L98: 2645.35 | M98: 0.04568
A99: 90 | B99: CGPOWER | C99: 42.25 | D99: 42.55 | E99: 41.55 | F99: 40.85 | G99: 39.85 | H99: 43.25 | I99: 44.25 | J99: 44.95 | K99: 43.55 | L99: 41.85 | M99: 31.15243
A100: 91 | B100: CHAMBLFERT | C100: 162.05 | D100: 162.37 | E100: 160.28 | F100: 158.52 | G100: 156.43 | H100: 164.13 | I100: 166.22 | J100: 167.98 | K100: 164.45 | L100: 160.6 | M100: 1.09674
A101: 92 | B101: CHENNPETRO | C101: 263.9 | D101: 262.83 | E101: 260.57 | F101: 257.23 | G101: 254.97 | H101: 266.17 | I101: 268.43 | J101: 271.77 | K101: 265.1 | L101: 259.5 | M101: 1.93607
A102: 93 | B102: CHOLAFIN | C102: 1170.5 | D102: 1173.60 | E102: 1162.90 | F102: 1155.30 | G102: 1144.60 | H102: 1181.20 | I102: 1191.90 | J102: 1199.50 | K102: 1184.3 | L102: 1166 | M102: 1.45084
A103: 94 | B103: CIPLA | C103: 509.25 | D103: 510.55 | E103: 506.90 | F103: 504.55 | G103: 500.90 | H103: 512.90 | I103: 516.55 | J103: 518.90 | K103: 514.2 | L103: 508.2 | M103: 11.5038
A104: 95 | B104: COALINDIA | C104: 229 | D104: 229.47 | E104: 227.68 | F104: 226.37 | G104: 224.58 | H104: 230.78 | I104: 232.57 | J104: 233.88 | K104: 231.25 | L104: 228.15 | M104: 19.04575
A105: 96 | B105: COCHINSHIP | C105: 360.55 | D105: 361.50 | E105: 359.05 | F105: 357.55 | G105: 355.10 | H105: 363.00 | I105: 365.45 | J105: 366.95 | K105: 363.95 | L105: 360 | M105: 0.32916
A106: 97 | B106: COFFEEDAY | C106: 288.65 | D106: 291.02 | E106: 284.63 | F106: 280.62 | G106: 274.23 | H106: 295.03 | I106: 301.42 | J106: 305.43 | K106: 297.4 | L106: 287 | M106: 1.60498
A107: 98 | B107: COLPAL | C107: 1313.25 | D107: 1316.03 | E107: 1308.52 | F107: 1303.78 | G107: 1296.27 | H107: 1320.77 | I107: 1328.28 | J107: 1333.02 | K107: 1323.55 | L107: 1311.3 | M107: 2.60338
A108: 99 | B108: CONCOR | C108: 665 | D108: 671.45 | E108: 655.20 | F108: 645.40 | G108: 629.15 | H108: 681.25 | I108: 697.50 | J108: 707.30 | K108: 687.7 | L108: 661.65 | M108: 10.60758
A109: 100 | B109: COROMANDEL | C109: 440.15 | D109: 441.38 | E109: 428.77 | F109: 417.38 | G109: 404.77 | H109: 452.77 | I109: 465.38 | J109: 476.77 | K109: 454 | L109: 430 | M109: 1.11613
A110: 101 | B110: COX&KINGS | C110: 163.85 | D110: 164.67 | E110: 162.58 | F110: 161.32 | G110: 159.23 | H110: 165.93 | I110: 168.02 | J110: 169.28 | K110: 166.75 | L110: 163.4 | M110: 0.14785
A111: 102 | B111: CRISIL | C111: 1633.6 | D111: 1643.62 | E111: 1619.98 | F111: 1606.37 | G111: 1582.73 | H111: 1657.23 | I111: 1680.87 | J111: 1694.48 | K111: 1667.25 | L111: 1630 | M111: 0.01487
A112: 103 | B112: CROMPTON | C112: 222.6 | D112: 224.35 | E112: 218.40 | F112: 214.20 | G112: 208.25 | H112: 228.55 | I112: 234.50 | J112: 238.70 | K112: 230.3 | L112: 220.15 | M112: 2.46597
A113: 104 | B113: CUB | C113: 190.95 | D113: 190.87 | E113: 188.73 | F113: 186.52 | G113: 184.38 | H113: 193.08 | I113: 195.22 | J113: 197.43 | K113: 193 | L113: 188.65 | M113: 5.74758
A114: 105 | B114: CUMMINSIND | C114: 838.8 | D114: 841.25 | E114: 830.00 | F114: 821.20 | G114: 809.95 | H114: 850.05 | I114: 861.30 | J114: 870.10 | K114: 852.5 | L114: 832.45 | M114: 2.75328
A115: 106 | B115: CYIENT | C115: 599.9 | D115: 605.22 | E115: 591.68 | F115: 583.47 | G115: 569.93 | H115: 613.43 | I115: 626.97 | J115: 635.18 | K115: 618.75 | L115: 597 | M115: 1.68615
A116: 107 | B116: DABUR | C116: 428.15 | D116: 428.68 | E116: 423.62 | F116: 419.08 | G116: 414.02 | H116: 433.22 | I116: 438.28 | J116: 442.82 | K116: 433.75 | L116: 424.15 | M116: 22.35926
A117: 108 | B117: DBCORP | C117: 178.25 | D117: 178.43 | E117: 175.87 | F117: 173.48 | G117: 170.92 | H117: 180.82 | I117: 183.38 | J117: 185.77 | K117: 181 | L117: 176.05 | M117: 0.30706
A118: 109 | B118: DBL | C118: 379.15 | D118: 379.22 | E118: 375.93 | F118: 372.72 | G118: 369.43 | H118: 382.43 | I118: 385.72 | J118: 388.93 | K118: 382.5 | L118: 376 | M118: 1.23814
A119: 110 | B119: DBREALTY | C119: 26.15 | D119: 26.55 | E119: 25.60 | F119: 25.05 | G119: 24.10 | H119: 27.10 | I119: 28.05 | J119: 28.60 | K119: 27.5 | L119: 26 | M119: 1.00491
A120: 111 | B120: DCAL | C120: 223.3 | D120: 224.78 | E120: 219.87 | F120: 216.43 | G120: 211.52 | H120: 228.22 | I120: 233.13 | J120: 236.57 | K120: 229.7 | L120: 221.35 | M120: 0.57856
A121: 112 | B121: DCBBANK | C121: 182.75 | D121: 182.22 | E121: 176.63 | F121: 170.52 | G121: 164.93 | H121: 188.33 | I121: 193.92 | J121: 200.03 | K121: 187.8 | L121: 176.1 | M121: 91.85974
A122: 113 | B122: DCMSHRIRAM | C122: 344.1 | D122: 344.02 | E122: 341.58 | F122: 339.07 | G122: 336.63 | H122: 346.53 | I122: 348.97 | J122: 351.48 | K122: 346.45 | L122: 341.5 | M122: 0.14214
A123: 114 | B123: DEEPAKFERT | C123: 126.6 | D123: 128.27 | E123: 124.03 | F123: 121.47 | G123: 117.23 | H123: 130.83 | I123: 135.07 | J123: 137.63 | K123: 132.5 | L123: 125.7 | M123: 2.66326
A124: 115 | B124: DELTACORP | C124: 242.9 | D124: 244.47 | E124: 240.43 | F124: 237.97 | G124: 233.93 | H124: 246.93 | I124: 250.97 | J124: 253.43 | K124: 248.5 | L124: 242 | M124: 6.00014
A125: 116 | B125: DEN | C125: 69.9 | D125: 69.95 | E125: 69.70 | F125: 69.50 | G125: 69.25 | H125: 70.15 | I125: 70.40 | J125: 70.60 | K125: 70.2 | L125: 69.75 | M125: 2.07606
A126: 117 | B126: DENABANK | C126: 13.35 | D126: 13.40 | E126: 13.25 | F126: 13.15 | G126: 13.00 | H126: 13.50 | I126: 13.65 | J126: 13.75 | K126: 13.55 | L126: 13.3 | M126: 11.97334
A127: 118 | B127: DHFL | C127: 211.8 | D127: 213.35 | E127: 208.75 | F127: 205.70 | G127: 201.10 | H127: 216.40 | I127: 221.00 | J127: 224.05 | K127: 217.95 | L127: 210.3 | M127: 36.64959
A128: 119 | B128: DISHTV | C128: 34.75 | D128: 34.68 | E128: 33.62 | F128: 32.48 | G128: 31.42 | H128: 35.82 | I128: 36.88 | J128: 38.02 | K128: 35.75 | L128: 33.55 | M128: 115.46832
A129: 120 | B129: DIVISLAB | C129: 1497.2 | D129: 1503.00 | E129: 1487.85 | F129: 1478.50 | G129: 1463.35 | H129: 1512.35 | I129: 1527.50 | J129: 1536.85 | K129: 1518.15 | L129: 1493.65 | M129: 3.51617
A130: 121 | B130: DIXON | C130: 2179.6 | D130: 2181.43 | E130: 2173.42 | F130: 2167.23 | G130: 2159.22 | H130: 2187.62 | I130: 2195.63 | J130: 2201.82 | K130: 2189.45 | L130: 2175.25 | M130: 0.03153
A131: 122 | B131: DLF | C131: 177.25 | D131: 178.52 | E131: 174.93 | F131: 172.62 | G131: 169.03 | H131: 180.83 | I131: 184.42 | J131: 186.73 | K131: 182.1 | L131: 176.2 | M131: 33.61204
A132: 123 | B132: DMART | C132: 1351.3 | D132: 1361.10 | E132: 1333.20 | F132: 1315.10 | G132: 1287.20 | H132: 1379.20 | I132: 1407.10 | J132: 1425.20 | K132: 1389 | L132: 1343 | M132: 4.34508
A133: 124 | B133: DREDGECORP | C133: 419.3 | D133: 421.18 | E133: 411.72 | F133: 404.13 | G133: 394.67 | H133: 428.77 | I133: 438.23 | J133: 445.82 | K133: 430.65 | L133: 413.6 | M133: 2.0233
A134: 125 | B134: DRREDDY | C134: 2599.8 | D134: 2607.87 | E134: 2573.73 | F134: 2547.67 | G134: 2513.53 | H134: 2633.93 | I134: 2668.07 | J134: 2694.13 | K134: 2642 | L134: 2581.8 | M134: 5.95064
A135: 126 | B135: ECLERX | C135: 1069.55 | D135: 1074.83 | E135: 1061.72 | F135: 1053.88 | G135: 1040.77 | H135: 1082.67 | I135: 1095.78 | J135: 1103.62 | K135: 1087.95 | L135: 1067 | M135: 0.02205
A136: 127 | B136: EDELWEISS | C136: 164.85 | D136: 165.83 | E136: 163.27 | F136: 161.68 | G136: 159.12 | H136: 167.42 | I136: 169.98 | J136: 171.57 | K136: 168.4 | L136: 164.25 | M136: 5.39286
A137: 128 | B137: EICHERMOT | C137: 20028 | D137: 20091.90 | E137: 19885.85 | F137: 19743.70 | G137: 19537.65 | H137: 20234.05 | I137: 20440.10 | J137: 20582.25 | K137: 20297.95 | L137: 19949.75 | M137: 0.95038
A138: 129 | B138: EIDPARRY | C138: 202 | D138: 207.00 | E138: 196.00 | F138: 190.00 | G138: 179.00 | H138: 213.00 | I138: 224.00 | J138: 230.00 | K138: 218 | L138: 201 | M138: 3.53677
A139: 130 | B139: EIHOTEL | C139: 180.5 | D139: 180.52 | E139: 179.03 | F139: 177.57 | G139: 176.08 | H139: 181.98 | I139: 183.47 | J139: 184.93 | K139: 182 | L139: 179.05 | M139: 1.81718
A140: 131 | B140: EMAMILTD | C140: 427.55 | D140: 430.22 | E140: 420.13 | F140: 412.72 | G140: 402.63 | H140: 437.63 | I140: 447.72 | J140: 455.13 | K140: 440.3 | L140: 422.8 | M140: 0.54465
A141: 132 | B141: ENDURANCE | C141: 1157 | D141: 1159.57 | E141: 1145.13 | F141: 1133.27 | G141: 1118.83 | H141: 1171.43 | I141: 1185.87 | J141: 1197.73 | K141: 1174 | L141: 1147.7 | M141: 0.18548
A142: 133 | B142: ENGINERSIN | C142: 115.7 | D142: 116.13 | E142: 114.67 | F142: 113.63 | G142: 112.17 | H142: 117.17 | I142: 118.63 | J142: 119.67 | K142: 117.6 | L142: 115.1 | M142: 9.35417
A143: 134 | B143: EQUITAS | C143: 118.2 | D143: 118.78 | E143: 116.72 | F143: 115.23 | G143: 113.17 | H143: 120.27 | I143: 122.33 | J143: 123.82 | K143: 120.85 | L143: 117.3 | M143: 7.29736
A144: 135 | B144: ERIS | C144: 702.55 | D144: 702.77 | E144: 690.83 | F144: 679.12 | G144: 667.18 | H144: 714.48 | I144: 726.42 | J144: 738.13 | K144: 714.7 | L144: 691.05 | M144: 0.2216
A145: 136 | B145: EROSMEDIA | C145: 79.9 | D145: 80.10 | E145: 78.80 | F145: 77.70 | G145: 76.40 | H145: 81.20 | I145: 82.50 | J145: 83.60 | K145: 81.4 | L145: 79 | M145: 3.44063
A146: 137 | B146: ESCORTS | C146: 733.25 | D146: 734.68 | E146: 723.57 | F146: 713.88 | G146: 702.77 | H146: 744.37 | I146: 755.48 | J146: 765.17 | K146: 745.8 | L146: 725 | M146: 12.06601
A147: 138 | B147: EVEREADY | C147: 221.55 | D147: 222.65 | E147: 218.90 | F147: 216.25 | G147: 212.50 | H147: 225.30 | I147: 229.05 | J147: 231.70 | K147: 226.4 | L147: 220 | M147: 2.02087
A148: 139 | B148: EXIDEIND | C148: 244.05 | D148: 244.65 | E148: 242.30 | F148: 240.55 | G148: 238.20 | H148: 246.40 | I148: 248.75 | J148: 250.50 | K148: 247 | L148: 242.9 | M148: 11.30005
A149: 140 | B149: FCONSUMER | C149: 41.9 | D149: 41.85 | E149: 41.30 | F149: 40.70 | G149: 40.15 | H149: 42.45 | I149: 43.00 | J149: 43.60 | K149: 42.4 | L149: 41.25 | M149: 12.50497
A150: 141 | B150: FEDERALBNK | C150: 88.7 | D150: 89.30 | E150: 87.80 | F150: 86.90 | G150: 85.40 | H150: 90.20 | I150: 91.70 | J150: 92.60 | K150: 90.8 | L150: 88.4 | M150: 84.80926
A151: 142 | B151: FINCABLES | C151: 439.05 | D151: 441.35 | E151: 433.70 | F151: 428.35 | G151: 420.70 | H151: 446.70 | I151: 454.35 | J151: 459.70 | K151: 449 | L151: 436 | M151: 0.22007
A152: 143 | B152: FINPIPE | C152: 540.35 | D152: 540.10 | E152: 536.15 | F152: 531.95 | G152: 528.00 | H152: 544.30 | I152: 548.25 | J152: 552.45 | K152: 544.05 | L152: 535.9 | M152: 0.07047
A153: 144 | B153: FLFL | C153: 410.55 | D153: 415.45 | E153: 402.10 | F153: 393.65 | G153: 380.30 | H153: 423.90 | I153: 437.25 | J153: 445.70 | K153: 428.8 | L153: 407 | M153: 1.29841
A154: 145 | B154: FSL | C154: 50.3 | D154: 50.33 | E154: 48.67 | F154: 47.03 | G154: 45.37 | H154: 51.97 | I154: 53.63 | J154: 55.27 | K154: 52 | L154: 48.7 | M154: 25.82242
A155: 146 | B155: GAIL | C155: 327.8 | D155: 325.72 | E155: 322.53 | F155: 317.27 | G155: 314.08 | H155: 330.98 | I155: 334.17 | J155: 339.43 | K155: 328.9 | L155: 320.45 | M155: 33.04639
A156: 147 | B156: GATI | C156: 79.15 | D156: 79.65 | E156: 77.95 | F156: 76.75 | G156: 75.05 | H156: 80.85 | I156: 82.55 | J156: 83.75 | K156: 81.35 | L156: 78.45 | M156: 3.96408
A157: 148 | B157: GDL | C157: 109.7 | D157: 110.48 | E157: 107.87 | F157: 106.03 | G157: 103.42 | H157: 112.32 | I157: 114.93 | J157: 116.77 | K157: 113.1 | L157: 108.65 | M157: 0.54189
A158: 149 | B158: GEPIL | C158: 815.5 | D158: 816.83 | E158: 810.67 | F158: 805.83 | G158: 799.67 | H158: 821.67 | I158: 827.83 | J158: 832.67 | K158: 823 | L158: 812 | M158: 0.01751
A159: 150 | B159: GESHIP | C159: 310.5 | D159: 310.68 | E159: 305.87 | F159: 301.23 | G159: 296.42 | H159: 315.32 | I159: 320.13 | J159: 324.77 | K159: 315.5 | L159: 306.05 | M159: 0.35748
A160: 151 | B160: GET&D | C160: 308.15 | D160: 311.38 | E160: 302.77 | F160: 297.38 | G160: 288.77 | H160: 316.77 | I160: 325.38 | J160: 330.77 | K160: 320 | L160: 306 | M160: 0.16444
A161: 152 | B161: GHCL | C161: 265.35 | D161: 263.38 | E161: 257.97 | F161: 250.58 | G161: 245.17 | H161: 270.77 | I161: 276.18 | J161: 283.57 | K161: 268.8 | L161: 256 | M161: 10.96125
A162: 153 | B162: GICRE | C162: 252.55 | D162: 252.32 | E162: 250.23 | F162: 247.92 | G162: 245.83 | H162: 254.63 | I162: 256.72 | J162: 259.03 | K162: 254.4 | L162: 250 | M162: 0.42776
A163: 154 | B163: GILLETTE | C163: 6540.2 | D163: 6541.15 | E163: 6482.30 | F163: 6424.40 | G163: 6365.55 | H163: 6599.05 | I163: 6657.90 | J163: 6715.80 | K163: 6600 | L163: 6483.25 | M163: 0.0176
A164: 155 | B164: GLAXO | C164: 1404.8 | D164: 1409.30 | E164: 1393.50 | F164: 1382.20 | G164: 1366.40 | H164: 1420.60 | I164: 1436.40 | J164: 1447.70 | K164: 1425.1 | L164: 1398 | M164: 0.11513
A165: 156 | B165: GLENMARK | C165: 646.1 | D165: 645.98 | E165: 637.22 | F165: 628.33 | G165: 619.57 | H165: 654.87 | I165: 663.63 | J165: 672.52 | K165: 654.75 | L165: 637.1 | M165: 7.96703
A166: 157 | B166: GMDCLTD | C166: 84.1 | D166: 84.10 | E166: 82.30 | F166: 80.50 | G166: 78.70 | H166: 85.90 | I166: 87.70 | J166: 89.50 | K166: 85.9 | L166: 82.3 | M166: 1.2786
A167: 158 | B167: GMRINFRA | C167: 16.05 | D167: 16.13 | E167: 15.92 | F167: 15.78 | G167: 15.57 | H167: 16.27 | I167: 16.48 | J167: 16.62 | K167: 16.35 | L167: 16 | M167: 56.51419
A168: 159 | B168: GNFC | C168: 353.2 | D168: 356.68 | E168: 348.32 | F168: 343.43 | G168: 335.07 | H168: 361.57 | I168: 369.93 | J168: 374.82 | K168: 365.05 | L168: 351.8 | M168: 3.72429
A169: 160 | B169: GODFRYPHLP | C169: 956.3 | D169: 956.52 | E169: 949.28 | F169: 942.27 | G169: 935.03 | H169: 963.53 | I169: 970.77 | J169: 977.78 | K169: 963.75 | L169: 949.5 | M169: 1.99549
A170: 161 | B170: GODREJAGRO | C170: 503.4 | D170: 503.50 | E170: 499.90 | F170: 496.40 | G170: 492.80 | H170: 507.00 | I170: 510.60 | J170: 514.10 | K170: 507.1 | L170: 500 | M170: 0.33417
A171: 162 | B171: GODREJCP | C171: 784.35 | D171: 790.05 | E171: 775.65 | F171: 766.95 | G171: 752.55 | H171: 798.75 | I171: 813.15 | J171: 821.85 | K171: 804.45 | L171: 781.35 | M171: 7.89707
A172: 163 | B172: GODREJIND | C172: 524.65 | D172: 525.58 | E172: 521.47 | F172: 518.28 | G172: 514.17 | H172: 528.77 | I172: 532.88 | J172: 536.07 | K172: 529.7 | L172: 522.4 | M172: 1.12415
A173: 164 | B173: GODREJPROP | C173: 740.25 | D173: 741.20 | E173: 732.05 | F173: 723.85 | G173: 714.70 | H173: 749.40 | I173: 758.55 | J173: 766.75 | K173: 750.35 | L173: 733 | M173: 0.99043
A174: 165 | B174: GPPL | C174: 89.85 | D174: 90.82 | E174: 88.23 | F174: 86.62 | G174: 84.03 | H174: 92.43 | I174: 95.02 | J174: 96.63 | K174: 93.4 | L174: 89.2 | M174: 14.09383
A175: 166 | B175: GRANULES | C175: 88.1 | D175: 88.17 | E175: 87.48 | F175: 86.87 | G175: 86.18 | H175: 88.78 | I175: 89.47 | J175: 90.08 | K175: 88.85 | L175: 87.55 | M175: 3.79061
A176: 167 | B176: GRAPHITE | C176: 684.15 | D176: 695.07 | E176: 669.13 | F176: 654.12 | G176: 628.18 | H176: 710.08 | I176: 736.02 | J176: 751.03 | K176: 721 | L176: 680.05 | M176: 13.75537
A177: 168 | B177: GRASIM | C177: 815.65 | D177: 818.53 | E177: 809.07 | F177: 802.48 | G177: 793.02 | H177: 825.12 | I177: 834.58 | J177: 841.17 | K177: 828 | L177: 811.95 | M177: 5.06429
A178: 169 | B178: GREAVESCOT | C178: 122.2 | D178: 122.33 | E178: 121.37 | F178: 120.53 | G178: 119.57 | H178: 123.17 | I178: 124.13 | J178: 124.97 | K178: 123.3 | L178: 121.5 | M178: 0.78675
A179: 170 | B179: GREENPLY | C179: 139.6 | D179: 138.88 | E179: 137.77 | F179: 135.93 | G179: 134.82 | H179: 140.72 | I179: 141.83 | J179: 143.67 | K179: 140 | L179: 137.05 | M179: 0.3873
A180: 171 | B180: GRUH | C180: 226.8 | D180: 228.75 | E180: 224.05 | F180: 221.30 | G180: 216.60 | H180: 231.50 | I180: 236.20 | J180: 238.95 | K180: 233.45 | L180: 226 | M180: 33.99516
A181: 172 | B181: GSFC | C181: 108 | D181: 108.40 | E181: 107.10 | F181: 106.20 | G181: 104.90 | H181: 109.30 | I181: 110.60 | J181: 111.50 | K181: 109.7 | L181: 107.5 | M181: 9.32329
A182: 173 | B182: GSKCONS | C182: 7213 | D182: 7237.68 | E182: 7175.32 | F182: 7137.63 | G182: 7075.27 | H182: 7275.37 | I182: 7337.73 | J182: 7375.42 | K182: 7300.05 | L182: 7200 | M182: 0.16908
A183: 174 | B183: GSPL | C183: 177.65 | D183: 178.52 | E183: 173.33 | F183: 169.02 | G183: 163.83 | H183: 182.83 | I183: 188.02 | J183: 192.33 | K183: 183.7 | L183: 174.2 | M183: 6.76877
A184: 175 | B184: GUJALKALI | C184: 521.55 | D184: 522.07 | E184: 518.98 | F184: 516.42 | G184: 513.33 | H184: 524.63 | I184: 527.72 | J184: 530.28 | K184: 525.15 | L184: 519.5 | M184: 0.10436
A185: 176 | B185: GUJFLUORO | C185: 884.15 | D185: 902.25 | E185: 857.50 | F185: 830.85 | G185: 786.10 | H185: 928.90 | I185: 973.65 | J185: 1000.30 | K185: 947 | L185: 875.6 | M185: 1.08996
A186: 177 | B186: GUJGASLTD | C186: 133.05 | D186: 134.17 | E186: 131.88 | F186: 130.72 | G186: 128.43 | H186: 135.33 | I186: 137.62 | J186: 138.78 | K186: 136.45 | L186: 133 | M186: 1.19778
A187: 178 | B187: GULFOILLUB | C187: 870.65 | D187: 873.22 | E187: 857.43 | F187: 844.22 | G187: 828.43 | H187: 886.43 | I187: 902.22 | J187: 915.43 | K187: 889 | L187: 860 | M187: 0.12965
A188: 179 | B188: GVKPIL | C188: 7.05 | D188: 7.12 | E188: 6.88 | F188: 6.72 | G188: 6.48 | H188: 7.28 | I188: 7.52 | J188: 7.68 | K188: 7.35 | L188: 6.95 | M188: 18.70065
A189: 180 | B189: HATHWAY | C189: 30.95 | D189: 30.97 | E189: 30.88 | F189: 30.82 | G189: 30.73 | H189: 31.03 | I189: 31.12 | J189: 31.18 | K189: 31.05 | L189: 30.9 | M189: 1.50013
A190: 181 | B190: HATSUN | C190: 707.6 | D190: 705.80 | E190: 689.85 | F190: 672.10 | G190: 656.15 | H190: 723.55 | I190: 739.50 | J190: 757.25 | K190: 721.75 | L190: 688.05 | M190: 0.15379
A191: 182 | B191: HAVELLS | C191: 677.7 | D191: 678.75 | E191: 671.95 | F191: 666.20 | G191: 659.40 | H191: 684.50 | I191: 691.30 | J191: 697.05 | K191: 685.55 | L191: 673 | M191: 8.13364
A192: 183 | B192: HCC | C192: 13.05 | D192: 13.37 | E192: 12.73 | F192: 12.42 | G192: 11.78 | H192: 13.68 | I192: 14.32 | J192: 14.63 | K192: 14 | L192: 13.05 | M192: 70.82227
A193: 184 | B193: HCL-INSYS | C193: 23.25 | D193: 23.42 | E193: 22.93 | F193: 22.62 | G193: 22.13 | H193: 23.73 | I193: 24.22 | J193: 24.53 | K193: 23.9 | L193: 23.1 | M193: 5.73763
A194: 185 | B194: HCLTECH | C194: 965.75 | D194: 969.77 | E194: 958.03 | F194: 950.32 | G194: 938.58 | H194: 977.48 | I194: 989.22 | J194: 996.93 | K194: 981.5 | L194: 962.05 | M194: 16.32709
A195: 186 | B195: HDFC | C195: 2004.45 | D195: 2001.22 | E195: 1986.43 | F195: 1968.42 | G195: 1953.63 | H195: 2019.23 | I195: 2034.02 | J195: 2052.03 | K195: 2016 | L195: 1983.2 | M195: 21.46668
A196: 187 | B196: HDFCBANK | C196: 2148.15 | D196: 2147.05 | E196: 2127.60 | F196: 2107.05 | G196: 2087.60 | H196: 2167.60 | I196: 2187.05 | J196: 2207.60 | K196: 2166.5 | L196: 2126.5 | M196: 43.90378
A197: 188 | B197: HDIL | C197: 26.4 | D197: 26.60 | E197: 25.90 | F197: 25.40 | G197: 24.70 | H197: 27.10 | I197: 27.80 | J197: 28.30 | K197: 27.3 | L197: 26.1 | M197: 29.13776
A198: 189 | B198: HEG | C198: 3377.5 | D198: 3437.17 | E198: 3306.33 | F198: 3235.17 | G198: 3104.33 | H198: 3508.33 | I198: 3639.17 | J198: 3710.33 | K198: 3568 | L198: 3366 | M198: 2.21284
A199: 190 | B199: HEIDELBERG | C199: 151.55 | D199: 151.60 | E199: 150.50 | F199: 149.45 | G199: 148.35 | H199: 152.65 | I199: 153.75 | J199: 154.80 | K199: 152.7 | L199: 150.55 | M199: 0.38219
A200: 191 | B200: HERITGFOOD | C200: 530.25 | D200: 530.78 | E200: 524.57 | F200: 518.88 | G200: 512.67 | H200: 536.47 | I200: 542.68 | J200: 548.37 | K200: 537 | L200: 525.1 | M200: 0.19251
A201: 192 | B201: HEROMOTOCO | C201: 2794.25 | D201: 2828.03 | E201: 2746.22 | F201: 2698.18 | G201: 2616.37 | H201: 2876.07 | I201: 2957.88 | J201: 3005.92 | K201: 2909.85 | L201: 2780 | M201: 6.28463
A202: 193 | B202: HEXAWARE | C202: 325.85 | D202: 328.08 | E202: 321.67 | F202: 317.48 | G202: 311.07 | H202: 332.27 | I202: 338.68 | J202: 342.87 | K202: 334.5 | L202: 323.9 | M202: 14.23898
A203: 194 | B203: HFCL | C203: 22.35 | D203: 22.58 | E203: 22.02 | F203: 21.68 | G203: 21.12 | H203: 22.92 | I203: 23.48 | J203: 23.82 | K203: 23.15 | L203: 22.25 | M203: 20.34236
A204: 195 | B204: HIMATSEIDE | C204: 212.15 | D204: 212.95 | E204: 210.45 | F204: 208.75 | G204: 206.25 | H204: 214.65 | I204: 217.15 | J204: 218.85 | K204: 215.45 | L204: 211.25 | M204: 0.26028
A205: 196 | B205: HINDALCO | C205: 207.65 | D205: 207.55 | E205: 205.20 | F205: 202.75 | G205: 200.40 | H205: 210.00 | I205: 212.35 | J205: 214.80 | K205: 209.9 | L205: 205.1 | M205: 48.83723
A206: 197 | B206: HINDCOPPER | C206: 48.65 | D206: 48.92 | E206: 48.23 | F206: 47.82 | G206: 47.13 | H206: 49.33 | I206: 50.02 | J206: 50.43 | K206: 49.6 | L206: 48.5 | M206: 4.61393
... 304 more rows

Sheet Bulk Deals
E6: Back To Main Page
A7: Subject : | B7: BULK DEAL | D7: =Main!B10 -> 2019-01-22
A9: Date | B9: Scrip code | C9: Scrip Name | D9: Client Name | E9: Buy / Sell | F9: Quantity Traded | G9: Trade Price / Wt.Avg.trade price | H9: Exchange
A10: 2019-01-21 | B10: 517494 | C10: ACCEL | D10: RAMAMORTHI GANESH | E10: SELL | F10: 345,000 | G10: 5.18 | H10: BSE
A11: 2019-01-21 | B11: 537766 | C11: BCP | D11: JINESH ASHWIN MATALIA | E11: BUY | F11: 25,000 | G11: 42.45 | H11: BSE
A12: 2019-01-21 | B12: 537766 | C12: BCP | D12: JINESH ASHWIN MATALIA | E12: SELL | F12: 325,443 | G12: 37.7 | H12: BSE
A13: 2019-01-21 | B13: 537766 | C13: BCP | D13: NIRAJ RAJNIKANT SHAH | E13: BUY | F13: 730,000 | G13: 38.27 | H13: BSE
A14: 2019-01-21 | B14: 537766 | C14: BCP | D14: KAMAL BASANTKUMAR DHAND | E14: BUY | F14: 370,125 | G14: 37.16 | H14: BSE
A15: 2019-01-21 | B15: 537766 | C15: BCP | D15: KAMAL BASANTKUMAR DHAND | E15: SELL | F15: 370,125 | G15: 37.81 | H15: BSE
A16: 2019-01-21 | B16: 537766 | C16: BCP | D16: HANIF AMIR MANJEE | E16: BUY | F16: 467,435 | G16: 39 | H16: BSE
A17: 2019-01-21 | B17: 537766 | C17: BCP | D17: HANIF AMIR MANJEE | E17: SELL | F17: 466,898 | G17: 39.58 | H17: BSE
A18: 2019-01-21 | B18: 540268 | C18: DHANVARSHA | D18: VORA JINALBEN BHAVIKBHAI | E18: SELL | F18: 169,173 | G18: 48.15 | H18: BSE
A19: 2019-01-21 | B19: 540268 | C19: DHANVARSHA | D19: ARTI ASHISH SHAH | E19: BUY | F19: 75,000 | G19: 48.15 | H19: BSE
A20: 2019-01-21 | B20: 500125 | C20: EIDPARRY | D20: ARDHYA INVESTORS . | E20: SELL | F20: 983,304 | G20: 200.09 | H20: BSE
A21: 2019-01-21 | B21: 504713 | C21: HINDWRS | D21: THE METHONI TEA CO LTD | E21: BUY | F21: 56,500 | G21: 45 | H21: BSE
A22: 2019-01-21 | B22: 504713 | C22: HINDWRS | D22: ANIRUDHA BUBNA TRUST | E22: BUY | F22: 57,397 | G22: 45 | H22: BSE
A23: 2019-01-21 | B23: 504713 | C23: HINDWRS | D23: MONET SECURITIES PRIVATE LTD | E23: SELL | F23: 162,697 | G23: 45 | H23: BSE
A24: 2019-01-21 | B24: 590018 | C24: HISARMET | D24: KARAN DEV TAYAL . | E24: BUY | F24: 23,900 | G24: 41.5 | H24: BSE
A25: 2019-01-21 | B25: 541983 | C25: INNOVATIVE | D25: VALUEWORTH CAPITAL MANAGEMENT PRIVATE LIMITED | E25: BUY | F25: 162,000 | G25: 161.5 | H25: BSE
A26: 2019-01-21 | B26: 541983 | C26: INNOVATIVE | D26: AMARKUMAR ODHAVJI DHAMECHA | E26: SELL | F26: 114,000 | G26: 161.5 | H26: BSE
A27: 2019-01-21 | B27: 526263 | C27: MOLDTEK | D27: UNO METALS LIMITED | E27: BUY | F27: 250,000 | G27: 54.37 | H27: BSE
A28: 2019-01-21 | B28: 540198 | C28: OSIAJEE | D28: MAHESH NATAVARLAL PATEL | E28: BUY | F28: 42,600 | G28: 11.7 | H28: BSE
A29: 2019-01-21 | B29: 511557 | C29: PROFINC | D29: BHARATI ARVIND SHAH | E29: SELL | F29: 110,000 | G29: 193.48 | H29: BSE
A30: 2019-01-21 | B30: 506906 | C30: SCBL | D30: MAHADEO VISHNU TORASKAR | E30: BUY | F30: 85,001 | G30: 8.78 | H30: BSE
A31: 2019-01-21 | B31: 506906 | C31: SCBL | D31: PARAG DINESH SANGHVI HUF | E31: BUY | F31: 167,002 | G31: 8.51 | H31: BSE
A32: 2019-01-21 | B32: 506906 | C32: SCBL | D32: PARAG DINESH SANGHVI HUF | E32: SELL | F32: 82,701 | G32: 8.78 | H32: BSE
A33: 2019-01-21 | B33: 539520 | C33: SHAILJA | D33: NAVEEN GUPTA | E33: BUY | F33: 16693 | G33: 15.41 | H33: BSE
A34: 2019-01-21 | B34: 539520 | C34: SHAILJA | D34: NAVEEN GUPTA | E34: SELL | F34: 16693 | G34: 15.73 | H34: BSE
A35: 2019-01-21 | B35: 539520 | C35: SHAILJA | D35: SHASHI GUPTA | E35: SELL | F35: 48500 | G35: 15.73 | H35: BSE
A36: 2019-01-21 | B36: 539520 | C36: SHAILJA | D36: KUSUM AGARWAL | E36: BUY | F36: 28251 | G36: 16.3 | H36: BSE
A37: 2019-01-21 | B37: 539520 | C37: SHAILJA | D37: AMARATLAL SHAH | E37: BUY | F37: 5379 | G37: 16.35 | H37: BSE
A38: 2019-01-21 | B38: 539520 | C38: SHAILJA | D38: ASTHA MUKESH BAJARIA | E38: BUY | F38: 20000 | G38: 16.09 | H38: BSE
A39: 2019-01-21 | B39: 539520 | C39: SHAILJA | D39: PRAVINA VINOD SHAH | E39: BUY | F39: 30600 | G39: 15.61 | H39: BSE
A40: 2019-01-21 | B40: 539520 | C40: SHAILJA | D40: AMARATLAL SHAH | E40: SELL | F40: 20000 | G40: 16.35 | H40: BSE
A41: 2019-01-21 | B41: 531219 | C41: SHYAMAINFO | D41: ANAND AGARWAL | E41: SELL | F41: 444900 | G41: 1.07 | H41: BSE
A42: 2019-01-21 | B42: 531219 | C42: SHYAMAINFO | D42: SUNILKUMAR C MEHTA | E42: BUY | F42: 424900 | G42: 1.07 | H42: BSE
A43: 2019-01-21 | B43: 530289 | C43: SPCAPIT | D43: THE EXECUTIVE INN LTD | E43: SELL | F43: 60000 | G43: 15.5 | H43: BSE
A44: 2019-01-21 | B44: 530289 | C44: SPCAPIT | D44: ADVANI PRIVATE LIMITED | E44: BUY | F44: 61,550 | G44: 15.47 | H44: BSE
A45: 2019-01-21 | B45: ADLABS | C45: Adlabs Entertainment Ltd. | D45: BEGONIA REALTORS PRIVATE LIMITED | E45: BUY | F45: 4,000,000 | G45: 10 | H45: NSE
A46: 2019-01-21 | B46: GRETEX | C46: Gretex Industries Ltd. | D46: CANOPY FINANCE LIMITED | E46: BUY | F46: 24,000 | G46: 9.9 | H46: NSE
A47: 2019-01-21 | B47: INDLMETER | C47: IMP Powers Ltd | D47: MEHTA MANISHKUMAR SUMATILAL | E47: BUY | F47: 48,332 | G47: 45.81 | H47: NSE
A48: 2019-01-21 | B48: JETAIRWAYS | C48: Jet Airways (India) Ltd. | D48: SHARE INDIA SECURITIES LIMITED | E48: BUY | F48: 573,078 | G48: 277.81 | H48: NSE
A49: 2019-01-21 | B49: JETAIRWAYS | C49: Jet Airways (India) Ltd. | D49: TOWER RESEARCH CAPITAL MARKETS INDIA PRIVATE LIMITED | E49: BUY | F49: 1,151,386 | G49: 278.51 | H49: NSE
A50: 2019-01-21 | B50: MKPL | C50: M K Proteins Limited | D50: ARUNA HOMES PRIVATE LIMITED | E50: BUY | F50: 32,000 | G50: 76.3 | H50: NSE
A51: 2019-01-21 | B51: RIIL | C51: Reliance Indl Infra Ltd | D51: BERKELEY SECURITIES LIMITED | E51: BUY | F51: 104,169 | G51: 342.41 | H51: NSE
A52: 2019-01-21 | B52: ADLABS | C52: Adlabs Entertainment Ltd. | D52: ECL FINANCE LTD | E52: SELL | F52: 4,690,000 | G52: 10.02 | H52: NSE
A53: 2019-01-21 | B53: BANKA | C53: Banka BioLoo Limited | D53: VINRAA TECHNOLOGY LLP | E53: SELL | F53: 50,400 | G53: 95.13 | H53: NSE
A54: 2019-01-21 | B54: GRETEX | C54: Gretex Industries Ltd. | D54: MEGHKUMAR MAHENDRAKUMAR SHAH | E54: SELL | F54: 24,000 | G54: 9.9 | H54: NSE
A55: 2019-01-21 | B55: JETAIRWAYS | C55: Jet Airways (India) Ltd. | D55: SHARE INDIA SECURITIES LIMITED | E55: SELL | F55: 573,078 | G55: 278.11 | H55: NSE
A56: 2019-01-21 | B56: JETAIRWAYS | C56: Jet Airways (India) Ltd. | D56: TOWER RESEARCH CAPITAL MARKETS INDIA PRIVATE LIMITED | E56: SELL | F56: 1,151,386 | G56: 278.58 | H56: NSE
A57: 2019-01-21 | B57: PUNJLLOYD | C57: Punj Lloyd Limited | D57: IFCI LTD. | E57: SELL | F57: 1,692,362 | G57: 3.8 | H57: NSE
A58: 2019-01-21 | B58: RIIL | C58: Reliance Indl Infra Ltd | D58: BERKELEY SECURITIES LIMITED | E58: SELL | F58: 104169 | G58: 342.51 | H58: NSE
A59: 2019-01-21 | B59: SUPREMEENG | C59: Supreme Engineering Ltd | D59: HANSA ASHOK JAIN | E59: SELL | F59: 156000 | G59: 27.27 | H59: NSE
A60: 2019-01-21 | B60: WEBELSOLAR | C60: Websol Energy System Ltd | D60: GARNET INTERNATIONAL LIMITED | E60: SELL | F60: 152000 | G60: 26.73 | H60: NSE

Sheet Call Tracker (Equity & F&O)
M5: Back To Main Page
A6: Retail Research Technical Calls & Fundamental Performance Report for the month of January -2019
M7: =Main!B10 -> 2019-01-22
B8: Positional Call
A9: Sr.no | B9: Date | D9: Company | E9: Rec | F9: Rec Price | G9: Stop Loss*** | H9: Call Closed At | I9: Target | J9: Remark | K9: Profit / Loss per Share | L9: Gain / Loss % | M9: Status | N9: Closed Date | O9: NSE Closed Price
A10: 1 | B10: 2018-12-21 | D10: TATAGLOBAL | E10: Buy | F10: 217 | G10: 209 | H10: 223.5 | I10: 235-240 | J10: Part Profit of Rs.6.25/- | K10: =H10-F10 -> 6.5 | L10: =K10/F10 -> 3.00% | M10: Successful | N10: 2018-12-24 | R10: H
A11: 2 | B11: 2018-12-24 | D11: JSWSTEEL | E11: Buy | F11: 299.5 | G11: 289 | H11: 285.5 | I11: 320-325 | J11: Loss of Rs.14/- | K11: -14 | L11: -4.67% | M11: Unsuccessful | N11: 2019-01-03 | R11: H
A12: 3 | B12: 2018-12-24 | D12: TATAPOWER | E12: Buy | F12: 77.2-77.4 | G12: 73.7 | I12: 83-84 | J12: Open | O12: =VLOOKUP(D12,Sheet2!A3:M1498,6,0) -> 75.95 | R12: R
A13: 4 | B13: 2018-12-27 | D13: TVSMOTOR | E13: Buy | F13: 552.5 | G13: 519 | H13: 571.75 | I13: 600-620 | J13: Profit of Rs.19.25/- | K13: =H13-F13 -> 19.25 | L13: =K13/F13 -> 3.48% | M13: Successful | N13: 2019-01-02 | R13: H
A14: 5 | B14: 2019-01-01 | D14: ASHOKLEY | E14: Buy | F14: 101 | G14: 96 | H14: 94.5 | I14: 110-112 | J14: Loss of Rs.6.5/- | K14: -6.5 | L14: -6.44% | M14: Unsuccessful | N14: 2019-01-07 | R14: R
A15: 6 | B15: 2019-01-03 | D15: PEL | E15: Buy | F15: 2340-2350 | G15: 2222.2 | I15: 2565-2585 | J15: Open | O15: =VLOOKUP(D15,Sheet2!A6:M1501,6,0) -> 2281.7 | R15: R
A16: 7 | B16: 2019-01-04 | D16: M&M | E16: Buy | F16: 716-722 | G16: 688 | I16: 770-780 | J16: Open | O16: =VLOOKUP(D16,Sheet2!A7:M1502,6,0) -> 730.3 | R16: H
A17: 8 | B17: 2019-01-16 | D17: BHARTIARTL | E17: Sell | F17: 339 | G17: 356.6 | H17: 324.75 | I17: 310-305 | J17: Profit of Rs.14.25/- | K17: 14.25 | L17: =K17/F17 -> 4.20% | M17: Successful | N17: 2019-01-18 | R17: R
A18: 9 | B18: 2019-01-18 | D18: TORNTPHARM | E18: Sell | F18: 1900-1910 | G18: 1990 | I18: 1780-1740 | J18: Open | O18: =VLOOKUP(D18,Sheet2!A9:M1504,6,0) -> 1874.3 | R18: H
A26: CLBS = Closing Basis *** | F26: Reinitiated $
A27: Dividend adjusted <> | F27: Revised stoploss #
A28: Part book {}
A29: Master Trade High Risk
A30: Sr.no | B30: Date | D30: Company | E30: Rec | F30: Rec Price | G30: Stop Loss | H30: Call Closed At | I30: Target | J30: Remark | K30: Profit / Loss per share | L30: Gain / Loss per Lot | M30: Lot | N30: Status | O30: Closed Date
A31: 1 | B31: 2018-12-28 | D31: INFY JAN FUT | E31: Buy | F31: 660.5 | G31: 643 | H31: 668.5 | I31: 690 | J31: Profit of Rs. 8.50 /- | K31: =H31-F31 -> 8 | L31: =M31*8.5 -> 10200 | M31: 1200 | N31: Successful | O31: 2019-01-01 | R31: H
D32: INFY JAN 680 CE | E32: Sell | F32: 21 | H32: 20.5 | K32: =F32-H32 -> 0.5 | R32: H
A33: 2 | B33: 2019-01-02 | D33: NIFTY JAN FUT | E33: Buy | F33: 10885 | G33: 10740 | H33: 10740 | I33: 11100 | J33: Loss of Rs.112/- | K33: =H33-F33 -> -145 | L33: =M33*112 -> 8400 | M33: 75 | N33: UnSuccessful | O33: 2019-01-03 | R33: H
D34: Nifty JAN 11100 CE | E34: Sell | F34: 83 | H34: 50 | K34: =F34-H34 -> 33 | R34: H
A47: Master Trade Medium Risk
A48: Sr.no | B48: Date | D48: Company | E48: Rec | F48: Rec Price | G48: Stop Loss | H48: Call Closed At | I48: Target | J48: Remark | K48: Profit/ Loss per lot | L48: Gain / Loss per Lot | M48: Lot | N48: Status | O48: Closed Date
A49: 1 | B49: 2019-01-09 | D49: NIFTY JAN 10700 PE | E49: Buy | F49: 118 | G49: 80 | H49: 80 | I49: 200 | J49: Loss of Rs.38/- | K49: =H49-F49 -> -38 | L49: =M49*K49 -> -2850 | M49: 75 | N49: UnSuccessful | O49: 2019-01-11 | R49: A
A50: 2 | B50: 2019-01-16 | D50: IDFCFIRSTB JAN 46 PE | E50: Buy | F50: 0.35 | H50: 0.6 | I50: 1-1.20 | J50: Profit of Rs.0.25/- | K50: 0.25 | L50: 3000 | M50: 12000 | N50: Successful | O50: 2019-01-17 | R50: R
A51: 3 | B51: 2019-01-17 | D51: BANKNIFTY 17-JAN 27600 CE | E51: Buy | F51: 18 | G51: 0 | H51: 0 | I51: 50 | J51: Loss of Rs.18/- | K51: =H51-F51 -> -18 | L51: -360 | M51: 20 | N51: UnSuccessful | O51: 2019-01-17 | R51: A
A52: 4 | B52: 2019-01-17 | D52: HDFCBANK 2120 JAN CE | E52: Buy | F52: 36 | G52: 17 | H52: 42.5 | I52: 60-70 | J52: Profit of Rs.6.50/- | K52: =H52-F52 -> 6.5 | L52: 1625 | M52: 250 | N52: Successful | O52: 2019-01-17 | R52: H
A53: 5 | B53: 2019-01-18 | D53: HDFCBANK 2120 JAN CE | E53: Buy | F53: 34 | G53: 17 | H53: 40.5 | I53: 55-60 | J53: Profit of Rs.6.50/- | K53: =H53-F53 -> 6.5 | L53: 1625 | M53: 250 | N53: Successful | O53: 2019-01-18 | R53: H
A54: 6 | B54: 2019-01-21 | D54: ACC 1440 JAN PE | E54: Buy | F54: 26 | G54: 14 | H54: 32.5 | I54: 40-50 | J54: Profit of Rs.6.50/- | K54: =H54-F54 -> 6.5 | L54: 2600 | M54: 400 | N54: Successful | O54: 2019-01-21 | R54: H
A55: 7 | B55: 2019-01-21 | D55: TATASTEEL 480 JAN CE | E55: Buy | F55: 9.00-10.00 | G55: 4.5 | I55: 17-20 | J55: Open | R55: H
B67: Smart Delivery Trade
A68: Sr.no | B68: Date | D68: Company | E68: Rec | F68: Rec Price | G68: Stop Loss*** | H68: Call Closed At | I68: Target | J68: Remark | K68: Profit / Loss per Share | L68: Gain / Loss % | M68: Status | N68: Closed Date | O68: NSE Closed Price
A69: 1 | B69: 2018-12-20 | D69: AUROPHARMA | E69: Buy | F69: 732.5 | G69: 709.3 | H69: 752 | I69: 775-785 | J69: Profit of Rs.19.5/- | K69: =H69-F69 -> 19.5 | L69: =K69/F69 -> 2.66% | M69: Successful | N69: 2019-01-08 | R69: R
A70: 2 | B70: 2018-12-27 | D70: HCLTECH | E70: Buy | F70: 946 | G70: 918 | H70: 972 | I70: 1000 | J70: Profit of Rs.26/- | K70: =H70-F70 -> 26 | L70: =K70/F70 -> 2.75% | M70: Successful | N70: 2019-01-21 | R70: H
A71: 3 | B71: 2018-12-28 | D71: JUBLFOOD | E71: Buy | F71: 1244 | G71: 1204 | H71: 1192.5 | I71: 1300-1320 | J71: Loss of Rs.51.5/- | K71: -51.5 | L71: -4.14% | M71: UnSuccessful | N71: 2019-01-21 | R71: R
A72: 4 | B72: 2019-01-01 | D72: DLF | E72: Buy | F72: 181 | G72: 174.7 | H72: 173.5 | I72: 192-194 | J72: Loss of Rs.7.5/- | K72: =H72-F72 -> -7.5 | L72: =K72/F72 -> -4.14% | M72: UnSuccessful | N72: 2019-01-02 | R72: R
A73: 5 | B73: 2019-01-02 | D73: MCDOWELL-N | E73: Buy | F73: 622.5 | G73: 603 | H73: 603 | I73: 650-660 | J73: Loss of Rs.19.5/- | K73: =H73-F73 -> -19.5 | L73: =K73/F73 -> -3.13% | M73: UnSuccessful | N73: 2019-01-08 | R73: R
A74: 6 | B74: 2019-01-02 | D74: PIDILITIND | E74: Buy | F74: 1102.5 | G74: 1068.7 | H74: 1128 | I74: 1165-1175 | J74: Profit of Rs.25.5/- | K74: 25.5 | L74: 2.31% | M74: Successful | N74: 2019-01-08 | R74: R
A75: 7 | B75: 2019-01-03 | D75: DABUR | E75: Buy | F75: 420.5 | G75: 407.7 | H75: 431 | I75: 444-448 | J75: Profit of Rs.10.50/- | K75: =H75-F75 -> 10.5 | L75: =K75/F75 -> 2.50% | M75: Successful | N75: 2019-01-14 | R75: R
A76: 8 | B76: 2019-01-04 | D76: RELIANCE | E76: Buy | F76: 1092.5 | G76: 1058.8 | H76: 1120 | I76: 1150-1160 | J76: Profit of Rs.27.50/- | K76: =H76-F76 -> 27.5 | L76: =K76/F76 -> 2.52% | M76: Successful | N76: 2019-01-15 | R76: R
A77: 9 | B77: 2019-01-04 | D77: ADANIPORTS | E77: Buy | F77: 379 | G77: 369 | H77: 388.5 | I77: 400 | J77: Profit of Rs.9.50/- | K77: =H77-F77 -> 9.5 | L77: =K77/F77 -> 2.51% | M77: Successful | N77: 2019-01-16 | R77: H
A78: 10 | B78: 2019-01-08 | D78: VGUARD | E78: Buy | F78: 207-208 | G78: 200.7 | I78: 220-223 | J78: Open | O78: =VLOOKUP(D78,Sheet2!A12:N1637,6,0) -> 203.65 | R78: R
A79: 11 | B79: 2019-01-18 | D79: SBIN | E79: Sell | F79: 297-300 | G79: 310 | I79: 285-280 | J79: Open | R79: H
A89: CLBS = Closing Basis *** | F89: Reinitiated $
A90: Dividend adjusted <> | F90: Revised stoploss #
B93: Momentum Call
A94: Sr.no | B94: Date | D94: Company | E94: Rec | F94: Rec Price | G94: Stop Loss | H94: Call Closed At | I94: Target | J94: Remark | K94: Profit / Loss per Share/Lot | L94: Gain / Loss % | M94: Gain / Loss per Lot | N94: Lot | O94: Status | P94: Closed Date
A95: 1 | B95: 2018-12-31 | D95: DRREDDY JAN FUT | E95: Buy | F95: 2662.5 | G95: 2620 | H95: 2615 | I95: 2750 | J95: Loss of Rs.47.5/- | K95: =H95-F95 -> -47.5 | M95: =N95*K95 -> -11875 | N95: 250 | O95: UnSuccessful | P95: 2019-01-02 | R95: R
A96: 2 | B96: 2018-12-31 | D96: COLPAL JAN FUT | E96: Sell | F96: 1333 | G96: 1353 | H96: 1325.5 | I96: 1300 | J96: Profit of Rs.7.5/- | K96: =F96-H96 -> 7.5 | M96: =N96*K96 -> 5250 | N96: 700 | O96: Successful | P96: 2019-01-01 | R96: H
A97: 3 | B97: 2018-12-31 | D97: SUNTV | E97: Buy | F97: 612.5 | G97: 594 | H97: 590.5 | I97: 635-645 | J97: Loss of Rs 22/- | K97: =H97-F97 -> -22 | L97: =K97/F97 -> -3.59% | O97: UnSuccessful | P97: 2019-01-03 | R97: H
A98: 4 | B98: 2019-01-01 | D98: TATACHEM JAN FUT | E98: Buy | F98: 709 | G98: 693 | H98: 698.5 | I98: 740 | J98: Loss of Rs.10.50/- | K98: =H98-F98 -> -10.5 | M98: =N98*K98 -> -7875 | N98: 750 | O98: UnSuccessful | P98: 2019-01-15 | R98: N
A99: 5 | B99: 2019-01-02 | D99: TCS JAN FUT | E99: Buy | F99: 1920 | G99: 1875 | H99: 1946.5 | I99: 2000 | J99: Profit of Rs.26.5/- | K99: =H99-F99 -> 26.5 | M99: =N99*K99 -> 6625 | N99: 250 | O99: Successful | P99: 2019-01-03 | R99: H
A100: 6 | B100: 2019-01-02 | D100: AMBUJACEM JAN FUT | E100: Buy | F100: 222 | G100: 217 | H100: 217 | I100: 232 | J100: Loss of Rs.5/- | K100: -5 | M100: -12500 | N100: 2500 | O100: UnSuccessful | P100: 2019-01-03 | R100: N
A101: 7 | B101: 2019-01-02 | D101: IOC | E101: Buy | F101: 137.5 | G101: 134 | H101: 134 | I101: 143-145 | J101: Loss of Rs 3.5/- | K101: -3.5 | L101: =K101/F101 -> -2.55% | O101: UnSuccessful | P101: 2019-01-03 | R101: H
A102: 8 | B102: 2019-01-03 | D102: ADANIPORTS JAN FUT | E102: Buy | F102: 384.5 | G102: 379 | H102: 380.5 | I102: 395 | J102: Loss of Rs.4/- | K102: -4 | M102: =N102*K102 -> -10000 | N102: 2500 | O102: UnSuccessful | P102: 2019-01-03 | R102: H
A103: 9 | B103: 2019-01-04 | D103: EXIDEIND JAN FUT | E103: Buy | F103: 260 | G103: 254 | H103: 263.5 | I103: 270 | J103: Profit of Rs.3.5/- | K103: 3.5 | M103: 7000 | N103: 2000 | O103: Successful | P103: 2019-01-07 | R103: N
A104: 10 | B104: 2019-01-04 | D104: VIPIND | E104: Buy | F104: 514.5 | G104: 508.7 | H104: 523.5 | I104: 525 | J104: Profit of Rs.9/- | K104: 9 | L104: =K104/F104 -> 1.75% | O104: Successful | P104: 2019-01-04 | R104: R
A105: 11 | B105: 2019-01-07 | D105: BHARTIARTL JAN FUT | E105: Buy | F105: 326 | G105: 319 | H105: 330.5 | I105: 340 | J105: Profit of Rs.4.5/- | K105: =H105-F105 -> 4.5 | M105: =N105*K105 -> 7650 | N105: 1700 | O105: Successful | P105: 2019-01-08 | R105: N
A106: 12 | B106: 2019-01-07 | D106: AJANTPHARM JAN FUT | E106: Buy | F106: 1142.5 | G106: 1118 | H106: 1159 | I106: 1190 | J106: Profit of Rs.16.5/- | K106: =H106-F106 -> 16.5 | M106: =N106*K106 -> 8250 | N106: 500 | O106: Successful | P106: 2019-01-07 | R106: N
A107: 13 | B107: 2019-01-08 | D107: CESC JAN FUT | E107: Sell | F107: 657.5 | G107: 680 | H107: 680 | I107: 625 | J107: Loss of Rs 22.5/- | K107: =F107-H107 -> -22.5 | M107: =N107*K107 -> -12375 | N107: 550 | O107: UnSuccessful | P107: 2019-01-11 | R107: N
A108: 14 | B108: 2019-01-08 | D108: UBL JAN FUT | E108: Buy | F108: 1394 | G108: 1377 | H108: 1406 | I108: 1430 | J108: Profit of Rs.12/- | K108: =H108-F108 -> 12 | M108: =N108*K108 -> 8400 | N108: 700 | O108: Successful | P108: 2019-01-08 | R108: N
A109: 15 | B109: 2019-01-08 | D109: UPL JAN FUT | E109: Buy | F109: 755.5 | G109: 746 | H109: 761.5 | I109: 775 | J109: Profit of Rs.6/- | K109: =H109-F109 -> 6 | M109: =N109*K109 -> 7200 | N109: 1200 | O109: Successful | P109: 2019-01-09 | R109: N
A110: 16 | B110: 2019-01-08 | D110: IRB JAN FUT | E110: Sell | F110: 161.5 | G110: 165 | H110: 158.5 | I110: 154 | J110: Profit of Rs.3/- | K110: =F110-H110 -> 3 | M110: 9600 | N110: 3200 | O110: Successful | P110: 2019-01-09 | R110: N
A111: 17 | B111: 2019-01-09 | D111: APOLLOHOSP JAN FUT | E111: Buy | F111: 1260 | G111: 1235 | H111: 1275 | I111: 1300 | J111: Profit of Rs.15/- | K111: =H111-F111 -> 15 | M111: =N111*K111 -> 7500 | N111: 500 | O111: Successful | P111: 2019-01-09 | R111: N
A112: 18 | B112: 2019-01-09 | D112: UJJIVAN | E112: Buy | F112: 289 | G112: 280 | H112: 295.5 | I112: 310 | J112: Profit of Rs.6.15/- | K112: 6.5 | L112: =K112/F112 -> 2.25% | O112: Successful | P112: 2019-01-15 | R112: R
A113: 19 | B113: 2019-01-09 | D113: EXIDEIND JAN FUT | E113: Buy | F113: 262 | G113: 256 | H113: 256 | I113: 273 | J113: Loss of Rs.6/- | K113: =H113-F113 -> -6 | M113: =N113*K113 -> -12000 | N113: 2000 | O113: UnSuccessful | P113: 2019-12-14 | R113: N
A114: 20 | B114: 2019-01-09 | D114: GODREJIND JAN FUT | E114: Buy | F114: 537 | G114: 529 | H114: 542.5 | I114: 550 | J114: Profit of Rs.5.5/- | K114: =H114-F114 -> 5.5 | M114: =N114*K114 -> 8250 | N114: 1500 | O114: Successful | P114: 2019-01-10 | R114: N
A115: 21 | B115: 2019-01-10 | D115: RAYMOND JAN FUT | E115: Buy | F115: 812 | G115: 796 | H115: 824 | I115: 835 | J115: Profit of Rs.12/- | K115: =H115-F115 -> 12 | M115: =N115*K115 -> 9600 | N115: 800 | O115: Successful | P115: 2019-01-11 | R115: N
A116: 22 | B116: 2019-01-14 | D116: APOLLOHOSP JAN FUT | E116: Buy | F116: 1296 | G116: 1268 | H116: 1314 | I116: 1340 | J116: Profit of Rs.18/- | K116: =H116-F116 -> 18 | M116: =N116*K116 -> 9000 | N116: 500 | O116: Successful | P116: 2019-01-14 | R116: R
A117: 23 | B117: 2019-01-14 | D117: UBL JAN FUT | E117: Buy | F117: 1378 | G117: 1363 | H117: 1392 | I117: 1420 | J117: Profit of Rs.14/- | K117: =H117-F117 -> 14 | M117: =N117*K117 -> 9800 | N117: 700 | O117: Successful | P117: 2019-01-14 | R117: N
A118: 24 | B118: 2019-01-14 | D118: ICICIBANK | E118: Buy | F118: 373-375 | G118: 364 | I118: 390-395 | J118: Open | R118: R
A119: 25 | B119: 2019-01-14 | D119: UPL JAN FUT | E119: Buy | F119: 773 | G119: 763 | H119: 781.5 | I119: 790 | J119: Profit of Rs.8.50/- | K119: =H119-F119 -> 8.5 | M119: =N119*K119 -> 10200 | N119: 1200 | O119: Successful | P119: 2019-01-15 | R119: N
A120: 26 | B120: 2019-01-15 | D120: BIOCON JAN FUT | E120: Buy | F120: 649 | G120: 636 | H120: 657.5 | I120: 670 | J120: Profit of Rs.8.50/- | K120: =H120-F120 -> 8.5 | M120: =N120*K120 -> 7650 | N120: 900 | O120: Successful | P120: 2019-01-17 | R120: N
A121: 27 | B121: 2019-01-15 | D121: TORNTPHARM JAN FUT | E121: Buy | F121: 1890 | G121: 1867 | H121: 1908 | I121: 1940 | J121: Profit of Rs.18/- | K121: =H121-F121 -> 18 | M121: =N121*K121 -> 9000 | N121: 500 | O121: Successful | P121: 2019-01-15 | R121: N
A122: 28 | B122: 2019-01-15 | D122: NIITTECH JAN FUT | E122: Sell | F122: 1192 | G122: 1208 | H122: 1208 | I122: 1160 | J122: Loss of Rs 16/- | K122: =F122-H122 -> -16 | M122: =N122*K122 -> -12000 | N122: 750 | O122: UnSuccessful | P122: 2019-01-16 | R122: R
A123: 29 | B123: 2019-01-15 | D123: ESCORTS JAN FUT | E123: Sell | F123: 759 | G123: 771 | H123: 752.5 | I123: 740 | J123: Profit of Rs.6.5/- | K123: =F123-H123 -> 6.5 | M123: =N123*K123 -> 7150 | N123: 1100 | O123: Successful | P123: 2019-01-16 | R123: R
A124: 30 | B124: 2019-01-16 | D124: TORNTPOWER JAN FUT | E124: Buy | F124: 269.5 | G124: 265 | H124: 266 | I124: 278 | J124: Loss of Rs.3.5/- | K124: =H124-F124 -> -3.5 | M124: =N124*K124 -> -10500 | N124: 3000 | O124: UnSuccessful | P124: 2019-01-16 | R124: N
A125: 31 | B125: 2019-01-16 | D125: SRTRANSFIN JAN FUT | E125: Buy | F125: 1202 | G125: 1179 | H125: 1179 | I125: 1240 | J125: Loss of Rs.23/- | K125: =H125-F125 -> -23 | M125: =N125*K125 -> -13800 | N125: 600 | O125: UnSuccessful | P125: 2019-01-17 | R125: R
A126: 32 | B126: 2019-01-17 | D126: EXIDEIND JAN FUT | E126: Buy | F126: 252.5 | G126: 246.5 | H126: 246.5 | I126: 262 | J126: Loss of Rs.6/- | K126: -6 | M126: -12000 | N126: 2000 | O126: UnSuccessful | P126: 2019-01-21 | R126: N
A127: 33 | B127: 2019-01-17 | D127: ZEEL | E127: Buy | F127: 447-448 | G127: 434 | I127: 465-470 | J127: Open | R127: H
A128: 34 | B128: 2019-01-18 | D128: RAYMOND JAN FUT | E128: Buy | F128: 810 | G128: 795 | H128: 801.5 | I128: 835 | J128: Loss of Rs.8.5/- | K128: =H128-F128 -> -8.5 | M128: =N128*K128 -> -6800 | N128: 800 | O128: UnSuccessful | P128: 2019-01-21 | R128: N
A129: 35 | B129: 2019-01-18 | D129: RECLTD JAN FUT | E129: Sell | F129: 127.5 | G129: 130.3 | H129: 126 | I129: 122-120 | J129: Profit of Rs.1.50/- | K129: =F129-H129 -> 1.5 | M129: =N129*K129 -> 9000 | N129: 6000 | O129: Successful | P129: 2019-01-18 | R129: H
A130: 36 | B130: 2019-01-18 | D130: BFUTILITIE | E130: Buy | F130: 225 | G130: 218.3 | H130: 215 | I130: 236-240 | J130: Loss of Rs 10/- | K130: =H130-F130 -> -10 | L130: =K130/F130 -> -4.44% | O130: UnSuccessful | P130: 2019-01-18 | R130: R
A131: 37 | B131: 2019-01-18 | D131: NIFTY JAN FUT | E131: Buy | F131: 10885 | G131: 10830 | H131: 10935 | I131: 10970-11000 | J131: Profit of Rs.50/- | K131: =H131-F131 -> 50 | M131: =N131*K131 -> 3750 | N131: 75 | O131: Successful | P131: 2019-01-18 | R131: R
A132: 38 | B132: 2019-01-21 | D132: LT JAN FUT | E132: Buy | F132: 1302.5 | G132: 1285 | H132: 1330 | I132: 1350-1360 | J132: Profit of Rs.27.50/- | K132: 27.5 | M132: 10312.5 | N132: 375 | O132: Successful | P132: 2019-01-21 | R132: H
A133: 39 | B133: 2019-01-21 | D133: JUBLFOOD JAN FUT | E133: Buy | F133: 1222.5 | G133: 1200 | H133: 1200 | I133: 1260-1270 | J133: Loss of Rs.22.5/- | K133: -22.5 | M133: -11250 | N133: 500 | O133: UnSuccessful | P133: 2019-01-21 | R133: N
A134: 40 | B134: 2019-01-21 | D134: NIFTY JAN FUT | E134: Sell | F134: 10980-10990 | G134: 11060 | I134: 10850-10880 | J134: Open | R134: R
A142: CLBS = Closing Basis ***
A143: Dividend adjusted <> | F143: Reinitiated $
F144: Revised stoploss #
B145: Quick Pick Intraday
A146: Sr.no | B146: Date | D146: Company | E146: Rec | F146: Rec Price | G146: Stop Loss*** | H146: Call Closed At | I146: Target | J146: Remark | K146: Profit / Loss per Share | L146: Status | M146: Closed Date
A160: Techno -Funda (positional)
A161: Sr.no | B161: Date | D161: Company | E161: Rec | F161: Rec Price | G161: Stop Loss*** | H161: Call Closed At | I161: Target | J161: Remark | K161: Profit / Loss per Share | L161: Gain / Loss % | M161: Status | N161: Closed Date | O161: NSE Closed Price
A164: CLBS = Closing Basis *** | F164: Reinitiated $
A165: Dividend adjusted <> | F165: Revised stoploss #
B170: Investment Idea
A171: Sr.no | B171: Date | D171: Company | E171: Rec | F171: Rec Price | G171: Point of Review | H171: Close Rate | I171: Target | J171: Remark | K171: Profit / Loss per Share | L171: Gain / Loss % | M171: Status | N171: Closed Date
A172: 1 | B172: 2013-11-01 | D172: L&T Finance Holding | E172: Accu | F172: 82.00 | G172: - | H172: 100 | I172: 100.00 | J172: Target Achieved | K172: =H172-F172 -> 18.00 | L172: =K172/F172 -> 21.95% | M172: Successful | N172: 2016-10-14
A173: 2 | B173: 2014-06-04 | D173: Finolex Inds | E173: Buy | F173: 257.00 | G173: - | H173: 300 | I173: 300.00 | J173: Target Achieved | K173: =H173-F173 -> 43.00 | L173: 16.73% | M173: Successful | N173: 2014-07-02
A174: =1+A173 -> 3 | B174: 2014-07-08 | D174: JK Cement | E174: Buy | F174: 393.00 | G174: - | H174: 468 | I174: 468.00 | J174: Target Achieved | K174: =H174-F174 -> 75.00 | L174: 19.08% | M174: Successful | N174: 2014-08-12
A175: 4 | B175: 2014-08-06 | D175: Finolex Cables | E175: Buy | F175: 205.00 | G175: - | H175: 275 | I175: 250.00 | J175: Target Achieved | K175: 70.00 | L175: 34.15% | M175: Successful | N175: 2014-11-19
A176: 5 | B176: 2014-09-04 | D176: Exide Inds | E176: Buy | F176: 162.00 | G176: - | H176: 190 | I176: 190.00 | J176: Target Achieved | K176: 28.00 | L176: 17.28% | M176: Successful | N176: 2015-01-02
A177: 6 | B177: 2014-09-04 | D177: Deepak Nitrite | E177: Buy | F177: 75.00 | G177: - | H177: 91.5 | I177: 95-100 | J177: Profit of Rs.16.50/- | K177: 16.50 | L177: 22.00% | M177: Successful | N177: 2014-11-11
A178: 7 | B178: 2014-10-01 | D178: Mercks | E178: Buy | F178: 850.00 | G178: - | H178: 982.5 | I178: 1050.00 | J178: Profit of Rs.132.50/- | K178: 132.50 | L178: 15.59% | M178: Successful | N178: 2015-02-04
A179: 8 | B179: 2014-10-01 | D179: Grindwell Norton | E179: Buy | F179: 475.00 | G179: - | H179: 515 | I179: 600.00 | J179: Profit of Rs.40/- | K179: 40.00 | L179: 8.42% | M179: Successful | N179: 2014-10-27
A180: 9 | B180: 2014-10-01 | D180: Snowman Logistics | E180: Buy | F180: 86.00 | G180: - | H180: 99 | I180: 140.00 | J180: Profit of Rs.13.00/- | K180: 13.00 | L180: 15.12% | M180: Successful | N180: 2014-10-27
A181: 10 | B181: 2014-10-14 | D181: Birla Corp | E181: Buy | F181: 496.60 | G181: - | H181: 621 | I181: 580.00 | J181: Target Achieved | K181: 124.40 | L181: 25.05% | M181: Successful | N181: 2016-08-23
A182: 11 | B182: 2014-10-14 | D182: Ultratech Cem | E182: Buy | F182: 2481.90 | G182: - | H182: 2840 | I182: 2870.00 | J182: Profit of Rs.358.10/- | K182: 358.10 | L182: 14.43% | M182: Successful | N182: 2015-01-13
A183: =1+A180 -> 10 | B183: 2014-10-16 | D183: Sintex Inds | E183: Buy | F183: 84.50 | G183: - | H183: 93 | I183: 110.00 | J183: Profit of Rs.8.50/- | K183: 8.50 | L183: 10.06% | M183: Successful | N183: 2014-10-27
A184: =1+A183 -> 11 | B184: 2014-10-16 | D184: HSIL | E184: Buy | F184: 401.00 | G184: - | H184: 428 | I184: 450.00 | J184: Profit of Rs.27.00/- | K184: 27.00 | L184: 6.73% | M184: Successful | N184: 2015-01-16
A185: 12 | B185: 2014-10-16 | D185: Eveready Inds | E185: Buy | F185: 101.00 | G185: - | H185: 112 | I185: 120.00 | J185: Profit of Rs.11.00/- | K185: 11.00 | L185: 10.89% | M185: Successful | N185: 2014-10-27
A186: 13 | B186: 2014-11-11 | D186: Pennar Inds | E186: Buy | F186: 59.00 | G186: - | H186: 76 | I186: 76.00 | J186: Target Achieved | K186: 17.00 | L186: 28.81% | M186: Successful | N186: 2017-10-24
A187: 14 | B187: 2014-11-11 | D187: Snowman Logistics | E187: Buy | F187: 99.00 | G187: - | H187: 120 | I187: 120.00 | J187: Profit of Rs.21/- | K187: 21.00 | L187: 21.21% | M187: Successful | N187: 2014-11-17
A188: 15 | B188: 2014-11-13 | D188: Dharamsi Morarji Chem | E188: Buy | F188: 22.00 | G188: - | H188: 33.55 | I188: 32.00 | J188: Profit of Rs 11.55/- | K188: 11.55 | L188: 52.50% | M188: Successful | N188: 2015-07-03
A189: 16 | B189: 2014-12-03 | D189: Tatachem | E189: Buy | F189: 440.00 | G189: - | H189: 520 | I189: 520.00 | J189: Profit of Rs 80.00/- | K189: 80.00 | L189: 18.18% | M189: Successful | N189: 2015-07-23
A190: 17 | B190: 2014-12-03 | D190: Advanta | E190: Buy | F190: 360.00 | G190: - | H190: 427 | I190: 425.00 | J190: Profit of Rs.67.00/- | K190: 67.00 | L190: 18.61% | M190: Successful | N190: 2015-02-23
A191: 18 | B191: 2015-01-08 | D191: GDL | E191: Buy | F191: 360.00 | G191: - | H191: 455 | I191: 420.00 | J191: Profit of Rs.95.00/- | K191: 95.00 | L191: 26.39% | M191: Successful | N191: 2015-01-20
A192: 19 | B192: 2015-01-08 | D192: NRB Bearing | E192: Buy | F192: 130.00 | H192: 175.5 | I192: 165.00 | J192: Profit of Rs 45.50/- | K192: 45.50 | L192: 35.00% | M192: Successful | N192: 2017-12-19
A193: 20 | B193: 2015-02-05 | D193: GSFC | E193: Accu | F193: 98.00 | H193: 120 | I193: 120.00 | J193: Target Achieved | K193: 22.00 | L193: 22.45% | M193: Successful | N193: 2017-01-18
A194: 21 | B194: 2015-02-05 | D194: Sundrmfast | E194: Accu | F194: 196.00 | H194: 262 | I194: 255.00 | J194: Target Achieved | K194: 66.00 | L194: 33.67% | M194: Successful | N194: 2016-08-17
A195: 22 | B195: 2015-03-04 | D195: GPPL | E195: Accu | F195: 230-240 | I195: 280-285 | J195: Open
A196: 23 | B196: 2015-03-04 | D196: ORIENTCEM | E196: Accu | F196: 185.00 | H196: 224 | I196: 220-225 | J196: Target Achieved | K196: 39.00 | L196: =K196/F196 -> 21.08% | M196: Successful | N196: 2016-10-04
A197: 24 | B197: 2015-03-27 | D197: PFS | E197: Accu | F197: 49-50 | I197: 67.00 | J197: Open
A198: 25 | B198: 2015-03-30 | D198: Walchandnagar Ind Ltd | E198: Accu | F198: 183.50 | H198: 219 | I198: 218.00 | J198: Profit of Rs.35.50/- | K198: 35.50 | L198: =K198/F198 -> 19.35% | M198: Successful | N198: 2015-04-09
A199: 26 | B199: 2015-04-20 | D199: Kalpataru Power Transmission Ltd | E199: Accu | F199: =(227+237)/2 -> 232.00 | H199: 298 | I199: 298.00 | J199: Target Achieved | K199: 66.00 | L199: 28.45% | M199: Successful | N199: 2017-03-29
A200: 27 | B200: 2015-05-04 | D200: Mastek Ltd | E200: Buy | F200: 385.00 | H200: =212.5+331 -> 543.5 | I200: 510.00 | J200: Profit of Rs 158.50/- | K200: 158.50 | L200: 41.17% | M200: Successful | N200: 2015-08-19
A201: 28 | B201: 2015-05-04 | D201: Suprajit Eng | E201: Buy | F201: 115.50 | H201: 146 | I201: 142.00 | J201: Profit of Rs 30.50/- | K201: 30.50 | L201: 26.41% | M201: Successful | N201: 2015-07-17
A202: 29 | B202: 2015-05-27 | D202: TCI | E202: Buy | F202: 237.50 | H202: 279.5 | I202: 278.00 | J202: Target Achieved | K202: 42.00 | L202: 17.68% | M202: Successful | N202: 2015-08-06
A203: 30 | B203: 2015-06-19 | D203: HSIL | E203: Accu | F203: 340.00 | H203: 448 | I203: 448.00 | J203: Target Achieved | K203: 108.00 | L203: 31.76% | M203: Successful | N203: 2017-10-10
A204: 31 | B204: 2015-07-06 | D204: Capital First | E204: Accu | F204: 390.00 | H204: 460 | I204: 460.00 | J204: Target Achieved | K204: 70.00 | L204: 17.95% | M204: Successful | N204: 2016-04-18
A205: 32 | B205: 2015-07-10 | D205: Dolphin OffShore | E205: Accu | F205: 122.5 | H205: 61.00 | I205: 172.00 | J205: Loss of Rs.61.50/- | K205: -61.50 | L205: -50.20% | M205: Unsuccessful | N205: 2018-08-21
A206: 33 | B206: 2015-08-03 | D206: Allcargo logistics | E206: Accu | F206: 297.50 | H206: 350 | I206: 360.00 | J206: Profit of Rs 52.50/- | K206: 52.50 | L206: =K206/F206 -> 17.65% | M206: Successful | N206: 2015-08-16
A207: 34 | B207: 2015-08-03 | D207: Camline Fine | E207: Accu | F207: 115.50 | H207: 149 | I207: 140.00 | J207: Profit of Rs 33.50/- | K207: 33.50 | L207: 29.00% | M207: Successful | N207: 2017-01-05
A208: 35 | B208: 2015-09-04 | D208: TCI | E208: Accu | F208: 226.00 | H208: 292 | I208: 292.00 | J208: Target Achieved | K208: 66.00 | L208: 29.20% | M208: Successful | N208: 2015-10-09
A209: 36 | B209: 2015-09-07 | D209: Kalpataru Power Transmission Ltd | E209: Accu | F209: 232.50 | H209: 312.5 | I209: 310.00 | J209: Target Achieved | K209: 80.00 | L209: 34.41% | M209: Successful | N209: 2017-03-29
A210: 37 | B210: 2015-09-21 | D210: LLOYD ELECTRIC & ENG LTD | E210: Accu | F210: 196.50 | H210: 238 | I210: 238.00 | J210: Target Achieved | K210: 41.50 | L210: 21.12% | M210: Successful | N210: 2015-10-14
A211: 38 | B211: 2015-09-24 | D211: L&T Finance Holding | E211: Accu | F211: 65.00 | H211: 82 | I211: 82.00 | J211: Target Achieved | K211: 17.00 | L211: 26.15% | M211: Successful | N211: 2016-07-27
A212: 39 | B212: 2015-10-14 | D212: KEC International ltd | E212: Accu | F212: 144.00 | H212: 182.5 | I212: 181.00 | J212: Target Achieved | K212: 38.50 | L212: 26.74% | M212: Successful | N212: 2017-03-23
A213: 40 | B213: 2015-10-14 | D213: Gruh Finance | E213: Accu | F213: 264.00 | H213: 311 | I213: 311.00 | J213: Target Achieved | K213: 47.00 | L213: 17.80% | M213: Successful | N213: 2016-08-22
A214: 41 | B214: 2015-11-10 | D214: Pidilitind | E214: Buy | F214: 549.50 | H214: 630 | I214: 630.00 | J214: Target Achieved | K214: 80.50 | L214: 14.65% | M214: Successful | N214: 2016-02-19
A215: 42 | B215: 2015-12-04 | D215: Zensar Technology | E215: Accu | F215: 1027.50 | H215: 1315 | I215: 1250.00 | J215: Target Achieved | K215: =H215-F215 -> 287.50 | L215: 27.98% | M215: Successful | N215: 2018-05-24
A216: 43 | B216: 2015-12-29 | D216: Vinati Organics Ltd | E216: Accu | F216: 465.00 | H216: 540 | I216: 540.00 | J216: Target Achieved | K216: 75.00 | L216: =K216/F216 -> 16.13% | M216: Successful | N216: 2016-06-09
A217: 44 | B217: 2016-01-11 | D217: GSFC | E217: Buy | F217: 81.00 | H217: 110 | I217: 110.00 | J217: Target Achieved | K217: 29.00 | L217: 35.80% | M217: Successful | N217: 2017-01-10
A218: 45 | B218: 2016-01-13 | D218: SSWL | E218: Buy | F218: 417.50 | H218: 547 | I218: 535.00 | J218: Target Achieved | K218: 129.50 | L218: 31.02% | M218: Successful | N218: 2016-07-27
A219: 46 | B219: 2016-02-08 | D219: Persistent System Ltd | E219: Accu | F219: 650.00 | H219: 800 | I219: 800.00 | J219: Target Achieved | K219: 150.00 | L219: 23.08% | M219: Successful | N219: 2018-02-23
A220: 47 | B220: 2016-03-04 | D220: UPL | E220: Accu | F220: 437.50 | H220: 504.5 | I220: 522.00 | J220: Profit of Rs.67/- | K220: 67.00 | L220: 15.31% | M220: Successful | N220: 2016-04-20
A221: 48 | B221: 2016-03-09 | D221: Ashoka Buildcon Ltd | E221: Accu | F221: 189.50 | H221: 218 | I221: 218.00 | J221: Target Achieved | K221: 28.50 | L221: 15.04% | M221: Successful | N221: 2017-10-26
A222: 49 | B222: 2016-04-11 | D222: PTC INDIA FIN SERV LTD | E222: Accu | F222: 36-37 | I222: 60.00 | J222: Open
A223: 50 | B223: 2016-04-12 | D223: CAMLINFINE $ | E223: Accu | F223: 93.00 | H223: 149 | I223: 140.00 | J223: Profit of Rs 56/- | K223: 56.00 | L223: =K223/F223 -> 60.22% | M223: Successful | N223: 2017-01-05
A224: 51 | B224: 2016-04-12 | D224: Greaves Cotton Ltd. | E224: Accu | F224: 130.00 | H224: 150 | I224: 150-155 | J224: Target Achieved | K224: 20.00 | L224: 15.38% | M224: Successful | N224: 2016-07-13
A225: 52 | B225: 2016-04-13 | D225: DHFL | E225: Accu | F225: 196.00 | H225: 299 | I225: 299.00 | J225: Target Achieved | K225: 103.00 | L225: 52.55% | M225: Successful | N225: 2016-09-07
A226: 53 | B226: 2016-04-13 | D226: Magma | E226: Accu | F226: 88.00 | H226: 103 | I226: 103.00 | J226: Target Achieved | K226: 15.00 | L226: 17.05% | M226: Successful | N226: 2016-06-09
A227: 54 | B227: 2016-05-02 | D227: KEC International ltd $ | E227: Accu | F227: 127.50 | H227: 148 | I227: 148-150 | J227: Target Achieved | K227: 20.50 | L227: 16.08% | M227: Successful | N227: 2016-07-13
A228: 55 | B228: 2016-05-03 | D228: Mindtree | E228: Accu | F228: 675.00 | H228: 815 | I228: 790-800 | J228: Target Achieved | K228: 140.00 | L228: 20.74% | M228: Successful | N228: 2018-02-23
A229: 56 | B229: 2016-06-01 | D229: Atulauto | E229: Accu | F229: 495-505 | I229: 565-570 | J229: Open
A230: 57 | B230: 2016-06-06 | D230: TRITURBINE | E230: Accu | F230: 110.00 | H230: 126.5 | I230: 125.00 | J230: Profit of Rs.16.50/- | K230: 16.50 | L230: =K230/F230 -> 15.00% | M230: Successful | N230: 2016-07-01
A231: 58 | B231: 2016-06-17 | D231: Pennar Industries Ltd | E231: Accu | F231: 44.00 | H231: 69.5 | I231: 69.50 | J231: Profit of Rs.25.50/- | K231: 25.50 | L231: =K231/F231 -> 57.95% | M231: Successful | N231: 2017-08-30
A232: 59 | B232: 2016-06-28 | D232: EVEREADY INDS. IND. LTD. | E232: Accu | F232: 262.50 | H232: 340 | I232: 333.00 | J232: Profit of Rs.77.50/- | K232: 77.50 | L232: =K232/F232 -> 29.52% | M232: Successful | N232: 2017-10-09
A233: 60 | B233: 2016-06-28 | D233: FIEM INDUSTRIES LIMITED | E233: Accu | F233: 840.00 | H233: 1230 | I233: 1230.00 | J233: Target Achieved | K233: 390.00 | L233: =K233/F233 -> 46.43% | M233: Successful | N233: 2016-10-06
A234: 61 | B234: 2016-07-05 | D234: Bajaj Corp Ltd | E234: Accu | F234: 395 | H234: 468.50 | I234: 510.00 | J234: Part profit of Rs.73.50/- | K234: 73.50 | L234: =K234/F234 -> 19% | M234: Successful | N234: 2017-08-30
A235: 62 | B235: 2016-08-02 | D235: GPPL $ | E235: Buy | F235: 167-172 | I235: 198-200 | J235: Open
A236: 63 | B236: 2016-08-04 | D236: WONDERLA HOLIDAYS LTD | E236: Accu | F236: 395-405 | I236: 475.00 | J236: Open
A237: 64 | B237: 2016-08-11 | D237: CAMLINFINE | E237: Accu | F237: 86.50 | H237: 130 | I237: 130.00 | J237: Profit of Rs.43.50/- | K237: =H237-F237 -> 43.50 | L237: =K237/F237 -> 50.29% | M237: Successful | N237: 2017-12-22
A238: 65 | B238: 2016-08-18 | D238: GRANULES | E238: Accu | F238: 133.5 | H238: 126.50 | I238: 178.00 | J238: Exit | K238: -7.00 | L238: -5.24% | M238: Unsuccessful | N238: 2016-09-02
A239: 66 | B239: 2016-08-31 | D239: VA TECH WABAG | E239: Accu | F239: 560.00 | H239: 725 | I239: 725.00 | J239: Target Achieved | K239: 165.00 | L239: 29.46% | M239: Successful | N239: 2016-03-27
A240: 67 | B240: 2016-09-01 | D240: SKIPPER LIMITED | E240: Accu | F240: 160.50 | H240: 210 | I240: 210.00 | J240: Target Achieved | K240: 49.50 | L240: 30.84% | M240: Successful | N240: 2017-05-16
A241: 68 | B241: 2016-10-03 | D241: IFB Industries | E241: Accu | F241: 430.00 | H241: 596 | I241: 575.00 | J241: Profit of Rs.166/- | K241: 166.00 | L241: 38.60% | M241: Successful | N241: 2017-02-03
A242: 69 | B242: 2016-10-14 | D242: ASIANTILES | E242: Accu | F242: 280.00 | H242: 345 | I242: 345.00 | J242: Target Achieved | K242: 65.00 | L242: 23.21% | M242: Successful | N242: 2017-03-20
A243: 70 | B243: 2016-10-14 | D243: DEEPIND | E243: Accu | F243: 245.00 | H243: 325.5 | I243: 330.00 | J243: Profit of Rs.80.5/- | K243: 80.50 | L243: 32.86% | M243: Successful | N243: 2017-02-03
A244: 71 | B244: 2016-10-17 | D244: DCBBANK | E244: Accu | F244: 125.00 | H244: 160 | I244: 160.00 | J244: Target Achieved | K244: 35.00 | L244: 28.00% | M244: Successful | N244: 2017-03-09
A245: 72 | B245: 2016-10-17 | D245: ORIENTREF | E245: Accu | F245: 114.00 | H245: 145 | I245: 145.00 | J245: Target Achieved | K245: 31.00 | L245: =K245/F245 -> 27.19% | M245: Successful | N245: 2017-05-04
A246: 73 | B246: 2016-10-17 | D246: GANECOS | E246: Accu | F246: 212.00 | H246: 280 | I246: 276.00 | J246: Profit of Rs.68/- | K246: 68.00 | L246: =K246/F246 -> 32.08% | M246: Successful | N246: 2017-05-03
A247: 74 | B247: 2016-11-04 | D247: NBCC | E247: Accu | F247: 155.00 | H247: 210 | I247: 210.00 | J247: Profit of Rs.55/- | K247: 55.00 | L247: =K247/F247 -> 35.48% | M247: Successful | N247: 2017-07-28
A248: 75 | B248: 2016-12-06 | D248: PRECAM | E248: Accu | F248: 150.5 | H248: 72.50 | I248: 174.00 | J248: Loss of Rs.78/- | K248: -78.00 | L248: =K248/F248 -> -51.83% | M248: Unsuccessful | N248: 2018-08-21
A249: 76 | B249: 2016-12-08 | D249: INFRATEL | E249: Accu | F249: 380.00 | H249: 478 | I249: 468.00 | J249: Target Achieved | K249: 98.00 | L249: =K249/F249 -> 25.79% | M249: Successful | N249: 2017-10-17
A250: 77 | B250: 2016-12-30 | D250: GODREJPROP | E250: Accu | F250: 305.00 | H250: 375 | I250: 375.00 | J250: Target Achieved | K250: 70.00 | L250: 22.95% | M250: Successful | N250: 2017-02-02
A251: 78 | B251: 2017-01-04 | D251: DEEPAKNTR | E251: Accu | F251: 99.50 | H251: 158 | I251: 158.00 | J251: Target Achieved | K251: 58.50 | L251: 58.79% | M251: Successful | N251: 2017-06-12
A252: 79 | B252: 2017-02-20 | D252: SUBROS | E252: Accu | F252: 202.50 | H252: 234 | I252: 234.00 | J252: Target Achieved | K252: 31.50 | L252: 15.56% | M252: Successful | N252: 2017-04-11
A253: 80 | B253: 2017-02-20 | D253: RECLTD | E253: Accu | F253: 140.50 | H253: 220 | I253: 220.00 | J253: Target Achieved | K253: 79.50 | L253: 56.58% | M253: Successful | N253: 2017-05-09
A254: 81 | B254: 2017-03-24 | D254: VRLLOG | E254: Accu | F254: 300.50 | H254: 417.5 | I254: 420.00 | J254: Profit of Rs.117/- | K254: 117.00 | L254: 38.94% | M254: Successful | N254: 2017-12-01
A255: 82 | B255: 2017-03-24 | D255: FIEMIND | E255: Accu | F255: 850.00 | H255: 1042.5 | I255: 1023.00 | J255: Profit of Rs 192.50/- | K255: 192.50 | L255: 22.65% | M255: Successful | N255: 2017-04-05
A256: 83 | B256: 2017-04-05 | D256: RATNAMANI | E256: Accu | F256: 785.00 | H256: 930 | I256: 920.00 | J256: Profit of Rs.145/- | K256: 145.00 | L256: 18.47% | M256: Successful | N256: 2017-08-29
A257: 84 | B257: 2017-04-06 | D257: ZEEMEDIA | E257: Accu | F257: 39-41 | I257: 60.00 | J257: Open
A258: 85 | B258: 2017-04-12 | D258: DABUR | E258: Accu | F258: 289.50 | H258: 354 | I258: 360.00 | J258: Profit of Rs.64.5/- | K258: 64.50 | L258: =K258/F258 -> 22.28% | M258: Successful | N258: 2017-11-01
A259: 86 | B259: 2017-04-20 | D259: KPRMILL | E259: Accu | F259: 700.00 | H259: 840 | I259: 840.00 | J259: Profit of Rs.140/- | K259: 140.00 | L259: =K259/F259 -> 20.00% | M259: Successful | N259: 2017-06-07
A260: 87 | B260: 2017-05-22 | D260: GREAVESCOT | E260: Accu | F260: 153-158 | I260: 190.00 | J260: Open
A261: 88 | B261: 2017-06-01 | D261: ESSELPACK | E261: Accu | F261: 260 | H261: 311.00 | I261: 340.00 | J261: Part profit of Rs.51/- | K261: =H261-F261 -> 51.00 | L261: =K261/F261 -> 20% | M261: Successful | N261: 2017-11-17
A262: 89 | B262: 2017-06-15 | D262: KEI | E262: Accu | F262: 214.50 | H262: 262 | I262: 262.00 | J262: Profit of Rs.47.5/- | K262: =H262-F262 -> 47.50 | L262: 22.14% | M262: Successful | N262: 2017-08-30
A263: 90 | B263: 2017-07-17 | D263: MAYURUNIQ | E263: Accu | F263: 370.00 | H263: 447.5 | I263: 450.00 | J263: Target Achieved | K263: 77.50 | L263: 20.95% | M263: Successful | N263: 2017-10-27
A264: 91 | B264: 2017-07-27 | D264: RAMCOCEM | E264: Accu | F264: 657.50 | H264: 825 | I264: 820.00 | J264: Target Achieved | K264: 167.50 | L264: 25.48% | M264: Successful | N264: 2017-12-21
A265: 92 | B265: 2017-08-17 | D265: FINPIPE | E265: Accu | F265: 605.00 | H265: 750 | I265: 750.00 | J265: Profit of Rs.145/- | K265: 145.00 | L265: 23.97% | M265: Successful | N265: 2017-10-19
A266: 93 | B266: 2017-09-01 | D266: SHK | E266: Accu | F266: 255 | H266: 307.50 | I266: 320.00 | J266: Part profit of Rs.52.5/- | K266: 52.50 | L266: 21% | M266: Successful | N266: 2017-12-29
A267: 94 | B267: 2017-09-19 | D267: SKIPPER | E267: Accu | F267: 215.00 | H267: 258 | I267: 258.00 | J267: Target Achieved | K267: 43.00 | L267: 20.00% | M267: Successful | N267: 2017-11-01
A268: 95 | B268: 2017-09-20 | D268: CAMLINFINE | E268: Accu | F268: 75.00 | H268: 90 | I268: 90.00 | J268: Profit of Rs.15.00/- | K268: 15.00 | L268: 20.00% | M268: Successful | N268: 2017-10-11
A269: 96 | B269: 2017-10-03 | D269: GNA | E269: Accu | F269: 315.00 | H269: 392 | I269: 384.00 | J269: Profit of Rs.77/- | K269: 77.00 | L269: 24.44% | M269: Successful | N269: 2017-10-09
A270: 97 | B270: 2017-10-05 | D270: NOCIL | E270: Accu | F270: 145.00 | H270: 179 | I270: 180.00 | J270: Profit of Rs.34/- | K270: 34.00 | L270: 23.45% | M270: Successful | N270: 2017-10-17
A271: 98 | B271: 2017-10-06 | D271: CENTURYPLY | E271: Accu | F271: 256.00 | H271: 323 | I271: 320.00 | J271: Target Achieved | K271: 67.00 | L271: 26.17% | M271: Successful | N271: 2017-11-28
... 49 more rows

Sheet Sheet2
A1: SYMBOL | B1: SERIES | C1: OPEN | D1: HIGH | E1: LOW | F1: CLOSE | G1: LAST | H1: PREVCLOSE | I1: TOTTRDQTY | J1: TOTTRDVAL | K1: TIMESTAMP | L1: TOTALTRADES | M1: ISIN | N1: ISIN
A2: 20MICRONS | B2: EQ | C2: 42.15 | D2: 42.15 | E2: 41 | F2: 41.3 | G2: 41.2 | H2: 41.7 | I2: 18473 | J2: 763468.75 | K2: 2019-01-21 | L2: 246 | M2: INE144J01027
A3: 21STCENMGM | B3: EQ | C3: 22.55 | D3: 22.6 | E3: 22.1 | F3: 22.1 | G3: 22.1 | H3: 22.55 | I3: 650 | J3: 14470.9 | K3: 2019-01-21 | L3: 15 | M3: INE253B01015
A4: 3IINFOTECH | B4: EQ | C4: 3.9 | D4: 4 | E4: 3.65 | F4: 3.65 | G4: 3.7 | H4: 3.9 | I4: 2912821 | J4: 11047820.8 | K4: 2019-01-21 | L4: 1451 | M4: INE748C01020
A5: 3MINDIA | B5: EQ | C5: 20990.05 | D5: 21176 | E5: 20854.95 | F5: 20895.9 | G5: 20862 | H5: 20984.5 | I5: 524 | J5: 11025376.35 | K5: 2019-01-21 | L5: 264 | M5: INE470A01017
A6: 3PLAND | B6: EQ | C6: 12.3 | D6: 12.3 | E6: 10.95 | F6: 11 | G6: 11 | H6: 10.95 | I6: 4006 | J6: 44624.4 | K6: 2019-01-21 | L6: 63 | M6: INE105C01023
A7: 5PAISA | B7: EQ | C7: 274.5 | D7: 274.95 | E7: 259.45 | F7: 259.45 | G7: 259.45 | H7: 273.1 | I7: 8823 | J7: 2315271.4 | K7: 2019-01-21 | L7: 307 | M7: INE618L01018
A8: 63MOONS | B8: EQ | C8: 90 | D8: 91.65 | E8: 89 | F8: 89.75 | G8: 89.25 | H8: 90.15 | I8: 175219 | J8: 15823990.2 | K8: 2019-01-21 | L8: 4358 | M8: INE111B01023
A9: 8KMILES | B9: EQ | C9: 149.2 | D9: 156.75 | E9: 144.3 | F9: 144.85 | G9: 144.8 | H9: 151.8 | I9: 434163 | J9: 64977050.65 | K9: 2019-01-21 | L9: 5425 | M9: INE650K01021
A10: A2ZINFRA | B10: EQ | C10: 12.6 | D10: 12.9 | E10: 12.4 | F10: 12.55 | G10: 12.55 | H10: 12.7 | I10: 176262 | J10: 2229583.1 | K10: 2019-01-21 | L10: 243 | M10: INE619I01012
A11: AARTIDRUGS | B11: EQ | C11: 600.3 | D11: 609.9 | E11: 597.65 | F11: 605.45 | G11: 604 | H11: 600.3 | I11: 8093 | J11: 4890334.75 | K11: 2019-01-21 | L11: 364 | M11: INE767A01016
A12: AARTIIND | B12: EQ | C12: 1563 | D12: 1571.9 | E12: 1553 | F12: 1570.05 | G12: 1570 | H12: 1549.55 | I12: 38673 | J12: 60557133 | K12: 2019-01-21 | L12: 2221 | M12: INE769A01020
A13: AARVEEDEN | B13: EQ | C13: 25.45 | D13: 25.95 | E13: 25.2 | F13: 25.6 | G13: 25.55 | H13: 25.65 | I13: 7621 | J13: 194193.45 | K13: 2019-01-21 | L13: 91 | M13: INE273D01019
A14: AAVAS | B14: EQ | C14: 832 | D14: 850 | E14: 830 | F14: 837.25 | G14: 835 | H14: 842.6 | I14: 3788 | J14: 3191608.15 | K14: 2019-01-21 | L14: 786 | M14: INE216P01012
A15: ABAN | B15: EQ | C15: 72.75 | D15: 73.5 | E15: 72.35 | F15: 73.15 | G15: 72.95 | H15: 72.95 | I15: 233102 | J15: 17017656.7 | K15: 2019-01-21 | L15: 2947 | M15: INE421A01028
A16: ABB | B16: EQ | C16: 1281.2 | D16: 1303 | E16: 1275 | F16: 1281.1 | G16: 1281.75 | H16: 1276.1 | I16: 222935 | J16: 289225275.9 | K16: 2019-01-21 | L16: 5818 | M16: INE117A01022
A17: ABBOTINDIA | B17: EQ | C17: 8122.45 | D17: 8250 | E17: 8086 | F17: 8212.9 | G17: 8200 | H17: 8098.35 | I17: 3174 | J17: 26033495.7 | K17: 2019-01-21 | L17: 889 | M17: INE358A01014
A18: ABCAPITAL | B18: EQ | C18: 93.75 | D18: 93.9 | E18: 92.3 | F18: 92.6 | G18: 92.45 | H18: 93.7 | I18: 979392 | J18: 91114493.65 | K18: 2019-01-21 | L18: 9097 | M18: INE674K01013
A19: ABFRL | B19: EQ | C19: 204.4 | D19: 205 | E19: 201.1 | F19: 201.75 | G19: 201.7 | H19: 203.25 | I19: 470057 | J19: 95566733.1 | K19: 2019-01-21 | L19: 5973 | M19: INE647O01011
A20: ABSLNN50ET | B20: EQ | C20: 275 | D20: 275 | E20: 275 | F20: 275 | G20: 275 | H20: 275 | I20: 6 | J20: 1650 | K20: 2019-01-21 | L20: 2 | M20: INF209KB1B87
A21: ACC | B21: EQ | C21: 1444.9 | D21: 1449.55 | E21: 1423.85 | F21: 1429.3 | G21: 1429 | H21: 1439.75 | I21: 349933 | J21: 502048941.4 | K21: 2019-01-21 | L21: 10733 | M21: INE012A01025
A22: ACCELYA | B22: EQ | C22: 931.95 | D22: 935 | E22: 926 | F22: 929.6 | G22: 934 | H22: 932 | I22: 1724 | J22: 1603386.5 | K22: 2019-01-21 | L22: 247 | M22: INE793A01012
A23: ACE | B23: EQ | C23: 95.7 | D23: 95.75 | E23: 93 | F23: 93.75 | G23: 93.3 | H23: 95.75 | I23: 94611 | J23: 8943688.7 | K23: 2019-01-21 | L23: 1304 | M23: INE731H01025
A24: ADANIENT | B24: EQ | C24: 146.5 | D24: 148 | E24: 144.25 | F24: 145.95 | G24: 144.3 | H24: 146.75 | I24: 1763205 | J24: 257422094.8 | K24: 2019-01-21 | L24: 10284 | M24: INE423A01024
A25: ADANIGAS | B25: EQ | C25: 98.8 | D25: 98.8 | E25: 97 | F25: 97.75 | G25: 97.2 | H25: 98.6 | I25: 440885 | J25: 43188751.6 | K25: 2019-01-21 | L25: 3383 | M25: INE399L01023
A26: ADANIGREEN | B26: EQ | C26: 39 | D26: 39.1 | E26: 37.5 | F26: 37.95 | G26: 37.8 | H26: 38.75 | I26: 113138 | J26: 4345931.85 | K26: 2019-01-21 | L26: 953 | M26: INE364U01010
A27: ADANIPORTS | B27: EQ | C27: 397.5 | D27: 402.7 | E27: 392.1 | F27: 396.2 | G27: 395.35 | H27: 399.3 | I27: 2563705 | J27: 1018139466 | K27: 2019-01-21 | L27: 45927 | M27: INE742F01042
A28: ADANIPOWER | B28: EQ | C28: 50.2 | D28: 51.4 | E28: 49.25 | F28: 49.8 | G28: 49.55 | H28: 50.75 | I28: 13143168 | J28: 659806077.7 | K28: 2019-01-21 | L28: 17434 | M28: INE814H01011
A29: ADANITRANS | B29: EQ | C29: 217 | D29: 222.45 | E29: 215.6 | F29: 217.2 | G29: 216.5 | H29: 216 | I29: 109305 | J29: 23935093.05 | K29: 2019-01-21 | L29: 4420 | M29: INE931S01010
A30: ADFFOODS | B30: EQ | C30: 262.7 | D30: 267.5 | E30: 259.7 | F30: 261.35 | G30: 260.55 | H30: 265.35 | I30: 19620 | J30: 5151993.3 | K30: 2019-01-21 | L30: 745 | M30: INE982B01019
A31: ADHUNIK | B31: EQ | C31: 2.35 | D31: 2.4 | E31: 2.25 | F31: 2.25 | G31: 2.25 | H31: 2.35 | I31: 50684 | J31: 116948.65 | K31: 2019-01-21 | L31: 54 | M31: INE400H01019
A32: ADHUNIKIND | B32: EQ | C32: 47.4 | D32: 47.4 | E32: 44 | F32: 45.1 | G32: 45.25 | H32: 45.55 | I32: 1705 | J32: 76232.6 | K32: 2019-01-21 | L32: 49 | M32: INE452L01012
A33: ADLABS | B33: EQ | C33: 10.5 | D33: 10.75 | E33: 10 | F33: 10 | G33: 10 | H33: 10.5 | I33: 7132123 | J33: 71791808.65 | K33: 2019-01-21 | L33: 1478 | M33: INE172N01012
A34: ADORWELD | B34: EQ | C34: 371.1 | D34: 375 | E34: 370.1 | F34: 371.7 | G34: 371 | H34: 373.8 | I34: 5988 | J34: 2233656.8 | K34: 2019-01-21 | L34: 309 | M34: INE045A01017
A35: ADROITINFO | B35: EQ | C35: 18.65 | D35: 18.65 | E35: 17.8 | F35: 17.9 | G35: 17.85 | H35: 18.45 | I35: 866 | J35: 15459.35 | K35: 2019-01-21 | L35: 11 | M35: INE737B01033
A36: ADSL | B36: EQ | C36: 14.35 | D36: 14.55 | E36: 14.15 | F36: 14.25 | G36: 14.25 | H36: 14.45 | I36: 5339 | J36: 76386.45 | K36: 2019-01-21 | L36: 38 | M36: INE102I01027
A37: ADVANIHOTR | B37: EQ | C37: 74.95 | D37: 74.95 | E37: 72.65 | F37: 73.1 | G37: 73.2 | H37: 72.5 | I37: 3767 | J37: 275081.4 | K37: 2019-01-21 | L37: 79 | M37: INE199C01026
A38: ADVENZYMES | B38: EQ | C38: 171 | D38: 171.7 | E38: 167.05 | F38: 167.65 | G38: 168 | H38: 170.4 | I38: 27501 | J38: 4629811.2 | K38: 2019-01-21 | L38: 811 | M38: INE837H01020
A39: AEGISCHEM | B39: EQ | C39: 195.15 | D39: 202 | E39: 193.2 | F39: 200.4 | G39: 200.1 | H39: 197.35 | I39: 99483 | J39: 19804885.3 | K39: 2019-01-21 | L39: 5089 | M39: INE208C01025
A40: AGARIND | B40: EQ | C40: 180.95 | D40: 181 | E40: 172.55 | F40: 177.25 | G40: 179.95 | H40: 174.3 | I40: 5798 | J40: 1033245.85 | K40: 2019-01-21 | L40: 79 | M40: INE204E01012
A41: AGCNET | B41: EQ | C41: 113 | D41: 117.5 | E41: 112 | F41: 114.9 | G41: 115.45 | H41: 112.2 | I41: 5300 | J41: 606903.7 | K41: 2019-01-21 | L41: 212 | M41: INE676A01019
A42: AGLSL | B42: EQ | C42: 68.4 | D42: 70.85 | E42: 68.35 | F42: 69.9 | G42: 70 | H42: 69 | I42: 4634 | J42: 324158.1 | K42: 2019-01-21 | L42: 46 | M42: INE517U01013
A43: AGRITECH | B43: EQ | C43: 58 | D43: 60.3 | E43: 56.55 | F43: 58.7 | G43: 58.55 | H43: 59.2 | I43: 5384 | J43: 319345.05 | K43: 2019-01-21 | L43: 138 | M43: INE449G01018
A44: AHLEAST | B44: EQ | C44: 264.7 | D44: 264.7 | E44: 249.95 | F44: 250.3 | G44: 250.3 | H44: 253.6 | I44: 1733 | J44: 435148 | K44: 2019-01-21 | L44: 46 | M44: INE926K01017
A45: AHLUCONT | B45: EQ | C45: 303.3 | D45: 311.35 | E45: 303.3 | F45: 307.05 | G45: 307.5 | H45: 308.05 | I45: 1886 | J45: 579888.3 | K45: 2019-01-21 | L45: 160 | M45: INE758C01029
A46: AHLWEST | B46: EQ | C46: 295 | D46: 304.85 | E46: 295 | F46: 298.2 | G46: 298.2 | H46: 304.95 | I46: 142 | J46: 42433.2 | K46: 2019-01-21 | L46: 19 | M46: INE915K01010
A47: AIAENG | B47: EQ | C47: 1682.35 | D47: 1725 | E47: 1650 | F47: 1661.85 | G47: 1651.3 | H47: 1682.35 | I47: 35425 | J47: 60041986.7 | K47: 2019-01-21 | L47: 4202 | M47: INE212H01026
A48: AIFL | B48: EQ | C48: 23.5 | D48: 24.3 | E48: 22.35 | F48: 22.7 | G48: 22.6 | H48: 23.35 | I48: 127077 | J48: 2946264 | K48: 2019-01-21 | L48: 564 | M48: INE428O01016
A49: AIONJSW | B49: EQ | C49: 38.9 | D49: 38.9 | E49: 37.4 | F49: 37.55 | G49: 37.85 | H49: 38.05 | I49: 22454 | J49: 847800.4 | K49: 2019-01-21 | L49: 182 | M49: INE743C01021
A50: AJANTPHARM | B50: EQ | C50: 1147.5 | D50: 1152.5 | E50: 1138.7 | F50: 1145.3 | G50: 1142.05 | H50: 1140.8 | I50: 156511 | J50: 179470924.1 | K50: 2019-01-21 | L50: 11411 | M50: INE031B01049
A51: AJMERA | B51: EQ | C51: 182.9 | D51: 183.5 | E51: 176 | F51: 177.8 | G51: 176.2 | H51: 182.6 | I51: 98220 | J51: 17595495.6 | K51: 2019-01-21 | L51: 3029 | M51: INE298G01027
A52: AKSHARCHEM | B52: EQ | C52: 424.1 | D52: 426.95 | E52: 421.2 | F52: 424.55 | G52: 421.2 | H52: 425.7 | I52: 684 | J52: 290257.95 | K52: 2019-01-21 | L52: 58 | M52: INE542B01011
A53: AKSHOPTFBR | B53: EQ | C53: 23.35 | D53: 23.65 | E53: 23.15 | F53: 23.35 | G53: 23.35 | H53: 23.4 | I53: 675456 | J53: 15831222.5 | K53: 2019-01-21 | L53: 3038 | M53: INE523B01011
A54: AKZOINDIA | B54: EQ | C54: 1725.3 | D54: 1744.5 | E54: 1725 | F54: 1731.35 | G54: 1725 | H54: 1725.3 | I54: 4358 | J54: 7537431.9 | K54: 2019-01-21 | L54: 852 | M54: INE133A01011
A55: ALANKIT | B55: EQ | C55: 26.95 | D55: 27.55 | E55: 26.8 | F55: 27.3 | G55: 27.25 | H55: 26.95 | I55: 617291 | J55: 16826565.6 | K55: 2019-01-21 | L55: 880 | M55: INE914E01040
A56: ALBERTDAVD | B56: EQ | C56: 405.2 | D56: 408.6 | E56: 390 | F56: 395.2 | G56: 392.1 | H56: 404.35 | I56: 3361 | J56: 1348750.05 | K56: 2019-01-21 | L56: 208 | M56: INE155C01010
A57: ALBK | B57: EQ | C57: 43.8 | D57: 43.85 | E57: 42.1 | F57: 42.65 | G57: 42.3 | H57: 43.8 | I57: 2777961 | J57: 119982774.3 | K57: 2019-01-21 | L57: 6717 | M57: INE428A01015
A58: ALCHEM | B58: BE | C58: 2.7 | D58: 2.8 | E58: 2.6 | F58: 2.8 | G58: 2.8 | H58: 2.7 | I58: 35116 | J58: 95953.6 | K58: 2019-01-21 | L58: 43 | M58: INE964B01033
A59: ALEMBICLTD | B59: EQ | C59: 44.2 | D59: 44.85 | E59: 43.55 | F59: 43.85 | G59: 44 | H59: 44.35 | I59: 142764 | J59: 6285730.05 | K59: 2019-01-21 | L59: 973 | M59: INE426A01027
A60: ALICON | B60: EQ | C60: 569.5 | D60: 578.95 | E60: 568 | F60: 577.45 | G60: 577.45 | H60: 567.85 | I60: 169 | J60: 96828.6 | K60: 2019-01-21 | L60: 26 | M60: INE062D01024
A61: ALKALI | B61: EQ | C61: 53.4 | D61: 54 | E61: 52.6 | F61: 53.45 | G61: 53.95 | H61: 53.85 | I61: 2040 | J61: 108869.45 | K61: 2019-01-21 | L61: 50 | M61: INE773I01017
A62: ALKEM | B62: EQ | C62: 1912.45 | D62: 1913.9 | E62: 1889.5 | F62: 1902.25 | G62: 1895.05 | H62: 1897.25 | I62: 11228 | J62: 21337103.35 | K62: 2019-01-21 | L62: 2254 | M62: INE540L01014
A63: ALKYLAMINE | B63: EQ | C63: 788 | D63: 869.9 | E63: 788 | F63: 836.55 | G63: 830.05 | H63: 794.65 | I63: 69045 | J63: 58203651.25 | K63: 2019-01-21 | L63: 5748 | M63: INE150B01021
A64: ALLCARGO | B64: EQ | C64: 110.9 | D64: 111.55 | E64: 109.2 | F64: 110.95 | G64: 111 | H64: 111.2 | I64: 110435 | J64: 12240999 | K64: 2019-01-21 | L64: 689 | M64: INE418H01029
A65: ALLSEC | B65: EQ | C65: 192.95 | D65: 192.95 | E65: 184.2 | F65: 185.1 | G65: 185.1 | H65: 183.9 | I65: 2600 | J65: 481272.3 | K65: 2019-01-21 | L65: 153 | M65: INE835G01018
A66: ALMONDZ | B66: EQ | C66: 25.05 | D66: 28.25 | E66: 24.1 | F66: 25.65 | G66: 26 | H66: 25.8 | I66: 10290 | J66: 270654.3 | K66: 2019-01-21 | L66: 68 | M66: INE326B01027
A67: ALOKTEXT | B67: EQ | C67: 3.6 | D67: 3.8 | E67: 3.6 | F67: 3.8 | G67: 3.8 | H67: 3.65 | I67: 1934690 | J67: 7245772.35 | K67: 2019-01-21 | L67: 563 | M67: INE270A01011
A68: ALPA | B68: EQ | C68: 32.45 | D68: 33 | E68: 27.3 | F68: 27.9 | G68: 27.65 | H68: 30.35 | I68: 526888 | J68: 16079177.7 | K68: 2019-01-21 | L68: 4746 | M68: INE385I01010
A69: ALPHAGEO | B69: EQ | C69: 474 | D69: 474 | E69: 463.6 | F69: 468.75 | G69: 468.85 | H69: 474.55 | I69: 6723 | J69: 3147977.5 | K69: 2019-01-21 | L69: 470 | M69: INE137C01018
A70: ALPSINDUS | B70: BE | C70: 2.95 | D70: 2.95 | E70: 2.95 | F70: 2.95 | G70: 2.95 | H70: 3.1 | I70: 200 | J70: 590 | K70: 2019-01-21 | L70: 1 | M70: INE093B01015
A71: AMARAJABAT | B71: EQ | C71: 781.9 | D71: 791.5 | E71: 771.9 | F71: 776.7 | G71: 778 | H71: 782.05 | I71: 522569 | J71: 408298370.4 | K71: 2019-01-21 | L71: 13320 | M71: INE885A01032
A72: AMBER | B72: EQ | C72: 883 | D72: 887.05 | E72: 879 | F72: 880.4 | G72: 879.9 | H72: 889.65 | I72: 1942 | J72: 1714535.75 | K72: 2019-01-21 | L72: 242 | M72: INE371P01015
A73: AMBIKCO | B73: EQ | C73: 1151 | D73: 1151 | E73: 1142.65 | F73: 1147.3 | G73: 1145 | H73: 1142.3 | I73: 1482 | J73: 1700765.3 | K73: 2019-01-21 | L73: 147 | M73: INE540G01014
A74: AMBUJACEM | B74: EQ | C74: 213 | D74: 214.8 | E74: 211.2 | F74: 212.3 | G74: 212.2 | H74: 212.65 | I74: 1028461 | J74: 218923971.8 | K74: 2019-01-21 | L74: 8241 | M74: INE079A01024
A75: AMDIND | B75: EQ | C75: 26.3 | D75: 27.25 | E75: 26 | F75: 26.95 | G75: 27 | H75: 26.85 | I75: 5692 | J75: 151545.4 | K75: 2019-01-21 | L75: 57 | M75: INE005I01014
A76: AMJLAND | B76: EQ | C76: 22.85 | D76: 22.85 | E76: 22 | F76: 22.1 | G76: 22.1 | H76: 22.45 | I76: 2472 | J76: 55133.55 | K76: 2019-01-21 | L76: 48 | M76: INE606A01024
A77: AMRUTANJAN | B77: EQ | C77: 310 | D77: 318.35 | E77: 306 | F77: 315.55 | G77: 315 | H77: 310.5 | I77: 40937 | J77: 12767737.7 | K77: 2019-01-21 | L77: 2381 | M77: INE098F01031
A78: ANANTRAJ | B78: EQ | C78: 34.5 | D78: 34.8 | E78: 34.1 | F78: 34.25 | G78: 34.1 | H78: 34.5 | I78: 220593 | J78: 7592583.8 | K78: 2019-01-21 | L78: 670 | M78: INE242C01024
A79: ANDHRABANK | B79: EQ | C79: 28.75 | D79: 28.8 | E79: 27.8 | F79: 28.05 | G79: 27.9 | H79: 28.6 | I79: 461326 | J79: 13027842.1 | K79: 2019-01-21 | L79: 1458 | M79: INE434A01013
A80: ANDHRACEMT | B80: EQ | C80: 5.75 | D80: 5.8 | E80: 5.4 | F80: 5.45 | G80: 5.4 | H80: 5.8 | I80: 191879 | J80: 1059136.95 | K80: 2019-01-21 | L80: 385 | M80: INE666E01012
A81: ANDHRSUGAR | B81: EQ | C81: 325.05 | D81: 331 | E81: 322.05 | F81: 323.6 | G81: 322.05 | H81: 325.95 | I81: 12464 | J81: 4061053.7 | K81: 2019-01-21 | L81: 487 | M81: INE715B01013
A82: ANGIND | B82: BE | C82: 1.2 | D82: 1.2 | E82: 1.1 | F82: 1.1 | G82: 1.1 | H82: 1.15 | I82: 32167 | J82: 36091.15 | K82: 2019-01-21 | L82: 28 | M82: INE017D01010
A83: ANIKINDS | B83: EQ | C83: 22.35 | D83: 22.6 | E83: 22 | F83: 22.2 | G83: 22.35 | H83: 22.25 | I83: 1661 | J83: 36887.6 | K83: 2019-01-21 | L83: 33 | M83: INE087B01017
A84: ANKITMETAL | B84: BE | C84: 0.5 | D84: 0.5 | E84: 0.4 | F84: 0.45 | G84: 0.45 | H84: 0.45 | I84: 106429 | J84: 51423.25 | K84: 2019-01-21 | L84: 43 | M84: INE106I01010
A85: ANSALAPI | B85: EQ | C85: 13.5 | D85: 13.6 | E85: 12.8 | F85: 12.9 | G85: 13 | H85: 13.6 | I85: 108716 | J85: 1420074.15 | K85: 2019-01-21 | L85: 426 | M85: INE436A01026
A86: ANSALHSG | B86: EQ | C86: 13.6 | D86: 13.75 | E86: 13.1 | F86: 13.25 | G86: 13.3 | H86: 13.85 | I86: 93836 | J86: 1254790.65 | K86: 2019-01-21 | L86: 345 | M86: INE880B01015
A87: ANTGRAPHIC | B87: BE | C87: 0.5 | D87: 0.5 | E87: 0.45 | F87: 0.45 | G87: 0.45 | H87: 0.5 | I87: 38414 | J87: 17509 | K87: 2019-01-21 | L87: 21 | M87: INE414B01021
A88: APARINDS | B88: EQ | C88: 620.5 | D88: 648 | E88: 619.9 | F88: 624.85 | G88: 628 | H88: 621.25 | I88: 4514 | J88: 2851912.55 | K88: 2019-01-21 | L88: 460 | M88: INE372A01015
A89: APCL | B89: EQ | C89: 131.8 | D89: 131.9 | E89: 129.4 | F89: 130 | G89: 130 | H89: 129.4 | I89: 1128 | J89: 146879.3 | K89: 2019-01-21 | L89: 29 | M89: INE071F01012
A90: APCOTEXIND | B90: EQ | C90: 516 | D90: 525 | E90: 511.2 | F90: 514.7 | G90: 523.95 | H90: 518.8 | I90: 3139 | J90: 1620958.3 | K90: 2019-01-21 | L90: 237 | M90: INE116A01024
A91: APEX | B91: EQ | C91: 355 | D91: 357.2 | E91: 343.6 | F91: 346.3 | G91: 345 | H91: 353.95 | I91: 175261 | J91: 61328611.95 | K91: 2019-01-21 | L91: 1378 | M91: INE346W01013
A92: APLAPOLLO | B92: EQ | C92: 1195 | D92: 1195.05 | E92: 1140.5 | F92: 1145.95 | G92: 1143 | H92: 1189.2 | I92: 7485 | J92: 8726317.25 | K92: 2019-01-21 | L92: 868 | M92: INE702C01019
A93: APLLTD | B93: EQ | C93: 585.2 | D93: 599.5 | E93: 582.4 | F93: 590.65 | G93: 589.35 | H93: 588.5 | I93: 26880 | J93: 15823788.6 | K93: 2019-01-21 | L93: 1218 | M93: INE901L01018
A94: APOLLO | B94: EQ | C94: 123.95 | D94: 124.9 | E94: 122.15 | F94: 122.65 | G94: 123.85 | H94: 123.4 | I94: 6169 | J94: 761390.95 | K94: 2019-01-21 | L94: 254 | M94: INE713T01010
A95: APOLLOHOSP | B95: EQ | C95: 1366.3 | D95: 1387.25 | E95: 1315.55 | F95: 1326.05 | G95: 1316.3 | H95: 1366.3 | I95: 1293001 | J95: 1763027869 | K95: 2019-01-21 | L95: 81440 | M95: INE437A01024
A96: APOLLOTYRE | B96: EQ | C96: 217.8 | D96: 219.6 | E96: 215.5 | F96: 216.6 | G96: 216.15 | H96: 217.9 | I96: 915690 | J96: 199393235.7 | K96: 2019-01-21 | L96: 9252 | M96: INE438A01022
A97: APOLSINHOT | B97: BE | C97: 1000.05 | D97: 1043 | E97: 965 | F97: 997.1 | G97: 1010 | H97: 1012.5 | I97: 2228 | J97: 2198572.65 | K97: 2019-01-21 | L97: 103 | M97: INE451F01024
A98: APTECHT | B98: EQ | C98: 193.5 | D98: 201.7 | E98: 193 | F98: 195.8 | G98: 194.75 | H98: 193.2 | I98: 366393 | J98: 72432072.3 | K98: 2019-01-21 | L98: 6889 | M98: INE266F01018
A99: ARCHIDPLY | B99: EQ | C99: 41.25 | D99: 42 | E99: 41.2 | F99: 41.6 | G99: 41.8 | H99: 41.8 | I99: 7770 | J99: 323954.35 | K99: 2019-01-21 | L99: 128 | M99: INE877I01016
A100: ARCHIES | B100: EQ | C100: 28.15 | D100: 28.5 | E100: 25.95 | F100: 26.75 | G100: 26.7 | H100: 28.35 | I100: 82310 | J100: 2233533.05 | K100: 2019-01-21 | L100: 727 | M100: INE731A01020
A101: ARCOTECH | B101: EQ | C101: 7.05 | D101: 7.25 | E101: 7.05 | F101: 7.1 | G101: 7.1 | H101: 7.15 | I101: 37520 | J101: 268257.7 | K101: 2019-01-21 | L101: 79 | M101: INE574I01035
A102: ARIES | B102: EQ | C102: 98.5 | D102: 98.9 | E102: 93.55 | F102: 94.75 | G102: 93.55 | H102: 98.15 | I102: 49658 | J102: 4761179.25 | K102: 2019-01-21 | L102: 747 | M102: INE298I01015
A103: ARIHANT | B103: EQ | C103: 35.1 | D103: 39.15 | E103: 35.1 | F103: 35.75 | G103: 36 | H103: 36.65 | I103: 2265 | J103: 81748.15 | K103: 2019-01-21 | L103: 24 | M103: INE413D01011
A104: ARIHANTSUP | B104: EQ | C104: 59.4 | D104: 59.4 | E104: 53.75 | F104: 55.2 | G104: 55 | H104: 54.8 | I104: 46381 | J104: 2566484.4 | K104: 2019-01-21 | L104: 1011 | M104: INE643K01018
A105: ARMANFIN | B105: EQ | C105: 413 | D105: 413 | E105: 382.05 | F105: 384.4 | G105: 388.75 | H105: 397.2 | I105: 5136 | J105: 2001543.25 | K105: 2019-01-21 | L105: 202 | M105: INE109C01017
A106: AROGRANITE | B106: EQ | C106: 57 | D106: 57.8 | E106: 54.25 | F106: 55.25 | G106: 54.8 | H106: 53.2 | I106: 92736 | J106: 5173626.05 | K106: 2019-01-21 | L106: 1414 | M106: INE210C01013
A107: ARROWGREEN | B107: BE | C107: 102.5 | D107: 102.5 | E107: 95.15 | F107: 96.05 | G107: 99 | H107: 100.15 | I107: 4336 | J107: 418619.75 | K107: 2019-01-21 | L107: 97 | M107: INE570D01018
A108: ARROWTEX | B108: EQ | C108: 20.6 | D108: 20.7 | E108: 20.25 | F108: 20.4 | G108: 20.6 | H108: 20.7 | I108: 5820 | J108: 119387.8 | K108: 2019-01-21 | L108: 72 | M108: INE933J01015
A109: ARSHIYA | B109: EQ | C109: 31 | D109: 31.65 | E109: 30.55 | F109: 31 | G109: 31 | H109: 31 | I109: 34892 | J109: 1081640.4 | K109: 2019-01-21 | L109: 262 | M109: INE968D01022
A110: ARSSINFRA | B110: EQ | C110: 35 | D110: 37.25 | E110: 35 | F110: 35.65 | G110: 35.2 | H110: 36.05 | I110: 6995 | J110: 248092.15 | K110: 2019-01-21 | L110: 54 | M110: INE267I01010
A111: ARVIND | B111: EQ | C111: 93.1 | D111: 94 | E111: 91.8 | F111: 92.35 | G111: 92.1 | H111: 93.1 | I111: 868693 | J111: 80520664.2 | K111: 2019-01-21 | L111: 8688 | M111: INE034A01011
A112: ARVSMART | B112: EQ | C112: 126.95 | D112: 126.95 | E112: 124.4 | F112: 124.9 | G112: 124.4 | H112: 124.3 | I112: 25167 | J112: 3160135.75 | K112: 2019-01-21 | L112: 437 | M112: INE034S01021
A113: ASAHIINDIA | B113: EQ | C113: 260 | D113: 260 | E113: 255 | F113: 255 | G113: 255 | H113: 255 | I113: 7069 | J113: 1803589.4 | K113: 2019-01-21 | L113: 170 | M113: INE439A01020
A114: ASAHISONG | B114: EQ | C114: 214.95 | D114: 215 | E114: 211.15 | F114: 213.2 | G114: 213.1 | H114: 213.95 | I114: 536 | J114: 114303.75 | K114: 2019-01-21 | L114: 172 | M114: INE228I01012
A115: ASAL | B115: EQ | C115: 84.6 | D115: 88.4 | E115: 79.35 | F115: 81.95 | G115: 79.35 | H115: 82.2 | I115: 86428 | J115: 7285574.85 | K115: 2019-01-21 | L115: 1044 | M115: INE900C01027
A116: ASHAPURMIN | B116: EQ | C116: 28.25 | D116: 29.25 | E116: 28.2 | F116: 28.55 | G116: 28.5 | H116: 28.3 | I116: 27918 | J116: 802356.2 | K116: 2019-01-21 | L116: 226 | M116: INE348A01023
A117: ASHIANA | B117: EQ | C117: 116.3 | D117: 116.6 | E117: 113.5 | F117: 114.45 | G117: 114.2 | H117: 116.3 | I117: 30475 | J117: 3516194.35 | K117: 2019-01-21 | L117: 572 | M117: INE365D01021
A118: ASHIMASYN | B118: BE | C118: 16.5 | D118: 17 | E118: 16.5 | F118: 16.5 | G118: 16.5 | H118: 16.8 | I118: 12161 | J118: 201240.45 | K118: 2019-01-21 | L118: 35 | M118: INE440A01010
A119: ASHOKA | B119: EQ | C119: 134 | D119: 134 | E119: 129.1 | F119: 130.25 | G119: 129.55 | H119: 133.75 | I119: 96221 | J119: 12681166.6 | K119: 2019-01-21 | L119: 4848 | M119: INE442H01029
A120: ASHOKLEY | B120: EQ | C120: 92.35 | D120: 92.6 | E120: 90.35 | F120: 90.6 | G120: 90.6 | H120: 92.3 | I120: 11361469 | J120: 1040334272 | K120: 2019-01-21 | L120: 51780 | M120: INE208A01029
A121: ASIANHOTNR | B121: EQ | C121: 147.05 | D121: 150.95 | E121: 147.05 | F121: 149 | G121: 150.95 | H121: 149.65 | I121: 2538 | J121: 377850.75 | K121: 2019-01-21 | L121: 21 | M121: INE363A01022
A122: ASIANPAINT | B122: EQ | C122: 1395.2 | D122: 1424.8 | E122: 1395.2 | F122: 1422.1 | G122: 1420.85 | H122: 1400.45 | I122: 2513582 | J122: 3546100784 | K122: 2019-01-21 | L122: 107108 | M122: INE021A01026
A123: ASIANTILES | B123: EQ | C123: 153.5 | D123: 158.35 | E123: 148.2 | F123: 150 | G123: 148.85 | H123: 153.45 | I123: 100158 | J123: 15288481.65 | K123: 2019-01-21 | L123: 1135 | M123: INE022I01019
A124: ASPINWALL | B124: EQ | C124: 162.25 | D124: 165 | E124: 161.6 | F124: 162.55 | G124: 161.6 | H124: 165.95 | I124: 723 | J124: 118129.3 | K124: 2019-01-21 | L124: 21 | M124: INE991I01015
A125: ASSAMCO | B125: EQ | C125: 2 | D125: 2 | E125: 1.95 | F125: 2 | G125: 2 | H125: 1.95 | I125: 86547 | J125: 173093.95 | K125: 2019-01-21 | L125: 59 | M125: INE442A01024
A126: ASTEC | B126: EQ | C126: 517.9 | D126: 518.85 | E126: 510.1 | F126: 517.85 | G126: 517.15 | H126: 512.1 | I126: 2401 | J126: 1240551.95 | K126: 2019-01-21 | L126: 165 | M126: INE563J01010
A127: ASTERDM | B127: EQ | C127: 163.55 | D127: 165.5 | E127: 159.65 | F127: 164.55 | G127: 165.5 | H127: 163.35 | I127: 26814 | J127: 4359826 | K127: 2019-01-21 | L127: 592 | M127: INE914M01019
A128: ASTRAL | B128: EQ | C128: 1099.1 | D128: 1113.1 | E128: 1074 | F128: 1079.8 | G128: 1085 | H128: 1099.1 | I128: 11662 | J128: 12707773 | K128: 2019-01-21 | L128: 1572 | M128: INE006I01046
A129: ASTRAMICRO | B129: EQ | C129: 83 | D129: 83.5 | E129: 81.1 | F129: 81.2 | G129: 81.15 | H129: 81.85 | I129: 185195 | J129: 15147144.25 | K129: 2019-01-21 | L129: 1708 | M129: INE386C01029
A130: ASTRAZEN | B130: EQ | C130: 1607.6 | D130: 1630 | E130: 1600.05 | F130: 1616.25 | G130: 1618 | H130: 1600.3 | I130: 5161 | J130: 8332798.2 | K130: 2019-01-21 | L130: 596 | M130: INE203A01020
A131: ASTRON | B131: EQ | C131: 120 | D131: 123.3 | E131: 116.15 | F131: 119.85 | G131: 120.5 | H131: 120.85 | I131: 229230 | J131: 27533297.3 | K131: 2019-01-21 | L131: 2940 | M131: INE646X01014
A132: ATFL | B132: EQ | C132: 603.9 | D132: 607.75 | E132: 598 | F132: 603.1 | G132: 605.5 | H132: 604.4 | I132: 3435 | J132: 2068884.45 | K132: 2019-01-21 | L132: 251 | M132: INE209A01019
A133: ATLANTA | B133: EQ | C133: 21.6 | D133: 21.9 | E133: 21 | F133: 21.25 | G133: 21 | H133: 21.55 | I133: 72379 | J133: 1545322.6 | K133: 2019-01-21 | L133: 2085 | M133: INE285H01022
A134: ATLASCYCLE | B134: BE | C134: 79.8 | D134: 79.8 | E134: 76.5 | F134: 77.4 | G134: 77.4 | H134: 77.4 | I134: 1644 | J134: 126428.55 | K134: 2019-01-21 | L134: 27 | M134: INE446A01025
A135: ATNINTER | B135: BE | C135: 0.05 | D135: 0.05 | E135: 0.05 | F135: 0.05 | G135: 0.05 | H135: 0.1 | I135: 110584 | J135: 5529.2 | K135: 2019-01-21 | L135: 15 | M135: INE803A01027
A136: ATUL | B136: EQ | C136: 3645 | D136: 3648.8 | E136: 3548 | F136: 3566.45 | G136: 3555 | H136: 3552.85 | I136: 15937 | J136: 57491454.85 | K136: 2019-01-21 | L136: 2966 | M136: INE100A01010
A137: ATULAUTO | B137: EQ | C137: 339.75 | D137: 339.75 | E137: 325.4 | F137: 331.65 | G137: 330.2 | H137: 334.35 | I137: 27968 | J137: 9340873.1 | K137: 2019-01-21 | L137: 1150 | M137: INE951D01028
A138: AUBANK | B138: EQ | C138: 620 | D138: 621.9 | E138: 607 | F138: 608.7 | G138: 608 | H138: 622.2 | I138: 359668 | J138: 219530364.1 | K138: 2019-01-21 | L138: 21894 | M138: INE949L01017
A139: AURIONPRO | B139: EQ | C139: 127.05 | D139: 134.3 | E139: 127 | F139: 132.65 | G139: 133.8 | H139: 130.4 | I139: 8637 | J139: 1137382 | K139: 2019-01-21 | L139: 371 | M139: INE132H01018
A140: AUROPHARMA | B140: EQ | C140: 770.4 | D140: 784.8 | E140: 767.2 | F140: 776.2 | G140: 775.8 | H140: 770.05 | I140: 1640124 | J140: 1278942568 | K140: 2019-01-21 | L140: 40418 | M140: INE406A01037
A141: AUSOMENT | B141: EQ | C141: 39.95 | D141: 42.75 | E141: 39.95 | F141: 42.2 | G141: 42 | H141: 41.05 | I141: 5522 | J141: 232821.35 | K141: 2019-01-21 | L141: 107 | M141: INE218C01016
A142: AUTOAXLES | B142: EQ | C142: 1201 | D142: 1217.95 | E142: 1175.1 | F142: 1185.55 | G142: 1177 | H142: 1211.45 | I142: 6723 | J142: 8070176.8 | K142: 2019-01-21 | L142: 897 | M142: INE449A01011
A143: AUTOIND | B143: EQ | C143: 67.6 | D143: 67.6 | E143: 65.8 | F143: 66 | G143: 66 | H143: 65.8 | I143: 10325 | J143: 689694.6 | K143: 2019-01-21 | L143: 282 | M143: INE718H01014
A144: AUTOLITIND | B144: EQ | C144: 40.8 | D144: 40.8 | E144: 39.35 | F144: 39.75 | G144: 39.75 | H144: 40.15 | I144: 3215 | J144: 128351.35 | K144: 2019-01-21 | L144: 47 | M144: INE448A01013
A145: AVADHSUGAR | B145: EQ | C145: 382.95 | D145: 395.95 | E145: 382.15 | F145: 384.15 | G145: 383.6 | H145: 384.6 | I145: 15497 | J145: 5993320.15 | K145: 2019-01-21 | L145: 704 | M145: INE349W01017
A146: AVANTIFEED | B146: EQ | C146: 370.25 | D146: 375.65 | E146: 363.7 | F146: 366.75 | G146: 363.8 | H146: 373.6 | I146: 86155 | J146: 31901580.75 | K146: 2019-01-21 | L146: 2863 | M146: INE871C01038
A147: AVTNPL | B147: EQ | C147: 26.3 | D147: 26.5 | E147: 25.9 | F147: 25.95 | G147: 25.9 | H147: 26.25 | I147: 12944 | J147: 337695.8 | K147: 2019-01-21 | L147: 141 | M147: INE488D01021
A148: AXISBANK | B148: EQ | C148: 661.55 | D148: 664.5 | E148: 656.5 | F148: 660.3 | G148: 658.85 | H148: 664.6 | I148: 6157956 | J148: 4070642712 | K148: 2019-01-21 | L148: 117196 | M148: INE238A01034
A149: AXISCADES | B149: EQ | C149: 77.55 | D149: 79.9 | E149: 69.05 | F149: 72.3 | G149: 72 | H149: 81.45 | I149: 369592 | J149: 26807129.85 | K149: 2019-01-21 | L149: 4357 | M149: INE555B01013
A150: AXISGOLD | B150: EQ | C150: 2845.05 | D150: 2860 | E150: 2826 | F150: 2843.4 | G150: 2826 | H150: 2841 | I150: 158 | J150: 450597.4 | K150: 2019-01-21 | L150: 51 | M150: INF846K01347
A151: AXISNIFTY | B151: EQ | C151: 1107.88 | D151: 1116.77 | E151: 1107.88 | F151: 1113.29 | G151: 1113.3 | H151: 1103.65 | I151: 63 | J151: 70143 | K151: 2019-01-21 | L151: 7 | M151: INF846K01ZL0
A152: AYMSYNTEX | B152: EQ | C152: 39.9 | D152: 39.9 | E152: 37.6 | F152: 38.4 | G152: 38.5 | H152: 38.5 | I152: 7177 | J152: 275503.25 | K152: 2019-01-21 | L152: 95 | M152: INE193B01039
A153: BAFNAPHARM | B153: EQ | C153: 10.85 | D153: 11.4 | E153: 10.85 | F153: 11.1 | G153: 11.2 | H153: 11.3 | I153: 3914 | J153: 43503.1 | K153: 2019-01-21 | L153: 102 | M153: INE878I01014
A154: BAGFILMS | B154: EQ | C154: 5 | D154: 5.2 | E154: 5 | F154: 5.1 | G154: 5.1 | H154: 5 | I154: 73610 | J154: 373782.75 | K154: 2019-01-21 | L154: 139 | M154: INE116D01028
A155: BAJAJ-AUTO | B155: EQ | C155: 2724.75 | D155: 2724.75 | E155: 2670 | F155: 2684.6 | G155: 2672 | H155: 2720.75 | I155: 303893 | J155: 816842158.5 | K155: 2019-01-21 | L155: 31228 | M155: INE917I01010
A156: BAJAJCON | B156: EQ | C156: 372 | D156: 372.3 | E156: 355 | F156: 356.65 | G156: 356.5 | H156: 370.05 | I156: 105309 | J156: 37741078.2 | K156: 2019-01-21 | L156: 2750 | M156: INE933K01021
A157: BAJAJELEC | B157: EQ | C157: 468 | D157: 478.9 | E157: 466.1 | F157: 470.45 | G157: 471 | H157: 468.6 | I157: 95619 | J157: 45252507.9 | K157: 2019-01-21 | L157: 3017 | M157: INE193E01025
A158: BAJAJFINSV | B158: EQ | C158: 6253.85 | D158: 6400 | E158: 6211.1 | F158: 6384.55 | G158: 6380 | H158: 6249.9 | I158: 177176 | J158: 1123861628 | K158: 2019-01-21 | L158: 19736 | M158: INE918I01018
A159: BAJAJHIND | B159: EQ | C159: 8.95 | D159: 9.1 | E159: 8.8 | F159: 8.95 | G159: 8.95 | H159: 8.95 | I159: 1337331 | J159: 11954961.65 | K159: 2019-01-21 | L159: 1121 | M159: INE306A01021
A160: BAJAJHLDNG | B160: EQ | C160: 2955.65 | D160: 2999.85 | E160: 2951 | F160: 2961.4 | G160: 2959.95 | H160: 2960.4 | I160: 11792 | J160: 35109227.7 | K160: 2019-01-21 | L160: 1412 | M160: INE118A01012
A161: BAJFINANCE | B161: EQ | C161: 2548 | D161: 2606 | E161: 2526.6 | F161: 2594.2 | G161: 2588 | H161: 2542.9 | I161: 1332159 | J161: 3438605018 | K161: 2019-01-21 | L161: 54146 | M161: INE296A01024
A162: BALAJITELE | B162: EQ | C162: 97.85 | D162: 97.85 | E162: 94.25 | F162: 94.85 | G162: 94.25 | H162: 97.9 | I162: 71767 | J162: 6858832.85 | K162: 2019-01-21 | L162: 1307 | M162: INE794B01026
A163: BALAMINES | B163: EQ | C163: 478 | D163: 509 | E163: 475.15 | F163: 500.4 | G163: 496.25 | H163: 476.1 | I163: 126117 | J163: 63181262.35 | K163: 2019-01-21 | L163: 4814 | M163: INE050E01027
A164: BALKRISHNA | B164: EQ | C164: 49 | D164: 49.95 | E164: 47.1 | F164: 47.3 | G164: 47.3 | H164: 48.3 | I164: 7386 | J164: 354246.5 | K164: 2019-01-21 | L164: 105 | M164: INE875R01011
A165: BALKRISIND | B165: EQ | C165: 868.35 | D165: 875.5 | E165: 862.55 | F165: 868.4 | G165: 868.35 | H165: 868.4 | I165: 201900 | J165: 175548119 | K165: 2019-01-21 | L165: 5521 | M165: INE787D01026
A166: BALLARPUR | B166: EQ | C166: 4.6 | D166: 4.6 | E166: 4.4 | F166: 4.4 | G166: 4.4 | H166: 4.5 | I166: 550673 | J166: 2454870.4 | K166: 2019-01-21 | L166: 577 | M166: INE294A01037
A167: BALMLAWRIE | B167: EQ | C167: 195.3 | D167: 197.85 | E167: 191 | F167: 191.5 | G167: 191.3 | H167: 194.8 | I167: 34550 | J167: 6670920.3 | K167: 2019-01-21 | L167: 1161 | M167: INE164A01016
A168: BALPHARMA | B168: EQ | C168: 78.55 | D168: 82.5 | E168: 78.1 | F168: 81.85 | G168: 82.5 | H168: 78.75 | I168: 59033 | J168: 4784092.65 | K168: 2019-01-21 | L168: 720 | M168: INE083D01012
A169: BALRAMCHIN | B169: EQ | C169: 108 | D169: 111.2 | E169: 107.2 | F169: 108.15 | G169: 108.65 | H169: 108.75 | I169: 1567331 | J169: 171125656.9 | K169: 2019-01-21 | L169: 10034 | M169: INE119A01028
A170: BANARBEADS | B170: EQ | C170: 47 | D170: 49.5 | E170: 46.3 | F170: 46.55 | G170: 46.3 | H170: 47.2 | I170: 2675 | J170: 127323.3 | K170: 2019-01-21 | L170: 16 | M170: INE655B01011
A171: BANARISUG | B171: EQ | C171: 1530.95 | D171: 1530.95 | E171: 1435 | F171: 1440.1 | G171: 1435 | H171: 1445.8 | I171: 733 | J171: 1057724 | K171: 2019-01-21 | L171: 51 | M171: INE459A01010
A172: BANCOINDIA | B172: EQ | C172: 180.6 | D172: 182.45 | E172: 175.55 | F172: 175.85 | G172: 175.6 | H172: 180.6 | I172: 28985 | J172: 5166110.15 | K172: 2019-01-21 | L172: 664 | M172: INE213C01025
A173: BANDHANBNK | B173: EQ | C173: 442 | D173: 442 | E173: 425 | F173: 426.6 | G173: 425.95 | H173: 440.15 | I173: 681714 | J173: 294556034.2 | K173: 2019-01-21 | L173: 20504 | M173: INE545U01014
A174: BANG | B174: EQ | C174: 58.65 | D174: 59.25 | E174: 56.85 | F174: 57.75 | G174: 57.05 | H174: 58.25 | I174: 78069 | J174: 4539941.35 | K174: 2019-01-21 | L174: 578 | M174: INE863I01016
A175: BANKBARODA | B175: EQ | C175: 118.3 | D175: 119.1 | E175: 115.8 | F175: 116.45 | G175: 115.95 | H175: 118 | I175: 8481086 | J175: 996471823.5 | K175: 2019-01-21 | L175: 33097 | M175: INE028A01039
A176: BANKBEES | B176: EQ | C176: 2849 | D176: 2849 | E176: 2781.05 | F176: 2796.11 | G176: 2794.78 | H176: 2798.44 | I176: 12636 | J176: 35413021.26 | K176: 2019-01-21 | L176: 268 | M176: INF732E01078
A177: BANKINDIA | B177: EQ | C177: 102.85 | D177: 104.6 | E177: 99.65 | F177: 100.65 | G177: 100 | H177: 102.65 | I177: 8168459 | J177: 838443557.3 | K177: 2019-01-21 | L177: 23052 | M177: INE084A01016
A178: BANSWRAS | B178: EQ | C178: 84.9 | D178: 84.9 | E178: 79.55 | F178: 79.95 | G178: 80 | H178: 80.6 | I178: 4156 | J178: 335391.4 | K178: 2019-01-21 | L178: 53 | M178: INE629D01012
A179: BARTRONICS | B179: EQ | C179: 7.5 | D179: 7.5 | E179: 7 | F179: 7.25 | G179: 7.25 | H179: 7.25 | I179: 28124 | J179: 202684.95 | K179: 2019-01-21 | L179: 69 | M179: INE855F01034
A180: BASF | B180: EQ | C180: 1539 | D180: 1539 | E180: 1501 | F180: 1506.95 | G180: 1501 | H180: 1512.9 | I180: 4625 | J180: 7005564.75 | K180: 2019-01-21 | L180: 620 | M180: INE373A01013
A181: BASML | B181: EQ | C181: 202.1 | D181: 203 | E181: 196.65 | F181: 197.9 | G181: 197.3 | H181: 203.25 | I181: 827 | J181: 165746.6 | K181: 2019-01-21 | L181: 49 | M181: INE186H01014
A182: BATAINDIA | B182: EQ | C182: 1159.9 | D182: 1159.9 | E182: 1143.2 | F182: 1147.55 | G182: 1148 | H182: 1155.85 | I182: 311638 | J182: 358037108.6 | K182: 2019-01-21 | L182: 11144 | M182: INE176A01028
A183: BAYERCROP | B183: EQ | C183: 4297.45 | D183: 4373.95 | E183: 4239.95 | F183: 4323.6 | G183: 4273.05 | H183: 4325.9 | I183: 2557 | J183: 11025693.9 | K183: 2019-01-21 | L183: 1299 | M183: INE462A01022
A184: BBL | B184: EQ | C184: 1114.2 | D184: 1129 | E184: 1110.2 | F184: 1116.2 | G184: 1118 | H184: 1111.9 | I184: 1716 | J184: 1918830.75 | K184: 2019-01-21 | L184: 170 | M184: INE464A01028
A185: BBTC | B185: EQ | C185: 1255.5 | D185: 1265 | E185: 1225 | F185: 1228.05 | G185: 1228.5 | H185: 1252.2 | I185: 74821 | J185: 92809125.2 | K185: 2019-01-21 | L185: 5611 | M185: INE050A01025
A186: BCG | B186: EQ | C186: 3 | D186: 3.25 | E186: 3 | F186: 3.15 | G186: 3.1 | H186: 3.05 | I186: 763959 | J186: 2411557.45 | K186: 2019-01-21 | L186: 403 | M186: INE425B01027
A187: BDL | B187: EQ | C187: 283.8 | D187: 284 | E187: 276.7 | F187: 278.8 | G187: 277.85 | H187: 284.35 | I187: 14693 | J187: 4120017.7 | K187: 2019-01-21 | L187: 1457 | M187: INE171Z01018
A188: BEARDSELL | B188: EQ | C188: 21.75 | D188: 21.75 | E188: 19.65 | F188: 19.8 | G188: 20.5 | H188: 21.25 | I188: 12389 | J188: 253876.55 | K188: 2019-01-21 | L188: 120 | M188: INE520H01022
A189: BEDMUTHA | B189: EQ | C189: 21.5 | D189: 22.45 | E189: 21.5 | F189: 22.4 | G189: 22.4 | H189: 21.75 | I189: 4250 | J189: 93609.3 | K189: 2019-01-21 | L189: 10 | M189: INE844K01012
A190: BEL | B190: EQ | C190: 86.9 | D190: 87.6 | E190: 85.7 | F190: 86.5 | G190: 86.45 | H190: 86.35 | I190: 3050580 | J190: 264226425.5 | K190: 2019-01-21 | L190: 16474 | M190: INE263A01024
A191: BEML | B191: EQ | C191: 894.7 | D191: 901 | E191: 885.5 | F191: 889.15 | G191: 887.4 | H191: 892.1 | I191: 1095730 | J191: 977626984 | K191: 2019-01-21 | L191: 25725 | M191: INE258A01016
A192: BEPL | B192: EQ | C192: 82.35 | D192: 83 | E192: 79.5 | F192: 80.1 | G192: 79.85 | H192: 82.4 | I192: 216765 | J192: 17551492.25 | K192: 2019-01-21 | L192: 2179 | M192: INE922A01025
A193: BERGEPAINT | B193: EQ | C193: 326 | D193: 330.6 | E193: 318.95 | F193: 322.1 | G193: 322.35 | H193: 326.15 | I193: 2023800 | J193: 652874020.4 | K193: 2019-01-21 | L193: 20811 | M193: INE463A01038
A194: BFINVEST | B194: EQ | C194: 239.9 | D194: 241.65 | E194: 235.25 | F194: 237.1 | G194: 239 | H194: 240 | I194: 56355 | J194: 13428554.5 | K194: 2019-01-21 | L194: 2406 | M194: INE878K01010
A195: BFUTILITIE | B195: EQ | C195: 213.95 | D195: 213.95 | E195: 205.1 | F195: 206.05 | G195: 205.75 | H195: 213.75 | I195: 420047 | J195: 87541106.75 | K195: 2019-01-21 | L195: 7402 | M195: INE243D01012
A196: BGLOBAL | B196: BE | C196: 2.75 | D196: 2.75 | E196: 2.75 | F196: 2.75 | G196: 2.75 | H196: 2.75 | I196: 1106 | J196: 3041.5 | K196: 2019-01-21 | L196: 8 | M196: INE224M01013
A197: BGRENERGY | B197: EQ | C197: 58.6 | D197: 59.1 | E197: 57 | F197: 57.4 | G197: 57.15 | H197: 58.7 | I197: 50259 | J197: 2909290.25 | K197: 2019-01-21 | L197: 493 | M197: INE661I01014
A198: BHAGERIA | B198: EQ | C198: 293 | D198: 303 | E198: 292.05 | F198: 299.7 | G198: 299 | H198: 292.55 | I198: 40699 | J198: 12101093.65 | K198: 2019-01-21 | L198: 896 | M198: INE354C01027
A199: BHAGYANGR | B199: EQ | C199: 35.4 | D199: 36.35 | E199: 34.7 | F199: 36.05 | G199: 36.05 | H199: 35.4 | I199: 18157 | J199: 651780.65 | K199: 2019-01-21 | L199: 128 | M199: INE458B01036
A200: BHAGYAPROP | B200: EQ | C200: 30.5 | D200: 30.5 | E200: 29.8 | F200: 30.5 | G200: 30.5 | H200: 30.95 | I200: 3520 | J200: 106397.75 | K200: 2019-01-21 | L200: 22 | M200: INE363W01018
... 1436 more rows

Sheet Sheet1 (hidden)
